Workbook

Sheet CAPA
B2: mort@lidades.infantil
C24: Última atualização: 01/06/2012

Sheet PagIn
B2: mort@lidades.infantil
B4: Página Inicial
B7: Consulta de Indicadores (Anual) | D7: Análise por Indicador
D9: Selecione o Indicador
B11: Permite consultar o valor anual (1996-2011) por indicador ou por local de residência. | D11: Permite observar a evolução de um determinado indicador para o Continente, para a região e, caso pretenda, para um determinado ACeS. Para um determinado triénio (ou ano) podem observar-se, também, os valores do respetivo indicador ordenados por ACeS através de um gráfico de barras e o seu mapeamento.
B13: Análise por ACeS | D13: Análise da Razão R por Indicador
D15: Selecione o Indicador
B17: Permite visualizar a evolução de vários indicadores num determinado ACeS, comparativamente com o Continente e a região, numa única página. | D17: Permite evidenciar variações geográficas com recurso à razão entre o número de acontecimentos observados e o número de acontecimentos esperados nos ACeS, caso fossem observadas as distribuições do indicador para o Continente ou para a região.

Sheet BASE (hidden)
A1: Icod | B1: Indicador | C1: cod_Res | D1: Rcod | E1: Local_Residencia | F1: Local_Residencia2 | G1: cod_IndRes | H1: A96 | I1: A97 | J1: A98 | K1: A99 | L1: A00 | M1: A01 | N1: A02 | O1: A03 | P1: A04 | Q1: A05 | R1: A06 | S1: A07 | T1: A08 | U1: A09 | V1: A10 | W1: A11 | X1: T01 | Y1: T02 | Z1: T03 | AA1: T04 | AB1: T05 | AC1: T06 | AD1: T07 | AE1: T08 | AF1: T09 | AG1: T10 | AH1: T11 | AI1: T12 | AJ1: T13 | AK1: T14 | AL1: Q01 | AM1: Q02 | AN1: Q03 | AO1: Q04
A2: I27 | B2: População Média | C2: CT | D2: R01 | E2: CONTINENTE | F2: Continente | G2: I27R01 | H2: 9572961 | I2: 9608690 | J2: 9648988.5 | K2: 9693475 | L2: 9748596 | M2: 9815633 | N2: 9889430 | O2: 9959546.5 | P2: 10017708.5 | Q2: 10062958.5 | R2: 10096212.5 | S2: 10118575.5 | T2: 10131094.5 | U2: 10140124.5 | V2: 10144270 | W2: 10047083 | X2: 28830639.5 | Y2: 28951153.5 | Z2: 29091059.5 | AA2: 29257704 | AB2: 29453659 | AC2: 29664609.5 | AD2: 29866685 | AE2: 30040213.5 | AF2: 30176879.5 | AG2: 30277746.5 | AH2: 30345882.5 | AI2: 30389794.5 | AJ2: 30415489 | AK2: 30331477.5 | AL2: 48272710.5 | AM2: 49745276.5 | AN2: 50630277 | AO2: 50581147.5
A3: I27 | B3: População Média | C3: RA | D3: R02 | E3: REGIÃO ALENTEJO | F3: Região Alentejo | G3: I27R02 | H3: 528004 | I3: 526881.5 | J3: 525986 | K3: 525116 | L3: 524684 | M3: 524333.5 | N3: 523929 | O3: 522980.5 | P3: 521478 | Q3: 519499.5 | R3: 516866.5 | S3: 513621.5 | T3: 509580 | U3: 505494 | V3: 501272.5 | W3: 509741 | X3: 1580871.5 | Y3: 1577983.5 | Z3: 1575786 | AA3: 1574133.5 | AB3: 1572946.5 | AC3: 1571243 | AD3: 1568387.5 | AE3: 1563958 | AF3: 1557844 | AG3: 1549987.5 | AH3: 1540068 | AI3: 1528695.5 | AJ3: 1516346.5 | AK3: 1516507.5 | AL3: 2630671.5 | AM3: 2612220.5 | AN3: 2546834.5 | AO3: 2539709
A4: I27 | B4: População Média | C4: A401 | D4: R03 | E4: ALENTEJO LITORAL | F4: ACES Alentejo Litoral | G4: I27R03 | H4: 96469 | I4: 96682.5 | J4: 96918.5 | K4: 97197 | L4: 97564.5 | M4: 97850 | N4: 97967 | O4: 97898.5 | P4: 97711 | Q4: 97405.5 | R4: 96983 | S4: 96478 | T4: 95846.5 | U4: 95214 | V4: 94576.5 | W4: 97895 | X4: 290070 | Y4: 290798 | Z4: 291680 | AA4: 292611.5 | AB4: 293381.5 | AC4: 293715.5 | AD4: 293576.5 | AE4: 293015 | AF4: 292099.5 | AG4: 290866.5 | AH4: 289307.5 | AI4: 287538.5 | AJ4: 285637 | AK4: 287685.5 | AL4: 484831.5 | AM4: 488832 | AN4: 479098 | AO4: 480010
A5: I27 | B5: População Média | C5: A402 | D5: R04 | E5: ALENTEJO CENTRAL I | F5: ACES Alentejo Central I | G5: I27R04 | H5: 59598 | I5: 59277.5 | J5: 58986.5 | K5: 58711 | L5: 58506 | M5: 58293.5 | N5: 58092.5 | O5: 57877.5 | P5: 57613.5 | Q5: 57271 | R5: 56867 | S5: 56443.5 | T5: 55935 | U5: 55391 | V5: 54826.5 | W5: 55165 | X5: 177862 | Y5: 176975 | Z5: 176203.5 | AA5: 175510.5 | AB5: 174892 | AC5: 174263.5 | AD5: 173583.5 | AE5: 172762 | AF5: 171751.5 | AG5: 170581.5 | AH5: 169245.5 | AI5: 167769.5 | AJ5: 166152.5 | AK5: 165382.5 | AL5: 295079 | AM5: 289148 | AN5: 279463 | AO5: 277761
A6: I27 | B6: População Média | C6: A403 | D6: R05 | E6: ALENTEJO CENTRAL II | F6: ACES Alentejo Central II | G6: I27R05 | H6: 109427 | I6: 109838 | J6: 110288.5 | K6: 110742.5 | L6: 111284.5 | M6: 111865.5 | N6: 112512.5 | O6: 113060.5 | P6: 113442 | Q6: 113699 | R6: 113805.5 | S6: 113718 | T6: 113405.5 | U6: 113072.5 | V6: 112692.5 | W6: 111541 | X6: 329553.5 | Y6: 330869 | Z6: 332315.5 | AA6: 333892.5 | AB6: 335662.5 | AC6: 337438.5 | AD6: 339015 | AE6: 340201.5 | AF6: 340946.5 | AG6: 341222.5 | AH6: 340929 | AI6: 340196 | AJ6: 339170.5 | AK6: 337306 | AL6: 551580.5 | AM6: 564579.5 | AN6: 566694 | AO6: 564429.5
A7: I27 | B7: População Média | C7: A904 | D7: R06 | E7: ALTO ALENTEJO | F7: ULS Norte Alentejano | G7: I27R06 | H7: 127265 | I7: 126574 | J7: 125929 | K7: 125315 | L7: 124781.5 | M7: 124207.5 | N7: 123591 | O7: 122848 | P7: 122019.5 | Q7: 121117 | R7: 120062 | S7: 118842 | T7: 117485.5 | U7: 116166.5 | V7: 114791.5 | W7: 118448 | X7: 379768 | Y7: 377818 | Z7: 376025.5 | AA7: 374304 | AB7: 372580 | AC7: 370646.5 | AD7: 368458.5 | AE7: 365984.5 | AF7: 363198.5 | AG7: 360021 | AH7: 356389.5 | AI7: 352494 | AJ7: 348443.5 | AK7: 349406 | AL7: 629864.5 | AM7: 613783 | AN7: 587347.5 | AO7: 585733.5
A8: I27 | B8: População Média | C8: A905 | D8: R07 | E8: BAIXO ALENTEJO | F8: ULS Baixo Alentejo | G8: I27R07 | H8: 135245 | I8: 134509.5 | J8: 133863.5 | K8: 133150.5 | L8: 132547.5 | M8: 132117 | N8: 131766 | O8: 131296 | P8: 130692 | Q8: 130007 | R8: 129149 | S8: 128140 | T8: 126907.5 | U8: 125650 | V8: 124385.5 | W8: 126692 | X8: 403618 | Y8: 401523.5 | Z8: 399561.5 | AA8: 397815 | AB8: 396430.5 | AC8: 395179 | AD8: 393754 | AE8: 391995 | AF8: 389848 | AG8: 387296 | AH8: 384196.5 | AI8: 380697.5 | AJ8: 376943 | AK8: 376727.5 | AL8: 669316 | AM8: 655878 | AN8: 634232 | AO8: 631775
A9: I01 | B9: Nados Vivos | C9: CT | D9: R01 | E9: CONTINENTE | F9: Continente | G9: I01R01 | H9: 103668 | I9: 106299 | J9: 106857 | K9: 109381 | L9: 113318 | M9: 106479 | N9: 108192 | O9: 106232 | P9: 103309 | Q9: 103420 | R9: 99713 | S9: 96925 | T9: 99057 | U9: 94324 | V9: 96133 | W9: 91700 | X9: 316824 | Y9: 322537 | Z9: 329556 | AA9: 329178 | AB9: 327989 | AC9: 320903 | AD9: 317733 | AE9: 312961 | AF9: 306442 | AG9: 300058 | AH9: 295695 | AI9: 290306 | AJ9: 289514 | AK9: 282157 | AL9: 539523 | AM9: 527632 | AN9: 486152 | AO9: 478139
A10: I01 | B10: Nados Vivos | C10: RA | D10: R02 | E10: REGIÃO ALENTEJO | F10: Região Alentejo | G10: I01R02 | H10: 4393 | I10: 4673 | J10: 4653 | K10: 4688 | L10: 4778 | M10: 4423 | N10: 4543 | O10: 4597 | P10: 4582 | Q10: 4480 | R10: 4102 | S10: 3999 | T10: 4188 | U10: 4038 | V10: 4145 | W10: 4090 | X10: 13719 | Y10: 14014 | Z10: 14119 | AA10: 13889 | AB10: 13744 | AC10: 13563 | AD10: 13722 | AE10: 13659 | AF10: 13164 | AG10: 12581 | AH10: 12289 | AI10: 12225 | AJ10: 12371 | AK10: 12273 | AL10: 23185 | AM10: 22625 | AN10: 20472 | AO10: 20460
A11: I01 | B11: Nados Vivos | C11: A401 | D11: R03 | E11: ALENTEJO LITORAL | F11: ACES Alentejo Litoral | G11: I01R03 | H11: 743 | I11: 780 | J11: 778 | K11: 830 | L11: 803 | M11: 785 | N11: 795 | O11: 833 | P11: 862 | Q11: 821 | R11: 748 | S11: 750 | T11: 815 | U11: 789 | V11: 824 | W11: 833 | X11: 2301 | Y11: 2388 | Z11: 2411 | AA11: 2418 | AB11: 2383 | AC11: 2413 | AD11: 2490 | AE11: 2516 | AF11: 2431 | AG11: 2319 | AH11: 2313 | AI11: 2354 | AJ11: 2428 | AK11: 2446 | AL11: 3934 | AM11: 4096 | AN11: 3926 | AO11: 4011
A12: I01 | B12: Nados Vivos | C12: A402 | D12: R04 | E12: ALENTEJO CENTRAL I | F12: ACES Alentejo Central I | G12: I01R04 | H12: 493 | I12: 507 | J12: 472 | K12: 479 | L12: 480 | M12: 451 | N12: 460 | O12: 479 | P12: 455 | Q12: 385 | R12: 406 | S12: 385 | T12: 401 | U12: 367 | V12: 377 | W12: 407 | X12: 1472 | Y12: 1458 | Z12: 1431 | AA12: 1410 | AB12: 1391 | AC12: 1390 | AD12: 1394 | AE12: 1319 | AF12: 1246 | AG12: 1176 | AH12: 1192 | AI12: 1153 | AJ12: 1145 | AK12: 1151 | AL12: 2431 | AM12: 2230 | AN12: 1936 | AO12: 1937
A13: I01 | B13: Nados Vivos | C13: A403 | D13: R05 | E13: ALENTEJO CENTRAL II | F13: ACES Alentejo Central II | G13: I01R05 | H13: 993 | I13: 1098 | J13: 1073 | K13: 1089 | L13: 1112 | M13: 1031 | N13: 1072 | O13: 1092 | P13: 1104 | Q13: 1077 | R13: 1056 | S13: 971 | T13: 1011 | U13: 940 | V13: 943 | W13: 957 | X13: 3164 | Y13: 3260 | Z13: 3274 | AA13: 3232 | AB13: 3215 | AC13: 3195 | AD13: 3268 | AE13: 3273 | AF13: 3237 | AG13: 3104 | AH13: 3038 | AI13: 2922 | AJ13: 2894 | AK13: 2840 | AL13: 5365 | AM13: 5376 | AN13: 4921 | AO13: 4822
A14: I01 | B14: Nados Vivos | C14: A904 | D14: R06 | E14: ALTO ALENTEJO | F14: ULS Norte Alentejano | G14: I01R06 | H14: 1056 | I14: 1108 | J14: 1075 | K14: 1154 | L14: 1147 | M14: 1035 | N14: 1052 | O14: 1015 | P14: 979 | Q14: 999 | R14: 851 | S14: 802 | T14: 896 | U14: 879 | V14: 914 | W14: 877 | X14: 3239 | Y14: 3337 | Z14: 3376 | AA14: 3336 | AB14: 3234 | AC14: 3102 | AD14: 3046 | AE14: 2993 | AF14: 2829 | AG14: 2652 | AH14: 2549 | AI14: 2577 | AJ14: 2689 | AK14: 2670 | AL14: 5540 | AM14: 5080 | AN14: 4342 | AO14: 4368
A15: I01 | B15: Nados Vivos | C15: A905 | D15: R07 | E15: BAIXO ALENTEJO | F15: ULS Baixo Alentejo | G15: I01R07 | H15: 1108 | I15: 1180 | J15: 1255 | K15: 1136 | L15: 1236 | M15: 1121 | N15: 1164 | O15: 1178 | P15: 1182 | Q15: 1198 | R15: 1041 | S15: 1091 | T15: 1065 | U15: 1063 | V15: 1087 | W15: 1016 | X15: 3543 | Y15: 3571 | Z15: 3627 | AA15: 3493 | AB15: 3521 | AC15: 3463 | AD15: 3524 | AE15: 3558 | AF15: 3421 | AG15: 3330 | AH15: 3197 | AI15: 3219 | AJ15: 3215 | AK15: 3166 | AL15: 5915 | AM15: 5843 | AN15: 5347 | AO15: 5322
A16: I02 | B16: Taxa Bruta de Natalidade | C16: CT | D16: R01 | E16: CONTINENTE | F16: Continente | G16: I02R01 | H16: 10.82925126 | I16: 11.06279836 | J16: 11.07442506 | K16: 11.28398227 | L16: 11.62403284 | M16: 10.84789947 | N16: 10.94016541 | O16: 10.66634912 | P16: 10.31263787 | Q16: 10.27729569 | R16: 9.876277862 | S16: 9.578917507 | T16: 9.777522063 | U16: 9.302055414 | V16: 9.476581361 | W16: 9.127027218 | X16: 10.9891423 | Y16: 11.14073054 | Z16: 11.32842893 | AA16: 11.25098538 | AB16: 11.13576415 | AC16: 10.81770519 | AD16: 10.63837517 | AE16: 10.41806843 | AF16: 10.15486045 | AG16: 9.910182715 | AH16: 9.74415557 | AI16: 9.5527464 | AJ16: 9.518637034 | AK16: 9.302448257 | AL16: 11.17656321 | AM16: 10.60667539 | AN16: 9.602001585 | AO16: 9.452909308
A17: I02 | B17: Taxa Bruta de Natalidade | C17: RA | D17: R02 | E17: REGIÃO ALENTEJO | F17: Região Alentejo | G17: I02R02 | H17: 8.320012727 | I17: 8.869166976 | J17: 8.846243056 | K17: 8.927551246 | L17: 9.106433587 | M17: 8.435470936 | N17: 8.671022219 | O17: 8.790002687 | P17: 8.786564342 | Q17: 8.623684912 | R17: 7.936285288 | S17: 7.785889025 | T17: 8.218532909 | U17: 7.98822538 | V17: 8.268955508 | W17: 8.023682615 | X17: 8.678124693 | Y17: 8.880954712 | Z17: 8.959972991 | AA17: 8.823266896 | AB17: 8.737741557 | AC17: 8.632019363 | AD17: 8.749113341 | AE17: 8.733610493 | AF17: 8.450140065 | AG17: 8.116839652 | AH17: 7.979517788 | AI17: 7.997014448 | AJ17: 8.158425531 | AK17: 8.092937226 | AL17: 8.813339104 | AM17: 8.661213707 | AN17: 8.038213712 | AO17: 8.056041066
A18: I02 | B18: Taxa Bruta de Natalidade | C18: A401 | D18: R03 | E18: ALENTEJO LITORAL | F18: ACES Alentejo Litoral | G18: I02R03 | H18: 7.701956069 | I18: 8.067644093 | J18: 8.027363197 | K18: 8.539358211 | L18: 8.230452675 | M18: 8.022483393 | N18: 8.114977492 | O18: 8.508812699 | P18: 8.821934071 | Q18: 8.428682159 | R18: 7.712691915 | S18: 7.773792989 | T18: 8.503179563 | U18: 8.286596509 | V18: 8.712523724 | W18: 8.509116911 | X18: 7.932568001 | Y18: 8.211885914 | Z18: 8.265907844 | AA18: 8.263516642 | AB18: 8.12252988 | AC18: 8.215432961 | AD18: 8.481605306 | AE18: 8.58659113 | AF18: 8.322506543 | AG18: 7.972729757 | AH18: 7.994953466 | AI18: 8.186729777 | AJ18: 8.500299331 | AK18: 8.502340229 | AL18: 8.114159249 | AM18: 8.379156847 | AN18: 8.194565621 | AO18: 8.356075915
A19: I02 | B19: Taxa Bruta de Natalidade | C19: A402 | D19: R04 | E19: ALENTEJO CENTRAL I | F19: ACES Alentejo Central I | G19: I02R04 | H19: 8.272089667 | I19: 8.552992282 | J19: 8.001830927 | K19: 8.158607416 | L19: 8.20428674 | M19: 7.73671164 | N19: 7.91840599 | O19: 8.276100384 | P19: 7.89745459 | Q19: 6.722424962 | R19: 7.139465771 | S19: 6.820980272 | T19: 7.169035488 | U19: 6.625625102 | V19: 6.876236856 | W19: 7.377866401 | X19: 8.276079207 | Y19: 8.238451759 | Z19: 8.121291575 | AA19: 8.033707385 | AB19: 7.953479862 | AC19: 7.976426504 | AD19: 8.030717205 | AE19: 7.634780797 | AF19: 7.254667354 | AG19: 6.8940653 | AH19: 7.0430233 | AI19: 6.872524505 | AJ19: 6.891259536 | AK19: 6.959623902 | AL19: 8.238471731 | AM19: 7.712313417 | AN19: 6.927571807 | AO19: 6.973621207
A20: I02 | B20: Taxa Bruta de Natalidade | C20: A403 | D20: R05 | E20: ALENTEJO CENTRAL II | F20: ACES Alentejo Central II | G20: I02R05 | H20: 9.074542846 | I20: 9.996540359 | J20: 9.729028865 | K20: 9.833623044 | L20: 9.992406849 | M20: 9.216425082 | N20: 9.527830241 | O20: 9.658545646 | P20: 9.731845348 | Q20: 9.472378825 | R20: 9.278989153 | S20: 8.538665822 | T20: 8.914911534 | U20: 8.313250348 | V20: 8.367903809 | W20: 8.579804735 | X20: 9.600869055 | Y20: 9.852842061 | Z20: 9.852083336 | AA20: 9.679762199 | AB20: 9.578073213 | AC20: 9.468392018 | AD20: 9.639691459 | AE20: 9.620768868 | AF20: 9.494158174 | AG20: 9.096703764 | AH20: 8.910946267 | AI20: 8.589166245 | AJ20: 8.532581696 | AK20: 8.419654557 | AL20: 9.726594758 | AM20: 9.522131073 | AN20: 8.683698786 | AO20: 8.543139577
A21: I02 | B21: Taxa Bruta de Natalidade | C21: A904 | D21: R06 | E21: ALTO ALENTEJO | F21: ULS Norte Alentejano | G21: I02R06 | H21: 8.297646643 | I21: 8.753772497 | J21: 8.536556313 | K21: 9.20879384 | L21: 9.192067734 | M21: 8.332830143 | N21: 8.511946663 | O21: 8.262242772 | P21: 8.02330775 | Q21: 8.248222793 | R21: 7.088004531 | S21: 6.748455933 | T21: 7.626473054 | U21: 7.566725347 | V21: 7.962262014 | W21: 7.404092935 | X21: 8.528891323 | Y21: 8.832294914 | Z21: 8.978114516 | AA21: 8.912541677 | AB21: 8.68001503 | AC21: 8.369160372 | AD21: 8.266874017 | AE21: 8.177941962 | AF21: 7.789129085 | AG21: 7.36623697 | AH21: 7.152287034 | AI21: 7.310762736 | AJ21: 7.717176529 | AK21: 7.641540214 | AL21: 8.795542533 | AM21: 8.276540732 | AN21: 7.392557217 | AO21: 7.457316339
A22: I02 | B22: Taxa Bruta de Natalidade | C22: A905 | D22: R07 | E22: BAIXO ALENTEJO | F22: ULS Baixo Alentejo | G22: I02R07 | H22: 8.192539465 | I22: 8.772614574 | J22: 9.375221774 | K22: 8.531699092 | L22: 9.324958977 | M22: 8.484903532 | N22: 8.83384181 | O22: 8.97209359 | P22: 9.044164907 | Q22: 9.214888429 | R22: 8.060457301 | S22: 8.514125176 | T22: 8.391939011 | U22: 8.460007959 | V22: 8.738960731 | W22: 8.019448742 | X22: 8.778102067 | Y22: 8.8936264 | Z22: 9.077451156 | AA22: 8.780463281 | AB22: 8.881758593 | AC22: 8.763117473 | AD22: 8.949750352 | AE22: 9.076646386 | AF22: 8.775214956 | AG22: 8.598074857 | AH22: 8.321262687 | AI22: 8.45553228 | AJ22: 8.529141011 | AK22: 8.403952459 | AL22: 8.837380251 | AM22: 8.90866899 | AN22: 8.430668903 | AO22: 8.423885086
A23: I03 | B23: NV <20 anos | C23: CT | D23: R01 | E23: CONTINENTE | F23: Continente | G23: I03R01 | H23: 7165 | I23: 6970 | J23: 6777 | K23: 6701 | L23: 6813 | M23: 6236 | N23: 6101 | O23: 5551 | P23: 5264 | Q23: 4983 | R23: 4438 | S23: 4369 | T23: 4132 | U23: 3927 | V23: 3726 | W23: 3331 | X23: 20912 | Y23: 20448 | Z23: 20291 | AA23: 19750 | AB23: 19150 | AC23: 17888 | AD23: 16916 | AE23: 15798 | AF23: 14685 | AG23: 13790 | AH23: 12939 | AI23: 12428 | AJ23: 11785 | AK23: 10984 | AL23: 34426 | AM23: 28135 | AN23: 20592 | AO23: 19485
A24: I03 | B24: NV <20 anos | C24: RA | D24: R02 | E24: REGIÃO ALENTEJO | F24: Região Alentejo | G24: I03R02 | H24: 497 | I24: 496 | J24: 426 | K24: 429 | L24: 419 | M24: 380 | N24: 388 | O24: 362 | P24: 329 | Q24: 296 | R24: 257 | S24: 255 | T24: 223 | U24: 212 | V24: 226 | W24: 220 | X24: 1419 | Y24: 1351 | Z24: 1274 | AA24: 1228 | AB24: 1187 | AC24: 1130 | AD24: 1079 | AE24: 987 | AF24: 882 | AG24: 808 | AH24: 735 | AI24: 690 | AJ24: 661 | AK24: 658 | AL24: 2267 | AM24: 1755 | AN24: 1173 | AO24: 1136
A25: I03 | B25: NV <20 anos | C25: A401 | D25: R03 | E25: ALENTEJO LITORAL | F25: ACES Alentejo Litoral | G25: I03R03 | H25: 96 | I25: 75 | J25: 82 | K25: 68 | L25: 62 | M25: 56 | N25: 69 | O25: 59 | P25: 62 | Q25: 50 | R25: 34 | S25: 37 | T25: 32 | U25: 35 | V25: 42 | W25: 37 | X25: 253 | Y25: 225 | Z25: 212 | AA25: 186 | AB25: 187 | AC25: 184 | AD25: 190 | AE25: 171 | AF25: 146 | AG25: 121 | AH25: 103 | AI25: 104 | AJ25: 109 | AK25: 114 | AL25: 383 | AM25: 296 | AN25: 180 | AO25: 183
A26: I03 | B26: NV <20 anos | C26: A402 | D26: R04 | E26: ALENTEJO CENTRAL I | F26: ACES Alentejo Central I | G26: I03R04 | H26: 54 | I26: 56 | J26: 44 | K26: 44 | L26: 41 | M26: 36 | N26: 29 | O26: 44 | P26: 38 | Q26: 17 | R26: 30 | S26: 16 | T26: 18 | U26: 12 | V26: 14 | W26: 19 | X26: 154 | Y26: 144 | Z26: 129 | AA26: 121 | AB26: 106 | AC26: 109 | AD26: 111 | AE26: 99 | AF26: 85 | AG26: 63 | AH26: 64 | AI26: 46 | AJ26: 44 | AK26: 45 | AL26: 239 | AM26: 164 | AN26: 90 | AO26: 79
A27: I03 | B27: NV <20 anos | C27: A403 | D27: R05 | E27: ALENTEJO CENTRAL II | F27: ACES Alentejo Central II | G27: I03R05 | H27: 96 | I27: 96 | J27: 76 | K27: 86 | L27: 86 | M27: 92 | N27: 78 | O27: 70 | P27: 60 | Q27: 68 | R27: 57 | S27: 64 | T27: 39 | U27: 39 | V27: 37 | W27: 39 | X27: 268 | Y27: 258 | Z27: 248 | AA27: 264 | AB27: 256 | AC27: 240 | AD27: 208 | AE27: 198 | AF27: 185 | AG27: 189 | AH27: 160 | AI27: 142 | AJ27: 115 | AK27: 115 | AL27: 440 | AM27: 368 | AN27: 236 | AO27: 218
A28: I03 | B28: NV <20 anos | C28: A904 | D28: R06 | E28: ALTO ALENTEJO | F28: ULS Norte Alentejano | G28: I03R06 | H28: 104 | I28: 108 | J28: 98 | K28: 97 | L28: 113 | M28: 92 | N28: 106 | O28: 88 | P28: 67 | Q28: 72 | R28: 62 | S28: 53 | T28: 47 | U28: 54 | V28: 60 | W28: 41 | X28: 310 | Y28: 303 | Z28: 308 | AA28: 302 | AB28: 311 | AC28: 286 | AD28: 261 | AE28: 227 | AF28: 201 | AG28: 187 | AH28: 162 | AI28: 154 | AJ28: 161 | AK28: 155 | AL28: 520 | AM28: 425 | AN28: 276 | AO28: 255
A29: I03 | B29: NV <20 anos | C29: A905 | D29: R07 | E29: BAIXO ALENTEJO | F29: ULS Baixo Alentejo | G29: I03R07 | H29: 147 | I29: 161 | J29: 126 | K29: 134 | L29: 117 | M29: 104 | N29: 106 | O29: 101 | P29: 102 | Q29: 89 | R29: 74 | S29: 85 | T29: 87 | U29: 72 | V29: 73 | W29: 84 | X29: 434 | Y29: 421 | Z29: 377 | AA29: 355 | AB29: 327 | AC29: 311 | AD29: 309 | AE29: 292 | AF29: 265 | AG29: 248 | AH29: 246 | AI29: 244 | AJ29: 232 | AK29: 229 | AL29: 685 | AM29: 502 | AN29: 391 | AO29: 401
A30: I04 | B30: Proporção NV <20 anos | C30: CT | D30: R01 | E30: CONTINENTE | F30: Continente | G30: I04R01 | H30: 6.911486669 | I30: 6.556976077 | J30: 6.342120778 | K30: 6.126292501 | L30: 6.012284015 | M30: 5.856553874 | N30: 5.639049098 | O30: 5.225355825 | P30: 5.095393431 | Q30: 4.818216979 | R30: 4.450773721 | S30: 4.507608976 | T30: 4.171335696 | U30: 4.163309444 | V30: 3.875880291 | W30: 3.632497274 | X30: 6.600510062 | Y30: 6.339737767 | Z30: 6.157071939 | AA30: 5.999793425 | AB30: 5.838610441 | AC30: 5.574270107 | AD30: 5.323966979 | AE30: 5.047913318 | AF30: 4.792097689 | AG30: 4.59577815 | AH30: 4.375792624 | AI30: 4.281000048 | AJ30: 4.070614893 | AK30: 3.892868155 | AL30: 6.380821578 | AM30: 5.332314947 | AN30: 4.235712288 | AO30: 4.075174792
A31: I04 | B31: Proporção NV <20 anos | C31: RA | D31: R02 | E31: REGIÃO ALENTEJO | F31: Região Alentejo | G31: I04R02 | H31: 11.31345322 | I31: 10.61416649 | J31: 9.155383623 | K31: 9.151023891 | L31: 8.769359565 | M31: 8.591453764 | N31: 8.54061193 | O31: 7.874700892 | P31: 7.180270624 | Q31: 6.607142857 | R31: 6.26523647 | S31: 6.376594149 | T31: 5.324737345 | U31: 5.250123824 | V31: 5.452352232 | W31: 5.378973105 | X31: 10.34331948 | Y31: 9.64035964 | Z31: 9.023301934 | AA31: 8.841529268 | AB31: 8.636495925 | AC31: 8.331490083 | AD31: 7.863285235 | AE31: 7.226004832 | AF31: 6.700091158 | AG31: 6.422382958 | AH31: 5.980958581 | AI31: 5.644171779 | AJ31: 5.343141217 | AK31: 5.36136234 | AL31: 9.777873625 | AM31: 7.756906077 | AN31: 5.729777257 | AO31: 5.552297165
A32: I04 | B32: Proporção NV <20 anos | C32: A401 | D32: R03 | E32: ALENTEJO LITORAL | F32: ACES Alentejo Litoral | G32: I04R03 | H32: 12.92059219 | I32: 9.615384615 | J32: 10.53984576 | K32: 8.192771084 | L32: 7.721046077 | M32: 7.133757962 | N32: 8.679245283 | O32: 7.082833133 | P32: 7.192575406 | Q32: 6.090133983 | R32: 4.545454545 | S32: 4.933333333 | T32: 3.926380368 | U32: 4.43599493 | V32: 5.097087379 | W32: 4.441776711 | X32: 10.99521947 | Y32: 9.422110553 | Z32: 8.793031937 | AA32: 7.692307692 | AB32: 7.847251364 | AC32: 7.625362619 | AD32: 7.630522088 | AE32: 6.796502385 | AF32: 6.005758947 | AG32: 5.217766279 | AH32: 4.453091224 | AI32: 4.418011895 | AJ32: 4.489291598 | AK32: 4.660670482 | AL32: 9.735638027 | AM32: 7.2265625 | AN32: 4.584819154 | AO32: 4.562453254
A33: I04 | B33: Proporção NV <20 anos | C33: A402 | D33: R04 | E33: ALENTEJO CENTRAL I | F33: ACES Alentejo Central I | G33: I04R04 | H33: 10.95334686 | I33: 11.04536489 | J33: 9.322033898 | K33: 9.185803758 | L33: 8.541666667 | M33: 7.982261641 | N33: 6.304347826 | O33: 9.185803758 | P33: 8.351648352 | Q33: 4.415584416 | R33: 7.389162562 | S33: 4.155844156 | T33: 4.488778055 | U33: 3.269754768 | V33: 3.713527851 | W33: 4.668304668 | X33: 10.46195652 | Y33: 9.87654321 | Z33: 9.014675052 | AA33: 8.581560284 | AB33: 7.620416966 | AC33: 7.841726619 | AD33: 7.962697274 | AE33: 7.505686126 | AF33: 6.821829856 | AG33: 5.357142857 | AH33: 5.369127517 | AI33: 3.989592368 | AJ33: 3.84279476 | AK33: 3.909643788 | AL33: 9.831345125 | AM33: 7.35426009 | AN33: 4.648760331 | AO33: 4.078471864
A34: I04 | B34: Proporção NV <20 anos | C34: A403 | D34: R05 | E34: ALENTEJO CENTRAL II | F34: ACES Alentejo Central II | G34: I04R05 | H34: 9.667673716 | I34: 8.743169399 | J34: 7.082945014 | K34: 7.897153352 | L34: 7.73381295 | M34: 8.923375364 | N34: 7.276119403 | O34: 6.41025641 | P34: 5.434782609 | Q34: 6.313834726 | R34: 5.397727273 | S34: 6.591143151 | T34: 3.857566766 | U34: 4.14893617 | V34: 3.923647932 | W34: 4.07523511 | X34: 8.470290771 | Y34: 7.914110429 | Z34: 7.57483201 | AA34: 8.168316832 | AB34: 7.962674961 | AC34: 7.511737089 | AD34: 6.364749082 | AE34: 6.049495875 | AF34: 5.715168366 | AG34: 6.088917526 | AH34: 5.266622778 | AI34: 4.859685147 | AJ34: 3.97373877 | AK34: 4.049295775 | AL34: 8.201304753 | AM34: 6.845238095 | AN34: 4.795773217 | AO34: 4.520945666
A35: I04 | B35: Proporção NV <20 anos | C35: A904 | D35: R06 | E35: ALTO ALENTEJO | F35: ULS Norte Alentejano | G35: I04R06 | H35: 9.848484848 | I35: 9.747292419 | J35: 9.11627907 | K35: 8.405545927 | L35: 9.851787271 | M35: 8.888888889 | N35: 10.07604563 | O35: 8.669950739 | P35: 6.84371808 | Q35: 7.207207207 | R35: 7.285546416 | S35: 6.608478803 | T35: 5.245535714 | U35: 6.14334471 | V35: 6.564551422 | W35: 4.675028506 | X35: 9.570855202 | Y35: 9.080011987 | Z35: 9.123222749 | AA35: 9.052757794 | AB35: 9.616573902 | AC35: 9.219858156 | AD35: 8.568614576 | AE35: 7.584363515 | AF35: 7.104984093 | AG35: 7.051282051 | AH35: 6.355433503 | AI35: 5.975941017 | AJ35: 5.987355894 | AK35: 5.805243446 | AL35: 9.386281588 | AM35: 8.366141732 | AN35: 6.356517734 | AO35: 5.837912088
A36: I04 | B36: Proporção NV <20 anos | C36: A905 | D36: R07 | E36: BAIXO ALENTEJO | F36: ULS Baixo Alentejo | G36: I04R07 | H36: 13.26714801 | I36: 13.6440678 | J36: 10.03984064 | K36: 11.79577465 | L36: 9.466019417 | M36: 9.277430865 | N36: 9.10652921 | O36: 8.57385399 | P36: 8.629441624 | Q36: 7.429048414 | R36: 7.108549472 | S36: 7.791017415 | T36: 8.169014085 | U36: 6.773283161 | V36: 6.715731371 | W36: 8.267716535 | X36: 12.24950607 | Y36: 11.78941473 | Z36: 10.39426523 | AA36: 10.16318351 | AB36: 9.287134337 | AC36: 8.980652613 | AD36: 8.768444949 | AE36: 8.206857785 | AF36: 7.74627302 | AG36: 7.447447447 | AH36: 7.694713794 | AI36: 7.579993787 | AJ36: 7.216174184 | AK36: 7.233101706 | AL36: 11.58072697 | AM36: 8.591476981 | AN36: 7.312511689 | AO36: 7.534761368
A37: I05 | B37: NV >=35 anos | C37: CT | D37: R01 | E37: CONTINENTE | F37: Continente | G37: I05R01 | H37: 10786 | I37: 11696 | J37: 12459 | K37: 13900 | L37: 14974 | M37: 14861 | N37: 15577 | O37: 15961 | P37: 16244 | Q37: 16965 | R37: 17413 | S37: 17905 | T37: 19094 | U37: 19415 | V37: 21147 | W37: 22106 | X37: 34941 | Y37: 38055 | Z37: 41333 | AA37: 43735 | AB37: 45412 | AC37: 46399 | AD37: 47782 | AE37: 49170 | AF37: 50622 | AG37: 52283 | AH37: 54412 | AI37: 56414 | AJ37: 59656 | AK37: 62668 | AL37: 63815 | AM37: 79608 | AN37: 94974 | AO37: 99667
A38: I05 | B38: NV >=35 anos | C38: RA | D38: R02 | E38: REGIÃO ALENTEJO | F38: Região Alentejo | G38: I05R02 | H38: 407 | I38: 462 | J38: 476 | K38: 529 | L38: 610 | M38: 579 | N38: 549 | O38: 637 | P38: 665 | Q38: 648 | R38: 648 | S38: 633 | T38: 738 | U38: 740 | V38: 806 | W38: 862 | X38: 1345 | Y38: 1467 | Z38: 1615 | AA38: 1718 | AB38: 1738 | AC38: 1765 | AD38: 1851 | AE38: 1950 | AF38: 1961 | AG38: 1929 | AH38: 2019 | AI38: 2111 | AJ38: 2284 | AK38: 2408 | AL38: 2484 | AM38: 3078 | AN38: 3565 | AO38: 3779
A39: I05 | B39: NV >=35 anos | C39: A401 | D39: R03 | E39: ALENTEJO LITORAL | F39: ACES Alentejo Litoral | G39: I05R03 | H39: 83 | I39: 91 | J39: 95 | K39: 119 | L39: 115 | M39: 114 | N39: 109 | O39: 133 | P39: 150 | Q39: 108 | R39: 121 | S39: 112 | T39: 148 | U39: 124 | V39: 155 | W39: 174 | X39: 269 | Y39: 305 | Z39: 329 | AA39: 348 | AB39: 338 | AC39: 356 | AD39: 392 | AE39: 391 | AF39: 379 | AG39: 341 | AH39: 381 | AI39: 384 | AJ39: 427 | AK39: 453 | AL39: 503 | AM39: 614 | AN39: 660 | AO39: 713
A40: I05 | B40: NV >=35 anos | C40: A402 | D40: R04 | E40: ALENTEJO CENTRAL I | F40: ACES Alentejo Central I | G40: I05R04 | H40: 38 | I40: 50 | J40: 38 | K40: 51 | L40: 45 | M40: 53 | N40: 58 | O40: 59 | P40: 54 | Q40: 50 | R40: 56 | S40: 56 | T40: 64 | U40: 68 | V40: 82 | W40: 86 | X40: 126 | Y40: 139 | Z40: 134 | AA40: 149 | AB40: 156 | AC40: 170 | AD40: 171 | AE40: 163 | AF40: 160 | AG40: 162 | AH40: 176 | AI40: 188 | AJ40: 214 | AK40: 236 | AL40: 222 | AM40: 274 | AN40: 326 | AO40: 356
A41: I05 | B41: NV >=35 anos | C41: A403 | D41: R05 | E41: ALENTEJO CENTRAL II | F41: ACES Alentejo Central II | G41: I05R05 | H41: 86 | I41: 114 | J41: 97 | K41: 131 | L41: 136 | M41: 133 | N41: 114 | O41: 134 | P41: 159 | Q41: 150 | R41: 159 | S41: 142 | T41: 190 | U41: 191 | V41: 208 | W41: 215 | X41: 297 | Y41: 342 | Z41: 364 | AA41: 400 | AB41: 383 | AC41: 381 | AD41: 407 | AE41: 443 | AF41: 468 | AG41: 451 | AH41: 491 | AI41: 523 | AJ41: 589 | AK41: 614 | AL41: 564 | AM41: 690 | AN41: 890 | AO41: 946
A42: I05 | B42: NV >=35 anos | C42: A904 | D42: R06 | E42: ALTO ALENTEJO | F42: ULS Norte Alentejano | G42: I05R06 | H42: 104 | I42: 102 | J42: 104 | K42: 117 | L42: 156 | M42: 133 | N42: 126 | O42: 126 | P42: 143 | Q42: 145 | R42: 127 | S42: 138 | T42: 150 | U42: 167 | V42: 145 | W42: 186 | X42: 310 | Y42: 323 | Z42: 377 | AA42: 406 | AB42: 415 | AC42: 385 | AD42: 395 | AE42: 414 | AF42: 415 | AG42: 410 | AH42: 415 | AI42: 455 | AJ42: 462 | AK42: 498 | AL42: 583 | AM42: 673 | AN42: 727 | AO42: 786
A43: I05 | B43: NV >=35 anos | C43: A905 | D43: R07 | E43: BAIXO ALENTEJO | F43: ULS Baixo Alentejo | G43: I05R07 | H43: 96 | I43: 105 | J43: 142 | K43: 111 | L43: 158 | M43: 146 | N43: 142 | O43: 185 | P43: 159 | Q43: 195 | R43: 185 | S43: 185 | T43: 186 | U43: 190 | V43: 216 | W43: 201 | X43: 343 | Y43: 358 | Z43: 411 | AA43: 415 | AB43: 446 | AC43: 473 | AD43: 486 | AE43: 539 | AF43: 539 | AG43: 565 | AH43: 556 | AI43: 561 | AJ43: 592 | AK43: 607 | AL43: 612 | AM43: 827 | AN43: 962 | AO43: 978
A44: I06 | B44: Proporção NV >=35 anos | C44: CT | D44: R01 | E44: CONTINENTE | F44: Continente | G44: I06R01 | H44: 10.40436779 | I44: 11.00292571 | J44: 11.65950757 | K44: 12.70787431 | L44: 13.21414074 | M44: 13.95674264 | N44: 14.3975525 | O44: 15.024663 | P44: 15.72370268 | Q44: 16.40398376 | R44: 17.46311915 | S44: 18.47304617 | T44: 19.27577052 | U44: 20.5833086 | V44: 21.99764909 | W44: 24.10687023 | X44: 11.02852057 | Y44: 11.79864636 | Z44: 12.54202624 | AA44: 13.28612483 | AB44: 13.84558628 | AC44: 14.45888633 | AD44: 15.03841276 | AE44: 15.7112228 | AF44: 16.51927608 | AG44: 17.42429797 | AH44: 18.40139333 | AI44: 19.43259871 | AJ44: 20.60556657 | AK44: 22.21032971 | AL44: 11.8280407 | AM44: 15.08778846 | AN44: 19.53586533 | AO44: 20.84477526
A45: I06 | B45: Proporção NV >=35 anos | C45: RA | D45: R02 | E45: REGIÃO ALENTEJO | F45: Região Alentejo | G45: I06R02 | H45: 9.264739358 | I45: 9.886582495 | J45: 10.22995917 | K45: 11.28412969 | L45: 12.76684805 | M45: 13.09066245 | N45: 12.08452564 | O45: 13.85686317 | P45: 14.51331296 | Q45: 14.46428571 | R45: 15.79717211 | S45: 15.82895724 | T45: 17.6217765 | U45: 18.32590391 | V45: 19.4451146 | W45: 21.07579462 | X45: 9.803921569 | Y45: 10.46810333 | Z45: 11.43848714 | AA45: 12.36950104 | AB45: 12.64551804 | AC45: 13.01334513 | AD45: 13.48928728 | AE45: 14.27630134 | AF45: 14.89668794 | AG45: 15.33264446 | AH45: 16.42932704 | AI45: 17.26789366 | AJ45: 18.46253334 | AK45: 19.62030473 | AL45: 10.71382359 | AM45: 13.60441989 | AN45: 17.41402892 | AO45: 18.47018573
A46: I06 | B46: Proporção NV >=35 anos | C46: A401 | D46: R03 | E46: ALENTEJO LITORAL | F46: ACES Alentejo Litoral | G46: I06R03 | H46: 11.17092867 | I46: 11.66666667 | J46: 12.21079692 | K46: 14.3373494 | L46: 14.32129514 | M46: 14.52229299 | N46: 13.71069182 | O46: 15.96638655 | P46: 17.40139211 | Q46: 13.1546894 | R46: 16.17647059 | S46: 14.93333333 | T46: 18.1595092 | U46: 15.71609632 | V46: 18.81067961 | W46: 20.88835534 | X46: 11.69056932 | Y46: 12.7721943 | Z46: 13.64579013 | AA46: 14.39205955 | AB46: 14.18380193 | AC46: 14.75341898 | AD46: 15.74297189 | AE46: 15.54054054 | AF46: 15.59029206 | AG46: 14.70461406 | AH46: 16.47211414 | AI46: 16.3126593 | AJ46: 17.58649094 | AK46: 18.52003271 | AL46: 12.78596848 | AM46: 14.99023438 | AN46: 16.81100357 | AO46: 17.77611568
A47: I06 | B47: Proporção NV >=35 anos | C47: A402 | D47: R04 | E47: ALENTEJO CENTRAL I | F47: ACES Alentejo Central I | G47: I06R04 | H47: 7.707910751 | I47: 9.861932939 | J47: 8.050847458 | K47: 10.64718163 | L47: 9.375 | M47: 11.75166297 | N47: 12.60869565 | O47: 12.31732777 | P47: 11.86813187 | Q47: 12.98701299 | R47: 13.79310345 | S47: 14.54545455 | T47: 15.96009975 | U47: 18.52861035 | V47: 21.75066313 | W47: 21.13022113 | X47: 8.559782609 | Y47: 9.533607682 | Z47: 9.364081062 | AA47: 10.56737589 | AB47: 11.21495327 | AC47: 12.23021583 | AD47: 12.26685796 | AE47: 12.35784685 | AF47: 12.84109149 | AG47: 13.7755102 | AH47: 14.76510067 | AI47: 16.30529055 | AJ47: 18.68995633 | AK47: 20.50390964 | AL47: 9.132044426 | AM47: 12.28699552 | AN47: 16.83884298 | AO47: 18.3789365
A48: I06 | B48: Proporção NV >=35 anos | C48: A403 | D48: R05 | E48: ALENTEJO CENTRAL II | F48: ACES Alentejo Central II | G48: I06R05 | H48: 8.660624371 | I48: 10.38251366 | J48: 9.040074557 | K48: 12.02938476 | L48: 12.23021583 | M48: 12.90009699 | N48: 10.63432836 | O48: 12.27106227 | P48: 14.40217391 | Q48: 13.9275766 | R48: 15.05681818 | S48: 14.62409887 | T48: 18.79327399 | U48: 20.31914894 | V48: 22.05726405 | W48: 22.46603971 | X48: 9.386852086 | Y48: 10.49079755 | Z48: 11.11789859 | AA48: 12.37623762 | AB48: 11.91290824 | AC48: 11.92488263 | AD48: 12.45410037 | AE48: 13.5349832 | AF48: 14.45783133 | AG48: 14.52963918 | AH48: 16.16194865 | AI48: 17.89869952 | AJ48: 20.35245335 | AK48: 21.61971831 | AL48: 10.51258155 | AM48: 12.83482143 | AN48: 18.08575493 | AO48: 19.6184156
A49: I06 | B49: Proporção NV >=35 anos | C49: A904 | D49: R06 | E49: ALTO ALENTEJO | F49: ULS Norte Alentejano | G49: I06R06 | H49: 9.848484848 | I49: 9.205776173 | J49: 9.674418605 | K49: 10.13864818 | L49: 13.60069747 | M49: 12.85024155 | N49: 11.97718631 | O49: 12.4137931 | P49: 14.60674157 | Q49: 14.51451451 | R49: 14.92361927 | S49: 17.20698254 | T49: 16.74107143 | U49: 18.99886234 | V49: 15.8643326 | W49: 21.20866591 | X49: 9.570855202 | Y49: 9.679352712 | Z49: 11.16706161 | AA49: 12.17026379 | AB49: 12.83240569 | AC49: 12.41134752 | AD49: 12.96782666 | AE49: 13.83227531 | AF49: 14.66949452 | AG49: 15.46003017 | AH49: 16.28089447 | AI49: 17.65618937 | AJ49: 17.18110822 | AK49: 18.65168539 | AL49: 10.5234657 | AM49: 13.2480315 | AN49: 16.7434362 | AO49: 17.99450549
A50: I06 | B50: Proporção NV >=35 anos | C50: A905 | D50: R07 | E50: BAIXO ALENTEJO | F50: ULS Baixo Alentejo | G50: I06R07 | H50: 8.664259928 | I50: 8.898305085 | J50: 11.31474104 | K50: 9.771126761 | L50: 12.78317152 | M50: 13.02408564 | N50: 12.19931271 | O50: 15.70458404 | P50: 13.45177665 | Q50: 16.27712855 | R50: 17.77137368 | S50: 16.95692026 | T50: 17.46478873 | U50: 17.87394167 | V50: 19.87120515 | W50: 19.78346457 | X50: 9.681061248 | Y50: 10.02520302 | Z50: 11.33167907 | AA50: 11.88090467 | AB50: 12.66685601 | AC50: 13.65867745 | AD50: 13.79114642 | AE50: 15.14896009 | AF50: 15.75562701 | AG50: 16.96696697 | AH50: 17.39130435 | AI50: 17.4277726 | AJ50: 18.41368585 | AK50: 19.17245736 | AL50: 10.3465765 | AM50: 14.15368817 | AN50: 17.99139705 | AO50: 18.37655017
A51: I07 | B51: Nascimentos pré-termo | C51: CT | D51: R01 | E51: CONTINENTE | F51: Continente | G51: I07R01 | H51: na | I51: na | J51: na | K51: na | L51: 6726 | M51: 6041 | N51: 7001 | O51: 7347 | P51: 7050 | Q51: 6814 | R51: 7900 | S51: 8801 | T51: 8922 | U51: 8289 | V51: 7452 | W51: 6890 | X51: na | Y51: na | Z51: na | AA51: na | AB51: 19768 | AC51: 20389 | AD51: 21398 | AE51: 21211 | AF51: 21764 | AG51: 23515 | AH51: 25623 | AI51: 26012 | AJ51: 24663 | AK51: 22631 | AL51: 6726 | AM51: 34253 | AN51: 41364 | AO51: 40354
A52: I07 | B52: Nascimentos pré-termo | C52: RA | D52: R02 | E52: REGIÃO ALENTEJO | F52: Região Alentejo | G52: I07R02 | H52: na | I52: na | J52: na | K52: na | L52: 295 | M52: 258 | N52: 307 | O52: 308 | P52: 306 | Q52: 322 | R52: 303 | S52: 396 | T52: 354 | U52: 326 | V52: 324 | W52: 266 | X52: na | Y52: na | Z52: na | AA52: na | AB52: 860 | AC52: 873 | AD52: 921 | AE52: 936 | AF52: 931 | AG52: 1021 | AH52: 1053 | AI52: 1076 | AJ52: 1004 | AK52: 916 | AL52: 295 | AM52: 1501 | AN52: 1703 | AO52: 1666
A53: I07 | B53: Nascimentos pré-termo | C53: A401 | D53: R03 | E53: ALENTEJO LITORAL | F53: ACES Alentejo Litoral | G53: I07R03 | H53: na | I53: na | J53: na | K53: na | L53: 44 | M53: 40 | N53: 47 | O53: 54 | P53: 75 | Q53: 54 | R53: 78 | S53: 72 | T53: 70 | U53: 62 | V53: 63 | W53: 56 | X53: na | Y53: na | Z53: na | AA53: na | AB53: 131 | AC53: 141 | AD53: 176 | AE53: 183 | AF53: 207 | AG53: 204 | AH53: 220 | AI53: 204 | AJ53: 195 | AK53: 181 | AL53: 44 | AM53: 270 | AN53: 345 | AO53: 323
A54: I07 | B54: Nascimentos pré-termo | C54: A402 | D54: R04 | E54: ALENTEJO CENTRAL I | F54: ACES Alentejo Central I | G54: I07R04 | H54: na | I54: na | J54: na | K54: na | L54: 28 | M54: 30 | N54: 37 | O54: 28 | P54: 29 | Q54: 31 | R54: 25 | S54: 40 | T54: 40 | U54: 31 | V54: 35 | W54: 19 | X54: na | Y54: na | Z54: na | AA54: na | AB54: 95 | AC54: 95 | AD54: 94 | AE54: 88 | AF54: 85 | AG54: 96 | AH54: 105 | AI54: 111 | AJ54: 106 | AK54: 85 | AL54: 28 | AM54: 155 | AN54: 171 | AO54: 165
A55: I07 | B55: Nascimentos pré-termo | C55: A403 | D55: R05 | E55: ALENTEJO CENTRAL II | F55: ACES Alentejo Central II | G55: I07R05 | H55: na | I55: na | J55: na | K55: na | L55: 57 | M55: 69 | N55: 84 | O55: 71 | P55: 70 | Q55: 76 | R55: 69 | S55: 91 | T55: 79 | U55: 73 | V55: 67 | W55: 61 | X55: na | Y55: na | Z55: na | AA55: na | AB55: 210 | AC55: 224 | AD55: 225 | AE55: 217 | AF55: 215 | AG55: 236 | AH55: 239 | AI55: 243 | AJ55: 219 | AK55: 201 | AL55: 57 | AM55: 370 | AN55: 379 | AO55: 371
A56: I07 | B56: Nascimentos pré-termo | C56: A904 | D56: R06 | E56: ALTO ALENTEJO | F56: ULS Norte Alentejano | G56: I07R06 | H56: na | I56: na | J56: na | K56: na | L56: 76 | M56: 54 | N56: 59 | O56: 70 | P56: 54 | Q56: 70 | R56: 61 | S56: 82 | T56: 57 | U56: 67 | V56: 62 | W56: 61 | X56: na | Y56: na | Z56: na | AA56: na | AB56: 189 | AC56: 183 | AD56: 183 | AE56: 194 | AF56: 185 | AG56: 213 | AH56: 200 | AI56: 206 | AJ56: 186 | AK56: 190 | AL56: 76 | AM56: 307 | AN56: 329 | AO56: 329
A57: I07 | B57: Nascimentos pré-termo | C57: A905 | D57: R07 | E57: BAIXO ALENTEJO | F57: ULS Baixo Alentejo | G57: I07R07 | H57: na | I57: na | J57: na | K57: na | L57: 90 | M57: 65 | N57: 80 | O57: 85 | P57: 78 | Q57: 91 | R57: 70 | S57: 111 | T57: 108 | U57: 93 | V57: 97 | W57: 69 | X57: na | Y57: na | Z57: na | AA57: na | AB57: 235 | AC57: 230 | AD57: 243 | AE57: 254 | AF57: 239 | AG57: 272 | AH57: 289 | AI57: 312 | AJ57: 298 | AK57: 259 | AL57: 90 | AM57: 399 | AN57: 479 | AO57: 478
A58: I08 | B58: Proporção nascimentos pré-termo | C58: CT | D58: R01 | E58: CONTINENTE | F58: Continente | G58: I08R01 | H58: 0 | I58: 0 | J58: 0 | K58: 0 | L58: 5.935508922 | M58: 5.673419172 | N58: 6.470903579 | O58: 6.91599518 | P58: 6.824187631 | Q58: 6.588667569 | R58: 7.922738259 | S58: 9.080216662 | T58: 9.006935401 | U58: 8.787795259 | V58: 7.751760582 | W58: 7.513631407 | X58: 0 | Y58: 0 | Z58: 0 | AA58: 0 | AB58: 6.027031394 | AC58: 6.353633341 | AD58: 6.734585328 | AE58: 6.7775218 | AF58: 7.102159626 | AG58: 7.836818215 | AH58: 8.66534774 | AI58: 8.960200616 | AJ58: 8.518759024 | AK58: 8.020711873 | AL58: 1.246656769 | AM58: 6.491835218 | AN58: 8.508450032 | AO58: 8.439805161
A59: I08 | B59: Proporção nascimentos pré-termo | C59: RA | D59: R02 | E59: REGIÃO ALENTEJO | F59: Região Alentejo | G59: I08R02 | H59: 0 | I59: 0 | J59: 0 | K59: 0 | L59: 6.174131436 | M59: 5.833144924 | N59: 6.757649131 | O59: 6.700021753 | P59: 6.678306416 | Q59: 7.1875 | R59: 7.386640663 | S59: 9.902475619 | T59: 8.452722063 | U59: 8.073303616 | V59: 7.816646562 | W59: 6.503667482 | X59: 0 | Y59: 0 | Z59: 0 | AA59: 0 | AB59: 6.257275902 | AC59: 6.436629064 | AD59: 6.711849585 | AE59: 6.852624643 | AF59: 7.072318444 | AG59: 8.115412129 | AH59: 8.56863862 | AI59: 8.801635992 | AJ59: 8.115754587 | AK59: 7.463537847 | AL59: 1.27237438 | AM59: 6.634254144 | AN59: 8.318679172 | AO59: 8.142717498
A60: I08 | B60: Proporção nascimentos pré-termo | C60: A401 | D60: R03 | E60: ALENTEJO LITORAL | F60: ACES Alentejo Litoral | G60: I08R03 | H60: 0 | I60: 0 | J60: 0 | K60: 0 | L60: 5.479452055 | M60: 5.095541401 | N60: 5.911949686 | O60: 6.482593037 | P60: 8.700696056 | Q60: 6.577344702 | R60: 10.42780749 | S60: 9.6 | T60: 8.588957055 | U60: 7.858048162 | V60: 7.645631068 | W60: 6.722689076 | X60: 0 | Y60: 0 | Z60: 0 | AA60: 0 | AB60: 5.497272346 | AC60: 5.843348529 | AD60: 7.068273092 | AE60: 7.273449921 | AF60: 8.515014397 | AG60: 8.796895213 | AH60: 9.511456982 | AI60: 8.666100255 | AJ60: 8.031301483 | AK60: 7.399836468 | AL60: 1.118454499 | AM60: 6.591796875 | AN60: 8.787570046 | AO60: 8.05285465
A61: I08 | B61: Proporção nascimentos pré-termo | C61: A402 | D61: R04 | E61: ALENTEJO CENTRAL I | F61: ACES Alentejo Central I | G61: I08R04 | H61: 0 | I61: 0 | J61: 0 | K61: 0 | L61: 5.833333333 | M61: 6.651884701 | N61: 8.043478261 | O61: 5.845511482 | P61: 6.373626374 | Q61: 8.051948052 | R61: 6.157635468 | S61: 10.38961039 | T61: 9.975062344 | U61: 8.446866485 | V61: 9.283819629 | W61: 4.668304668 | X61: 0 | Y61: 0 | Z61: 0 | AA61: 0 | AB61: 6.829618979 | AC61: 6.834532374 | AD61: 6.743185079 | AE61: 6.671721001 | AF61: 6.821829856 | AG61: 8.163265306 | AH61: 8.808724832 | AI61: 9.627059844 | AJ61: 9.257641921 | AK61: 7.384882711 | AL61: 1.151789387 | AM61: 6.950672646 | AN61: 8.832644628 | AO61: 8.51832731
A62: I08 | B62: Proporção nascimentos pré-termo | C62: A403 | D62: R05 | E62: ALENTEJO CENTRAL II | F62: ACES Alentejo Central II | G62: I08R05 | H62: 0 | I62: 0 | J62: 0 | K62: 0 | L62: 5.125899281 | M62: 6.692531523 | N62: 7.835820896 | O62: 6.501831502 | P62: 6.34057971 | Q62: 7.056638812 | R62: 6.534090909 | S62: 9.371781668 | T62: 7.8140455 | U62: 7.765957447 | V62: 7.104984093 | W62: 6.374085684 | X62: 0 | Y62: 0 | Z62: 0 | AA62: 0 | AB62: 6.531881804 | AC62: 7.010954617 | AD62: 6.88494492 | AE62: 6.630003055 | AF62: 6.641952425 | AG62: 7.603092784 | AH62: 7.867017775 | AI62: 8.316221766 | AJ62: 7.567380788 | AK62: 7.077464789 | AL62: 1.062441752 | AM62: 6.882440476 | AN62: 7.701686649 | AO62: 7.693902945
A63: I08 | B63: Proporção nascimentos pré-termo | C63: A904 | D63: R06 | E63: ALTO ALENTEJO | F63: ULS Norte Alentejano | G63: I08R06 | H63: 0 | I63: 0 | J63: 0 | K63: 0 | L63: 6.62598082 | M63: 5.217391304 | N63: 5.608365019 | O63: 6.896551724 | P63: 5.515832482 | Q63: 7.007007007 | R63: 7.168037603 | S63: 10.2244389 | T63: 6.361607143 | U63: 7.622298066 | V63: 6.783369803 | W63: 6.955530217 | X63: 0 | Y63: 0 | Z63: 0 | AA63: 0 | AB63: 5.844155844 | AC63: 5.899419729 | AD63: 6.007879186 | AE63: 6.481790845 | AF63: 6.53941322 | AG63: 8.031674208 | AH63: 7.846214202 | AI63: 7.99379123 | AJ63: 6.917069543 | AK63: 7.116104869 | AL63: 1.371841155 | AM63: 6.043307087 | AN63: 7.577153386 | AO63: 7.532051282
A64: I08 | B64: Proporção nascimentos pré-termo | C64: A905 | D64: R07 | E64: BAIXO ALENTEJO | F64: ULS Baixo Alentejo | G64: I08R07 | H64: 0 | I64: 0 | J64: 0 | K64: 0 | L64: 7.281553398 | M64: 5.798394291 | N64: 6.872852234 | O64: 7.215619694 | P64: 6.598984772 | Q64: 7.595993322 | R64: 6.724303554 | S64: 10.17415215 | T64: 10.14084507 | U64: 8.748824083 | V64: 8.923643054 | W64: 6.791338583 | X64: 0 | Y64: 0 | Z64: 0 | AA64: 0 | AB64: 6.674240273 | AC64: 6.641640196 | AD64: 6.895573212 | AE64: 7.138842046 | AF64: 6.986261327 | AG64: 8.168168168 | AH64: 9.039724742 | AI64: 9.692451072 | AJ64: 9.269051322 | AK64: 8.180669615 | AL64: 1.521555368 | AM64: 6.828683895 | AN64: 8.958294371 | AO64: 8.98158587
A65: I09 | B65: Baixo Peso à Nascença | C65: CT | D65: R01 | E65: CONTINENTE | F65: Continente | G65: I09R01 | H65: 6600 | I65: 6923 | J65: 7148 | K65: 8127 | L65: 8031 | M65: 7645 | N65: 7937 | O65: 7862 | P65: 7850 | Q65: 7779 | R65: 7547 | S65: 7623 | T65: 7640 | U65: 7724 | V65: 8035 | W65: 7733 | X65: 20671 | Y65: 22198 | Z65: 23306 | AA65: 23803 | AB65: 23613 | AC65: 23444 | AD65: 23649 | AE65: 23491 | AF65: 23176 | AG65: 22949 | AH65: 22810 | AI65: 22987 | AJ65: 23399 | AK65: 23492 | AL65: 36829 | AM65: 39073 | AN65: 38569 | AO65: 38755
A66: I09 | B66: Baixo Peso à Nascença | C66: RA | D66: R02 | E66: REGIÃO ALENTEJO | F66: Região Alentejo | G66: I09R02 | H66: 283 | I66: 320 | J66: 335 | K66: 371 | L66: 369 | M66: 339 | N66: 327 | O66: 332 | P66: 375 | Q66: 345 | R66: 361 | S66: 325 | T66: 359 | U66: 347 | V66: 390 | W66: 346 | X66: 938 | Y66: 1026 | Z66: 1075 | AA66: 1079 | AB66: 1035 | AC66: 998 | AD66: 1034 | AE66: 1052 | AF66: 1081 | AG66: 1031 | AH66: 1045 | AI66: 1031 | AJ66: 1096 | AK66: 1083 | AL66: 1678 | AM66: 1718 | AN66: 1782 | AO66: 1767
A67: I09 | B67: Baixo Peso à Nascença | C67: A401 | D67: R03 | E67: ALENTEJO LITORAL | F67: ACES Alentejo Litoral | G67: I09R03 | H67: 56 | I67: 51 | J67: 57 | K67: 55 | L67: 60 | M67: 60 | N67: 66 | O67: 61 | P67: 78 | Q67: 65 | R67: 74 | S67: 62 | T67: 68 | U67: 65 | V67: 76 | W67: 74 | X67: 164 | Y67: 163 | Z67: 172 | AA67: 175 | AB67: 186 | AC67: 187 | AD67: 205 | AE67: 204 | AF67: 217 | AG67: 201 | AH67: 204 | AI67: 195 | AJ67: 209 | AK67: 215 | AL67: 279 | AM67: 330 | AN67: 345 | AO67: 345
A68: I09 | B68: Baixo Peso à Nascença | C68: A402 | D68: R04 | E68: ALENTEJO CENTRAL I | F68: ACES Alentejo Central I | G68: I09R04 | H68: 32 | I68: 34 | J68: 38 | K68: 39 | L68: 33 | M68: 33 | N68: 40 | O68: 39 | P68: 38 | Q68: 37 | R68: 34 | S68: 24 | T68: 41 | U68: 31 | V68: 32 | W68: 34 | X68: 104 | Y68: 111 | Z68: 110 | AA68: 105 | AB68: 106 | AC68: 112 | AD68: 117 | AE68: 114 | AF68: 109 | AG68: 95 | AH68: 99 | AI68: 96 | AJ68: 104 | AK68: 97 | AL68: 176 | AM68: 187 | AN68: 162 | AO68: 162
A69: I09 | B69: Baixo Peso à Nascença | C69: A403 | D69: R05 | E69: ALENTEJO CENTRAL II | F69: ACES Alentejo Central II | G69: I09R05 | H69: 54 | I69: 74 | J69: 75 | K69: 89 | L69: 70 | M69: 94 | N69: 79 | O69: 84 | P69: 109 | Q69: 80 | R69: 96 | S69: 93 | T69: 93 | U69: 73 | V69: 94 | W69: 88 | X69: 203 | Y69: 238 | Z69: 234 | AA69: 253 | AB69: 243 | AC69: 257 | AD69: 272 | AE69: 273 | AF69: 285 | AG69: 269 | AH69: 282 | AI69: 259 | AJ69: 260 | AK69: 255 | AL69: 362 | AM69: 446 | AN69: 449 | AO69: 441
A70: I09 | B70: Baixo Peso à Nascença | C70: A904 | D70: R06 | E70: ALTO ALENTEJO | F70: ULS Norte Alentejano | G70: I09R06 | H70: 72 | I70: 90 | J70: 85 | K70: 97 | L70: 98 | M70: 81 | N70: 66 | O70: 77 | P70: 62 | Q70: 76 | R70: 78 | S70: 57 | T70: 57 | U70: 79 | V70: 76 | W70: 70 | X70: 247 | Y70: 272 | Z70: 280 | AA70: 276 | AB70: 245 | AC70: 224 | AD70: 205 | AE70: 215 | AF70: 216 | AG70: 211 | AH70: 192 | AI70: 193 | AJ70: 212 | AK70: 225 | AL70: 442 | AM70: 362 | AN70: 347 | AO70: 339
A71: I09 | B71: Baixo Peso à Nascença | C71: A905 | D71: R07 | E71: BAIXO ALENTEJO | F71: ULS Baixo Alentejo | G71: I09R07 | H71: 69 | I71: 71 | J71: 80 | K71: 91 | L71: 108 | M71: 71 | N71: 76 | O71: 71 | P71: 88 | Q71: 87 | R71: 79 | S71: 89 | T71: 100 | U71: 99 | V71: 112 | W71: 80 | X71: 220 | Y71: 242 | Z71: 279 | AA71: 270 | AB71: 255 | AC71: 218 | AD71: 235 | AE71: 246 | AF71: 254 | AG71: 255 | AH71: 268 | AI71: 288 | AJ71: 311 | AK71: 291 | AL71: 419 | AM71: 393 | AN71: 479 | AO71: 480
A72: I10 | B72: Proporção de Baixo Peso à Nascença | C72: CT | D72: R01 | E72: CONTINENTE | F72: Continente | G72: I10R01 | H72: 6.366477602 | I72: 6.512761174 | J72: 6.689313756 | K72: 7.429992412 | L72: 7.087135318 | M72: 7.179819495 | N72: 7.336032239 | O72: 7.400783192 | P72: 7.598563533 | Q72: 7.521755947 | R72: 7.568722233 | S72: 7.864843952 | T72: 7.712731054 | U72: 8.188796065 | V72: 8.35821206 | W72: 8.432933479 | X72: 6.524442593 | Y72: 6.882311177 | Z72: 7.071939215 | AA72: 7.231042172 | AB72: 7.199326807 | AC72: 7.305634413 | AD72: 7.443041799 | AE72: 7.506047079 | AF72: 7.562931974 | AG72: 7.648188017 | AH72: 7.714029659 | AI72: 7.918196661 | AJ72: 8.082165284 | AK72: 8.325861134 | AL72: 6.826215008 | AM72: 7.405350699 | AN72: 7.933526963 | AO72: 8.105383581
A73: I10 | B73: Proporção de Baixo Peso à Nascença | C73: RA | D73: R02 | E73: REGIÃO ALENTEJO | F73: Região Alentejo | G73: I10R02 | H73: 6.442066925 | I73: 6.847849347 | J73: 7.199656136 | K73: 7.913822526 | L73: 7.722896609 | M73: 7.664481121 | N73: 7.197886859 | O73: 7.22210137 | P73: 8.18419904 | Q73: 7.700892857 | R73: 8.80058508 | S73: 8.127031758 | T73: 8.572110793 | U73: 8.593363051 | V73: 9.408926417 | W73: 8.459657702 | X73: 6.837233034 | Y73: 7.321250178 | Z73: 7.613853672 | AA73: 7.76873785 | AB73: 7.530558789 | AC73: 7.358254074 | AD73: 7.535344702 | AE73: 7.701881543 | AF73: 8.21178973 | AG73: 8.194897067 | AH73: 8.503539751 | AI73: 8.433537832 | AJ73: 8.85942931 | AK73: 8.82424835 | AL73: 7.237437999 | AM73: 7.593370166 | AN73: 8.704572098 | AO73: 8.636363636
A74: I10 | B74: Proporção de Baixo Peso à Nascença | C74: A401 | D74: R03 | E74: ALENTEJO LITORAL | F74: ACES Alentejo Litoral | G74: I10R03 | H74: 7.537012113 | I74: 6.538461538 | J74: 7.326478149 | K74: 6.626506024 | L74: 7.471980075 | M74: 7.643312102 | N74: 8.301886792 | O74: 7.322929172 | P74: 9.048723898 | Q74: 7.917174178 | R74: 9.893048128 | S74: 8.266666667 | T74: 8.343558282 | U74: 8.238276299 | V74: 9.223300971 | W74: 8.883553421 | X74: 7.127335941 | Y74: 6.825795645 | Z74: 7.133969307 | AA74: 7.23738627 | AB74: 7.805287453 | AC74: 7.749689184 | AD74: 8.232931727 | AE74: 8.108108108 | AF74: 8.92636775 | AG74: 8.667529107 | AH74: 8.819714656 | AI74: 8.283772302 | AJ74: 8.607907743 | AK74: 8.789860998 | AL74: 7.092018302 | AM74: 8.056640625 | AN74: 8.787570046 | AO74: 8.601346298
A75: I10 | B75: Proporção de Baixo Peso à Nascença | C75: A402 | D75: R04 | E75: ALENTEJO CENTRAL I | F75: ACES Alentejo Central I | G75: I10R04 | H75: 6.490872211 | I75: 6.706114398 | J75: 8.050847458 | K75: 8.141962422 | L75: 6.875 | M75: 7.317073171 | N75: 8.695652174 | O75: 8.141962422 | P75: 8.351648352 | Q75: 9.61038961 | R75: 8.374384236 | S75: 6.233766234 | T75: 10.2244389 | U75: 8.446866485 | V75: 8.48806366 | W75: 8.353808354 | X75: 7.065217391 | Y75: 7.613168724 | Z75: 7.686932215 | AA75: 7.446808511 | AB75: 7.620416966 | AC75: 8.057553957 | AD75: 8.393113343 | AE75: 8.642911296 | AF75: 8.747993579 | AG75: 8.078231293 | AH75: 8.305369128 | AI75: 8.326105811 | AJ75: 9.082969432 | AK75: 8.427454387 | AL75: 7.239819005 | AM75: 8.385650224 | AN75: 8.367768595 | AO75: 8.363448632
A76: I10 | B76: Proporção de Baixo Peso à Nascença | C76: A403 | D76: R05 | E76: ALENTEJO CENTRAL II | F76: ACES Alentejo Central II | G76: I10R05 | H76: 5.438066465 | I76: 6.739526412 | J76: 6.989748369 | K76: 8.172635445 | L76: 6.294964029 | M76: 9.117361785 | N76: 7.369402985 | O76: 7.692307692 | P76: 9.873188406 | Q76: 7.428040854 | R76: 9.090909091 | S76: 9.577754892 | T76: 9.198813056 | U76: 7.765957447 | V76: 9.968186638 | W76: 9.195402299 | X76: 6.415929204 | Y76: 7.300613497 | Z76: 7.147220525 | AA76: 7.827970297 | AB76: 7.558320373 | AC76: 8.043818466 | AD76: 8.323133415 | AE76: 8.340971586 | AF76: 8.804448563 | AG76: 8.666237113 | AH76: 9.282422646 | AI76: 8.863791923 | AJ76: 8.984105045 | AK76: 8.978873239 | AL76: 6.747437092 | AM76: 8.296130952 | AN76: 9.124161756 | AO76: 9.145582746
A77: I10 | B77: Proporção de Baixo Peso à Nascença | C77: A904 | D77: R06 | E77: ALTO ALENTEJO | F77: ULS Norte Alentejano | G77: I10R06 | H77: 6.818181818 | I77: 8.122743682 | J77: 7.906976744 | K77: 8.405545927 | L77: 8.544027899 | M77: 7.826086957 | N77: 6.273764259 | O77: 7.586206897 | P77: 6.33299285 | Q77: 7.607607608 | R77: 9.165687427 | S77: 7.10723192 | T77: 6.361607143 | U77: 8.987485779 | V77: 8.315098468 | W77: 7.981755986 | X77: 7.625810435 | Y77: 8.151033863 | Z77: 8.293838863 | AA77: 8.273381295 | AB77: 7.575757576 | AC77: 7.221147647 | AD77: 6.730137886 | AE77: 7.183427999 | AF77: 7.635206787 | AG77: 7.956259427 | AH77: 7.532365634 | AI77: 7.489328677 | AJ77: 7.883971737 | AK77: 8.426966292 | AL77: 7.97833935 | AM77: 7.125984252 | AN77: 7.99170889 | AO77: 7.760989011
A78: I10 | B78: Proporção de Baixo Peso à Nascença | C78: A905 | D78: R07 | E78: BAIXO ALENTEJO | F78: ULS Baixo Alentejo | G78: I10R07 | H78: 6.227436823 | I78: 6.016949153 | J78: 6.374501992 | K78: 8.01056338 | L78: 8.737864078 | M78: 6.333630687 | N78: 6.529209622 | O78: 6.027164686 | P78: 7.44500846 | Q78: 7.262103506 | R78: 7.588856868 | S78: 8.157653529 | T78: 9.389671362 | U78: 9.313264346 | V78: 10.30358786 | W78: 7.874015748 | X78: 6.209427039 | Y78: 6.776813218 | Z78: 7.692307692 | AA78: 7.729745205 | AB78: 7.242260721 | AC78: 6.295119838 | AD78: 6.668558456 | AE78: 6.913996627 | AF78: 7.424729611 | AG78: 7.657657658 | AH78: 8.38285893 | AI78: 8.946877912 | AJ78: 9.67340591 | AK78: 9.191408718 | AL78: 7.083685545 | AM78: 6.725996919 | AN78: 8.958294371 | AO78: 9.019165727
A79: I11 | B79: Índice sintético de fecundidade (ISF) | C79: CT | D79: R01 | E79: CONTINENTE | F79: Continente | G79: I11R01 | H79: 1.430507732 | I79: 1.467928863 | J79: 1.463759498 | K79: 1.496298194 | L79: 1.547289654 | M79: 1.446928308 | N79: 1.463499912 | O79: 1.433247534 | P79: 1.39709478 | Q79: 1.404695986 | R79: 0.05673651699 | S79: 1.336207962 | T79: 1.379282825 | U79: 1.331599081 | V79: 1.378433561 | W79: 1.30616032 | X79: na | Y79: na | Z79: na | AA79: na | AB79: na | AC79: na | AD79: na | AE79: na | AF79: na | AG79: na | AH79: na | AI79: na | AJ79: na | AK79: na | AL79: na | AM79: na | AN79: na | AO79: na
A80: I11 | B80: Índice sintético de fecundidade (ISF) | C80: RA | D80: R02 | E80: REGIÃO ALENTEJO | F80: Região Alentejo | G80: I11R02 | H80: 1.31165901 | I80: 1.39951639 | J80: 1.405368764 | K80: 1.424195547 | L80: 1.454479336 | M80: 1.34331365 | N80: 1.377500105 | O80: 1.39573183 | P80: 1.395255347 | Q80: 1.370543128 | R80: 1.26170722 | S80: 1.244466768 | T80: 1.310492874 | U80: 1.285827659 | V80: 1.348126504 | W80: 1.324699314 | X80: na | Y80: na | Z80: na | AA80: na | AB80: na | AC80: na | AD80: na | AE80: na | AF80: na | AG80: na | AH80: na | AI80: na | AJ80: na | AK80: na | AL80: na | AM80: na | AN80: na | AO80: na
A81: I11 | B81: Índice sintético de fecundidade (ISF) | C81: A401 | D81: R03 | E81: ALENTEJO LITORAL | F81: ACES Alentejo Litoral | G81: I11R03 | H81: 1.243978771 | I81: 1.323629631 | J81: 1.303762166 | K81: 1.391731349 | L81: 1.352477654 | M81: 1.310425032 | N81: 1.329242408 | O81: 1.382574957 | P81: 1.428641876 | Q81: 1.352215185 | R81: 1.23467751 | S81: 1.240415673 | T81: 1.355277307 | U81: 1.311984381 | V81: 1.417925877 | W81: 1.428301982 | X81: na | Y81: na | Z81: na | AA81: na | AB81: na | AC81: na | AD81: na | AE81: na | AF81: na | AG81: na | AH81: na | AI81: na | AJ81: na | AK81: na | AL81: na | AM81: na | AN81: na | AO81: na
A82: I11 | B82: Índice sintético de fecundidade (ISF) | C82: A402 | D82: R04 | E82: ALENTEJO CENTRAL I | F82: ACES Alentejo Central I | G82: I11R04 | H82: 1.31101105 | I82: 1.373358947 | J82: 1.286602174 | K82: 1.326066841 | L82: 1.324877307 | M82: 1.244936457 | N82: 1.269592927 | O82: 1.344891802 | P82: 1.287400227 | Q82: 1.084167364 | R82: 1.161329722 | S82: 1.111961753 | T82: 1.174232617 | U82: 1.098979337 | V82: 1.136756096 | W82: 1.22882228 | X82: na | Y82: na | Z82: na | AA82: na | AB82: na | AC82: na | AD82: na | AE82: na | AF82: na | AG82: na | AH82: na | AI82: na | AJ82: na | AK82: na | AL82: na | AM82: na | AN82: na | AO82: na
A83: I11 | B83: Índice sintético de fecundidade (ISF) | C83: A403 | D83: R05 | E83: ALENTEJO CENTRAL II | F83: ACES Alentejo Central II | G83: I11R05 | H83: 1.385148317 | I83: 1.525212805 | J83: 1.502631055 | K83: 1.52651046 | L83: 1.489125726 | M83: 1.384302365 | N83: 1.417283124 | O83: 1.441362769 | P83: 1.452482611 | Q83: 1.425862206 | R83: 1.410214518 | S83: 1.303985312 | T83: 1.349513037 | U83: 1.283686001 | V83: 1.309581075 | W83: 1.327619761 | X83: na | Y83: na | Z83: na | AA83: na | AB83: na | AC83: na | AD83: na | AE83: na | AF83: na | AG83: na | AH83: na | AI83: na | AJ83: na | AK83: na | AL83: na | AM83: na | AN83: na | AO83: na
A84: I11 | B84: Índice sintético de fecundidade (ISF) | C84: A904 | D84: R06 | E84: ALTO ALENTEJO | F84: ULS Norte Alentejano | G84: I11R06 | H84: 1.320882669 | I84: 1.398768454 | J84: 1.372903189 | K84: 1.490748988 | L84: 1.51006347 | M84: 1.361207306 | N84: 1.391629206 | O84: 1.348339776 | P84: 1.308836027 | Q84: 1.348282263 | R84: 1.159468502 | S84: 1.113397277 | T84: 1.249896975 | U84: 1.260542691 | V84: 1.347737477 | W84: 1.269804586 | X84: na | Y84: na | Z84: na | AA84: na | AB84: na | AC84: na | AD84: na | AE84: na | AF84: na | AG84: na | AH84: na | AI84: na | AJ84: na | AK84: na | AL84: na | AM84: na | AN84: na | AO84: na
A85: I11 | B85: Índice sintético de fecundidade (ISF) | C85: A905 | D85: R07 | E85: BAIXO ALENTEJO | F85: ULS Baixo Alentejo | G85: I11R07 | H85: 1.288901116 | I85: 1.370546883 | J85: 1.477681863 | K85: 1.345942469 | L85: 1.507645725 | M85: 1.361323464 | N85: 1.41095106 | O85: 1.433629876 | P85: 1.445191189 | Q85: 1.47006491 | R85: 1.285315703 | S85: 1.367520192 | T85: 1.353735694 | U85: 1.366089144 | V85: 1.421511286 | W85: 1.336521211 | X85: na | Y85: na | Z85: na | AA85: na | AB85: na | AC85: na | AD85: na | AE85: na | AF85: na | AG85: na | AH85: na | AI85: na | AJ85: na | AK85: na | AL85: na | AM85: na | AN85: na | AO85: na
A86: I12 | B86: Óbitos | C86: CT | D86: R01 | E86: CONTINENTE | F86: Continente | G86: I12R01 | H86: 101466 | I86: 99355 | J86: 100844 | K86: 102665 | L86: 100021 | M86: 99706 | N86: 100880 | O86: 103321 | P86: 96946 | Q86: 102323 | R86: 97038 | S86: 98668 | T86: 99401 | U86: 99335 | V86: 100837 | W86: 97962 | X86: 301665 | Y86: 302864 | Z86: 303530 | AA86: 302392 | AB86: 300607 | AC86: 303907 | AD86: 301147 | AE86: 302590 | AF86: 296307 | AG86: 298029 | AH86: 295107 | AI86: 297404 | AJ86: 299573 | AK86: 298134 | AL86: 504351 | AM86: 503176 | AN86: 495279 | AO86: 496203
A87: I12 | B87: Óbitos | C87: RA | D87: R02 | E87: REGIÃO ALENTEJO | F87: Região Alentejo | G87: I12R02 | H87: 7969 | I87: 7649 | J87: 7838 | K87: 7889 | L87: 7550 | M87: 7455 | N87: 7572 | O87: 7962 | P87: 7074 | Q87: 7894 | R87: 7081 | S87: 7271 | T87: 7538 | U87: 7378 | V87: 7468 | W87: 7217 | X87: 23456 | Y87: 23376 | Z87: 23277 | AA87: 22894 | AB87: 22577 | AC87: 22989 | AD87: 22608 | AE87: 22930 | AF87: 22049 | AG87: 22246 | AH87: 21890 | AI87: 22187 | AJ87: 22384 | AK87: 22063 | AL87: 38895 | AM87: 37957 | AN87: 36736 | AO87: 36872
A88: I12 | B88: Óbitos | C88: A401 | D88: R03 | E88: ALENTEJO LITORAL | F88: ACES Alentejo Litoral | G88: I12R03 | H88: 1326 | I88: 1309 | J88: 1313 | K88: 1322 | L88: 1244 | M88: 1271 | N88: 1240 | O88: 1365 | P88: 1244 | Q88: 1412 | R88: 1203 | S88: 1250 | T88: 1294 | U88: 1282 | V88: 1257 | W88: 1299 | X88: 3948 | Y88: 3944 | Z88: 3879 | AA88: 3837 | AB88: 3755 | AC88: 3876 | AD88: 3849 | AE88: 4021 | AF88: 3859 | AG88: 3865 | AH88: 3747 | AI88: 3826 | AJ88: 3833 | AK88: 3838 | AL88: 6514 | AM88: 6532 | AN88: 6286 | AO88: 6382
A89: I12 | B89: Óbitos | C89: A402 | D89: R04 | E89: ALENTEJO CENTRAL I | F89: ACES Alentejo Central I | G89: I12R04 | H89: 902 | I89: 863 | J89: 893 | K89: 830 | L89: 795 | M89: 818 | N89: 804 | O89: 861 | P89: 749 | Q89: 845 | R89: 774 | S89: 739 | T89: 817 | U89: 809 | V89: 806 | W89: 738 | X89: 2658 | Y89: 2586 | Z89: 2518 | AA89: 2443 | AB89: 2417 | AC89: 2483 | AD89: 2414 | AE89: 2455 | AF89: 2368 | AG89: 2358 | AH89: 2330 | AI89: 2365 | AJ89: 2432 | AK89: 2353 | AL89: 4283 | AM89: 4077 | AN89: 3945 | AO89: 3909
A90: I12 | B90: Óbitos | C90: A403 | D90: R05 | E90: ALENTEJO CENTRAL II | F90: ACES Alentejo Central II | G90: I12R05 | H90: 1348 | I90: 1360 | J90: 1401 | K90: 1404 | L90: 1375 | M90: 1313 | N90: 1377 | O90: 1441 | P90: 1266 | Q90: 1458 | R90: 1361 | S90: 1432 | T90: 1478 | U90: 1418 | V90: 1432 | W90: 1287 | X90: 4109 | Y90: 4165 | Z90: 4180 | AA90: 4092 | AB90: 4065 | AC90: 4131 | AD90: 4084 | AE90: 4165 | AF90: 4085 | AG90: 4251 | AH90: 4271 | AI90: 4328 | AJ90: 4328 | AK90: 4137 | AL90: 6888 | AM90: 6855 | AN90: 7121 | AO90: 7047
A91: I12 | B91: Óbitos | C91: A904 | D91: R06 | E91: ALTO ALENTEJO | F91: ULS Norte Alentejano | G91: I12R06 | H91: 2096 | I91: 1994 | J91: 1979 | K91: 2036 | L91: 1972 | M91: 1993 | N91: 1927 | O91: 2069 | P91: 1830 | Q91: 2044 | R91: 1798 | S91: 1864 | T91: 1852 | U91: 1893 | V91: 1914 | W91: 1887 | X91: 6069 | Y91: 6009 | Z91: 5987 | AA91: 6001 | AB91: 5892 | AC91: 5989 | AD91: 5826 | AE91: 5943 | AF91: 5672 | AG91: 5706 | AH91: 5514 | AI91: 5609 | AJ91: 5659 | AK91: 5694 | AL91: 10077 | AM91: 9863 | AN91: 9321 | AO91: 9410
A92: I12 | B92: Óbitos | C92: A905 | D92: R07 | E92: BAIXO ALENTEJO | F92: ULS Baixo Alentejo | G92: I12R07 | H92: 2297 | I92: 2123 | J92: 2252 | K92: 2297 | L92: 2164 | M92: 2060 | N92: 2224 | O92: 2226 | P92: 1985 | Q92: 2135 | R92: 1945 | S92: 1986 | T92: 2097 | U92: 1976 | V92: 2059 | W92: 2006 | X92: 6672 | Y92: 6672 | Z92: 6713 | AA92: 6521 | AB92: 6448 | AC92: 6510 | AD92: 6435 | AE92: 6346 | AF92: 6065 | AG92: 6066 | AH92: 6028 | AI92: 6059 | AJ92: 6132 | AK92: 6041 | AL92: 11133 | AM92: 10630 | AN92: 10063 | AO92: 10124
A93: I13 | B93: Taxa Bruta de Mortalidade | C93: CT | D93: R01 | E93: CONTINENTE | F93: Continente | G93: I13R01 | H93: 10.59922839 | I93: 10.3401192 | J93: 10.45125093 | K93: 10.59114507 | L93: 10.26004155 | M93: 10.15787774 | N93: 10.20079014 | O93: 10.37406673 | P93: 9.677462665 | Q93: 10.16828202 | R93: 9.61132702 | S93: 9.751174955 | T93: 9.811476934 | U93: 9.796230806 | V93: 9.940291416 | W93: 9.750292697 | X93: 10.46334751 | Y93: 10.46120667 | Z93: 10.4337898 | AA93: 10.33546583 | AB93: 10.20610037 | AC93: 10.24476658 | AD93: 10.08304069 | AE93: 10.07283121 | AF93: 9.819007297 | AG93: 9.843169801 | AH93: 9.724778971 | AI93: 9.786311651 | AJ93: 9.849356688 | AK93: 9.82919477 | AL93: 10.44795278 | AM93: 10.11505082 | AN93: 9.782269214 | AO93: 9.810038414
A94: I13 | B94: Taxa Bruta de Mortalidade | C94: RA | D94: R02 | E94: REGIÃO ALENTEJO | F94: Região Alentejo | G94: I13R02 | H94: 15.09268869 | I94: 14.51749587 | J94: 14.9015373 | K94: 15.02334722 | L94: 14.38961356 | M94: 14.21805015 | N94: 14.45233992 | O94: 15.224277 | P94: 13.56528943 | Q94: 15.1953948 | R94: 13.69986254 | S94: 14.15633886 | T94: 14.79257428 | U94: 14.59562329 | V94: 14.89808438 | W94: 14.15817052 | X94: 14.83738558 | Y94: 14.81384311 | Z94: 14.77167585 | AA94: 14.54387446 | AB94: 14.35331717 | AC94: 14.63109144 | AD94: 14.41480501 | AE94: 14.66151904 | AF94: 14.15353527 | AG94: 14.35237381 | AH94: 14.2136581 | AI94: 14.51368176 | AJ94: 14.76179752 | AK94: 14.54855977 | AL94: 14.78519838 | AM94: 14.53054978 | AN94: 14.42418029 | AO94: 14.51819874
A95: I13 | B95: Taxa Bruta de Mortalidade | C95: A401 | D95: R03 | E95: ALENTEJO LITORAL | F95: ACES Alentejo Litoral | G95: I13R03 | H95: 13.74534825 | I95: 13.53916169 | J95: 13.54746514 | K95: 13.60124284 | L95: 12.75053939 | M95: 12.98926929 | N95: 12.65732338 | O95: 13.94301241 | P95: 12.73142226 | Q95: 14.49610135 | R95: 12.40423579 | S95: 12.95632165 | T95: 13.50075381 | U95: 13.46440649 | V95: 13.29082806 | W95: 13.26931917 | X95: 13.61050781 | Y95: 13.56267925 | Z95: 13.29882063 | AA95: 13.11295011 | AB95: 12.7990347 | AC95: 13.1964435 | AD95: 13.11072242 | AE95: 13.72284695 | AF95: 13.21125165 | AG95: 13.28788293 | AH95: 12.95161722 | AI95: 13.30604423 | AJ95: 13.41912987 | AK95: 13.3409574 | AL95: 13.43559567 | AM95: 13.362464 | AN95: 13.12048892 | AO95: 13.29555634
A96: I13 | B96: Taxa Bruta de Mortalidade | C96: A402 | D96: R04 | E96: ALENTEJO CENTRAL I | F96: ACES Alentejo Central I | G96: I13R04 | H96: 15.13473606 | I96: 14.55864367 | J96: 15.13905724 | K96: 14.13704417 | L96: 13.58834991 | M96: 14.03243929 | N96: 13.83999656 | O96: 14.87624725 | P96: 13.00042525 | Q96: 14.75441323 | R96: 13.61070568 | S96: 13.09273876 | T96: 14.60623939 | U96: 14.60526078 | V96: 14.70092018 | W96: 13.37804768 | X96: 14.9441702 | Y96: 14.61223337 | Z96: 14.29029503 | AA96: 13.91939514 | AB96: 13.81995746 | AC96: 14.24853742 | AD96: 13.90685175 | AE96: 14.21030088 | AF96: 13.78736139 | AG96: 13.8233044 | AH96: 13.76698346 | AI96: 14.09672199 | AJ96: 14.63715563 | AK96: 14.22762384 | AL96: 14.51475707 | AM96: 14.10004565 | AN96: 14.11635887 | AO96: 14.07325002
A97: I13 | B97: Taxa Bruta de Mortalidade | C97: A403 | D97: R05 | E97: ALENTEJO CENTRAL II | F97: ACES Alentejo Central II | G97: I13R05 | H97: 12.31871476 | I97: 12.38187148 | J97: 12.70304701 | K97: 12.67805946 | L97: 12.3557189 | M97: 11.73730954 | N97: 12.23864015 | O97: 12.74538853 | P97: 11.15988787 | Q97: 12.82333178 | R97: 11.95900022 | S97: 12.59255351 | T97: 13.03287759 | U97: 12.54062659 | V97: 12.70714555 | W97: 11.53835809 | X97: 12.46838525 | Y97: 12.58806355 | Z97: 12.57840817 | AA97: 12.2554415 | AB97: 12.11037873 | AC97: 12.24223081 | AD97: 12.0466646 | AE97: 12.24274437 | AF97: 11.98135191 | AG97: 12.45814681 | AH97: 12.52753506 | AI97: 12.72207786 | AJ97: 12.76054374 | AK97: 12.26482778 | AL97: 12.48775111 | AM97: 12.14177986 | AN97: 12.56586447 | AO97: 12.48517308
A98: I13 | B98: Taxa Bruta de Mortalidade | C98: A904 | D98: R06 | E98: ALTO ALENTEJO | F98: ULS Norte Alentejano | G98: I13R06 | H98: 16.46957137 | I98: 15.75363029 | J98: 15.7152046 | K98: 16.24705742 | L98: 15.80362474 | M98: 16.04572993 | N98: 15.59175021 | O98: 16.84195103 | P98: 14.99760284 | Q98: 16.87624363 | R98: 14.97559594 | S98: 15.6846906 | T98: 15.76364743 | U98: 16.29557575 | V98: 16.67370842 | W98: 15.93104147 | X98: 15.98080934 | Y98: 15.90448311 | Z98: 15.92179254 | AA98: 16.03242284 | AB98: 15.81405336 | AC98: 16.15825321 | AD98: 15.81182141 | AE98: 16.23839261 | AF98: 15.61680458 | AG98: 15.84907547 | AH98: 15.47183629 | AI98: 15.91232759 | AJ98: 16.24079657 | AK98: 16.29622846 | AL98: 15.99867908 | AM98: 16.06919709 | AN98: 15.86965127 | AO98: 16.06532664
A99: I13 | B99: Taxa Bruta de Mortalidade | C99: A905 | D99: R07 | E99: BAIXO ALENTEJO | F99: ULS Baixo Alentejo | G99: I13R07 | H99: 16.98399201 | I99: 15.78327181 | J99: 16.82310712 | K99: 17.25115565 | L99: 16.32622267 | M99: 15.59224021 | N99: 16.87840566 | O99: 16.95405801 | P99: 15.18838184 | Q99: 16.42219265 | R99: 15.06012435 | S99: 15.49867333 | T99: 16.52384611 | U99: 15.72622364 | V99: 16.5533764 | W99: 15.83367537 | X99: 16.53048179 | Y99: 16.6167111 | Z99: 16.80091801 | AA99: 16.39204153 | AB99: 16.2651461 | AC99: 16.47354743 | AD99: 16.34269112 | AE99: 16.188982 | AF99: 15.55734543 | AG99: 15.66243906 | AH99: 15.68988786 | AI99: 15.91552348 | AJ99: 16.26771156 | AK99: 16.0354633 | AL99: 16.63339887 | AM99: 16.20728245 | AN99: 15.86643373 | AO99: 16.02469234
A100: I14 | B100: Óbitos Infantis | C100: CT | D100: R01 | E100: CONTINENTE | F100: Continente | G100: I14R01 | H100: 683 | I100: 664 | J100: 624 | K100: 592 | L100: 597 | M100: 514 | N100: 534 | O100: 432 | P100: 388 | Q100: 353 | R100: 326 | S100: 329 | T100: 324 | U100: 338 | V100: 236 | W100: 285 | X100: 1971 | Y100: 1880 | Z100: 1813 | AA100: 1703 | AB100: 1645 | AC100: 1480 | AD100: 1354 | AE100: 1173 | AF100: 1067 | AG100: 1008 | AH100: 979 | AI100: 991 | AJ100: 898 | AK100: 859 | AL100: 3160 | AM100: 2221 | AN100: 1553 | AO100: 1512
A101: I14 | B101: Óbitos Infantis | C101: RA | D101: R02 | E101: REGIÃO ALENTEJO | F101: Região Alentejo | G101: I14R02 | H101: 23 | I101: 24 | J101: 21 | K101: 19 | L101: 25 | M101: 16 | N101: 22 | O101: 25 | P101: 20 | Q101: 16 | R101: 14 | S101: 16 | T101: 17 | U101: 24 | V101: 9 | W101: 8 | X101: 68 | Y101: 64 | Z101: 65 | AA101: 60 | AB101: 63 | AC101: 63 | AD101: 67 | AE101: 61 | AF101: 50 | AG101: 46 | AH101: 47 | AI101: 57 | AJ101: 50 | AK101: 41 | AL101: 112 | AM101: 99 | AN101: 80 | AO101: 74
A102: I14 | B102: Óbitos Infantis | C102: A401 | D102: R03 | E102: ALENTEJO LITORAL | F102: ACES Alentejo Litoral | G102: I14R03 | H102: 7 | I102: 2 | J102: 5 | K102: 3 | L102: 4 | M102: 6 | N102: 6 | O102: 9 | P102: 2 | Q102: 4 | R102: 2 | S102: 3 | T102: 3 | U102: 6 | V102: 0 | W102: 1 | X102: 14 | Y102: 10 | Z102: 12 | AA102: 13 | AB102: 16 | AC102: 21 | AD102: 17 | AE102: 15 | AF102: 8 | AG102: 9 | AH102: 8 | AI102: 12 | AJ102: 9 | AK102: 7 | AL102: 21 | AM102: 27 | AN102: 14 | AO102: 13
A103: I14 | B103: Óbitos Infantis | C103: A402 | D103: R04 | E103: ALENTEJO CENTRAL I | F103: ACES Alentejo Central I | G103: I14R04 | H103: 2 | I103: 4 | J103: 3 | K103: 2 | L103: 1 | M103: 1 | N103: 3 | O103: 1 | P103: 1 | Q103: 2 | R103: 0 | S103: 1 | T103: 0 | U103: 1 | V103: 2 | W103: 0 | X103: 9 | Y103: 9 | Z103: 6 | AA103: 4 | AB103: 5 | AC103: 5 | AD103: 5 | AE103: 4 | AF103: 3 | AG103: 3 | AH103: 1 | AI103: 2 | AJ103: 3 | AK103: 3 | AL103: 12 | AM103: 8 | AN103: 4 | AO103: 4
A104: I14 | B104: Óbitos Infantis | C104: A403 | D104: R05 | E104: ALENTEJO CENTRAL II | F104: ACES Alentejo Central II | G104: I14R05 | H104: 6 | I104: 9 | J104: 1 | K104: 4 | L104: 5 | M104: 4 | N104: 4 | O104: 7 | P104: 6 | Q104: 2 | R104: 2 | S104: 4 | T104: 1 | U104: 5 | V104: 2 | W104: 2 | X104: 16 | Y104: 14 | Z104: 10 | AA104: 13 | AB104: 13 | AC104: 15 | AD104: 17 | AE104: 15 | AF104: 10 | AG104: 8 | AH104: 7 | AI104: 10 | AJ104: 8 | AK104: 9 | AL104: 25 | AM104: 23 | AN104: 14 | AO104: 14
A105: I14 | B105: Óbitos Infantis | C105: A904 | D105: R06 | E105: ALTO ALENTEJO | F105: ULS Norte Alentejano | G105: I14R06 | H105: 2 | I105: 4 | J105: 6 | K105: 8 | L105: 4 | M105: 2 | N105: 4 | O105: 3 | P105: 4 | Q105: 5 | R105: 5 | S105: 5 | T105: 5 | U105: 4 | V105: 0 | W105: 2 | X105: 12 | Y105: 18 | Z105: 18 | AA105: 14 | AB105: 10 | AC105: 9 | AD105: 11 | AE105: 12 | AF105: 14 | AG105: 15 | AH105: 15 | AI105: 14 | AJ105: 9 | AK105: 6 | AL105: 24 | AM105: 18 | AN105: 19 | AO105: 16
A106: I14 | B106: Óbitos Infantis | C106: A905 | D106: R07 | E106: BAIXO ALENTEJO | F106: ULS Baixo Alentejo | G106: I14R07 | H106: 6 | I106: 5 | J106: 6 | K106: 2 | L106: 11 | M106: 3 | N106: 5 | O106: 5 | P106: 7 | Q106: 3 | R106: 5 | S106: 3 | T106: 8 | U106: 8 | V106: 5 | W106: 3 | X106: 17 | Y106: 13 | Z106: 19 | AA106: 16 | AB106: 19 | AC106: 13 | AD106: 17 | AE106: 15 | AF106: 15 | AG106: 11 | AH106: 16 | AI106: 19 | AJ106: 21 | AK106: 16 | AL106: 30 | AM106: 23 | AN106: 29 | AO106: 27
A107: I15 | B107: Taxa de Mortalidade Infantil | C107: CT | D107: R01 | E107: CONTINENTE | F107: Continente | G107: I15R01 | H107: 6.5883397 | I107: 6.246531012 | J107: 5.839579999 | K107: 5.412274527 | L107: 5.268359837 | M107: 4.827242931 | N107: 4.93566992 | O107: 4.066571278 | P107: 3.755723122 | Q107: 3.413266293 | R107: 3.26938313 | S107: 3.394377096 | T107: 3.270844059 | U107: 3.58339341 | V107: 2.454932229 | W107: 3.107960742 | X107: 6.221119612 | Y107: 5.828788635 | Z107: 5.501341198 | AA107: 5.173492761 | AB107: 5.015412102 | AC107: 4.611985553 | AD107: 4.261439636 | AE107: 3.748070846 | AF107: 3.481898695 | AG107: 3.359350526 | AH107: 3.310843944 | AI107: 3.413639401 | AJ107: 3.101749829 | AK107: 3.044404356 | AL107: 0.2075907793 | AM107: 0.187630773 | AN107: 0.1645575869 | AO107: 0.1547667101
A108: I15 | B108: Taxa de Mortalidade Infantil | C108: RA | D108: R02 | E108: REGIÃO ALENTEJO | F108: Região Alentejo | G108: I15R02 | H108: 5.235602094 | I108: 5.13588701 | J108: 4.513217279 | K108: 4.052901024 | L108: 5.232314776 | M108: 3.617454217 | N108: 4.842615012 | O108: 5.438329345 | P108: 4.364906155 | Q108: 3.571428571 | R108: 3.412969283 | S108: 4.00100025 | T108: 4.05921681 | U108: 5.943536404 | V108: 2.171290712 | W108: 1.95599022 | X108: 4.956629492 | Y108: 4.56686171 | Z108: 4.603725476 | AA108: 4.31996544 | AB108: 4.583818393 | AC108: 4.644990046 | AD108: 4.882670165 | AE108: 4.465919906 | AF108: 3.798237618 | AG108: 3.65630713 | AH108: 3.824558548 | AI108: 4.662576687 | AJ108: 4.041710452 | AK108: 3.340666504 | AL108: 0.9057580332 | AM108: 1.193370166 | AN108: 0.6838608832 | AO108: 0.6353861193
A109: I15 | B109: Taxa de Mortalidade Infantil | C109: A401 | D109: R03 | E109: ALENTEJO LITORAL | F109: ACES Alentejo Litoral | G109: I15R03 | H109: 9.421265141 | I109: 2.564102564 | J109: 6.426735219 | K109: 3.614457831 | L109: 4.98132005 | M109: 7.643312102 | N109: 7.547169811 | O109: 10.80432173 | P109: 2.320185615 | Q109: 4.872107186 | R109: 2.673796791 | S109: 4 | T109: 3.680981595 | U109: 7.604562738 | V109: 0 | W109: 1.200480192 | X109: 6.084311169 | Y109: 4.18760469 | Z109: 4.977187889 | AA109: 5.376344086 | AB109: 6.714225766 | AC109: 8.702859511 | AD109: 6.827309237 | AE109: 5.961844197 | AF109: 3.29082682 | AG109: 3.880983182 | AH109: 3.45871163 | AI109: 5.097706032 | AJ109: 3.70675453 | AK109: 2.861815209 | AL109: 3.050330452 | AM109: 1.953125 | AN109: 1.018848701 | AO109: 0.9972575418
A110: I15 | B110: Taxa de Mortalidade Infantil | C110: A402 | D110: R04 | E110: ALENTEJO CENTRAL I | F110: ACES Alentejo Central I | G110: I15R04 | H110: 4.056795132 | I110: 7.889546351 | J110: 6.355932203 | K110: 4.175365344 | L110: 2.083333333 | M110: 2.2172949 | N110: 6.52173913 | O110: 2.087682672 | P110: 2.197802198 | Q110: 5.194805195 | R110: 0 | S110: 2.597402597 | T110: 0 | U110: 2.72479564 | V110: 5.305039788 | W110: 0 | X110: 6.114130435 | Y110: 6.172839506 | Z110: 4.192872117 | AA110: 2.836879433 | AB110: 3.594536305 | AC110: 3.597122302 | AD110: 3.586800574 | AE110: 3.032600455 | AF110: 2.407704655 | AG110: 2.551020408 | AH110: 0.8389261745 | AI110: 1.734605377 | AJ110: 2.620087336 | AK110: 2.606429192 | AL110: 10.28383381 | AM110: 10.31390135 | AN110: 7.231404959 | AO110: 7.227671657
A111: I15 | B111: Taxa de Mortalidade Infantil | C111: A403 | D111: R05 | E111: ALENTEJO CENTRAL II | F111: ACES Alentejo Central II | G111: I15R05 | H111: 6.042296073 | I111: 8.196721311 | J111: 0.9319664492 | K111: 3.673094582 | L111: 4.496402878 | M111: 3.879728419 | N111: 3.731343284 | O111: 6.41025641 | P111: 5.434782609 | Q111: 1.857010214 | R111: 1.893939394 | S111: 4.11946447 | T111: 0.9891196835 | U111: 5.319148936 | V111: 2.120890774 | W111: 2.089864159 | X111: 5.056890013 | Y111: 4.294478528 | Z111: 3.054367746 | AA111: 4.022277228 | AB111: 4.043545879 | AC111: 4.694835681 | AD111: 5.201958384 | AE111: 4.582951421 | AF111: 3.089280198 | AG111: 2.577319588 | AH111: 2.304147465 | AI111: 3.422313484 | AJ111: 2.764340014 | AK111: 3.169014085 | AL111: 4.473438956 | AM111: 3.348214286 | AN111: 3.861003861 | AO111: 3.318125259
A112: I15 | B112: Taxa de Mortalidade Infantil | C112: A904 | D112: R06 | E112: ALTO ALENTEJO | F112: ULS Norte Alentejano | G112: I15R06 | H112: 1.893939394 | I112: 3.610108303 | J112: 5.581395349 | K112: 6.932409012 | L112: 3.487358326 | M112: 1.93236715 | N112: 3.802281369 | O112: 2.955665025 | P112: 4.085801839 | Q112: 5.005005005 | R112: 5.875440658 | S112: 6.234413965 | T112: 5.580357143 | U112: 4.550625711 | V112: 0 | W112: 2.28050171 | X112: 3.704847175 | Y112: 5.394066527 | Z112: 5.331753555 | AA112: 4.196642686 | AB112: 3.092145949 | AC112: 2.901353965 | AD112: 3.6112935 | AE112: 4.009355162 | AF112: 4.94874514 | AG112: 5.656108597 | AH112: 5.884660651 | AI112: 5.432673652 | AJ112: 3.346969134 | AK112: 2.247191011 | AL112: 5.415162455 | AM112: 4.527559055 | AN112: 6.678949793 | AO112: 6.181318681
A113: I15 | B113: Taxa de Mortalidade Infantil | C113: A905 | D113: R07 | E113: BAIXO ALENTEJO | F113: ULS Baixo Alentejo | G113: I15R07 | H113: 5.415162455 | I113: 4.237288136 | J113: 4.780876494 | K113: 1.76056338 | L113: 8.899676375 | M113: 2.67618198 | N113: 4.295532646 | O113: 4.244482173 | P113: 5.922165821 | Q113: 2.504173623 | R113: 4.803073967 | S113: 2.749770852 | T113: 7.511737089 | U113: 7.525870179 | V113: 4.599816007 | W113: 2.952755906 | X113: 4.798193621 | Y113: 3.640436852 | Z113: 5.238489109 | AA113: 4.580589751 | AB113: 5.396194263 | AC113: 3.753970546 | AD113: 4.824063564 | AE113: 4.215851602 | AF113: 4.384682841 | AG113: 3.303303303 | AH113: 5.004691899 | AI113: 5.902454178 | AJ113: 6.531881804 | AK113: 5.053695515 | AL113: 0.03509565161 | AM113: 0.03211206109 | AN113: 0.03077568486 | AO113: 0.02908055432
A114: I16 | B114: Óbitos Neonatais | C114: CT | D114: R01 | E114: CONTINENTE | F114: Continente | G114: I16R01 | H114: 414 | I114: 425 | J114: 389 | K114: 378 | L114: 368 | M114: 300 | N114: 363 | O114: 281 | P114: 256 | Q114: 222 | R114: 211 | S114: 198 | T114: 206 | U114: 228 | V114: 157 | W114: 215 | X114: 1228 | Y114: 1192 | Z114: 1135 | AA114: 1046 | AB114: 1031 | AC114: 944 | AD114: 900 | AE114: 759 | AF114: 689 | AG114: 631 | AH114: 615 | AI114: 632 | AJ114: 591 | AK114: 600 | AL114: 1974 | AM114: 1422 | AN114: 1000 | AO114: 1004
A115: I16 | B115: Óbitos Neonatais | C115: RA | D115: R02 | E115: REGIÃO ALENTEJO | F115: Região Alentejo | G115: I16R02 | H115: 13 | I115: 19 | J115: 13 | K115: 12 | L115: 12 | M115: 12 | N115: 16 | O115: 15 | P115: 18 | Q115: 11 | R115: 10 | S115: 9 | T115: 8 | U115: 15 | V115: 5 | W115: 7 | X115: 45 | Y115: 44 | Z115: 37 | AA115: 36 | AB115: 40 | AC115: 43 | AD115: 49 | AE115: 44 | AF115: 39 | AG115: 30 | AH115: 27 | AI115: 32 | AJ115: 28 | AK115: 27 | AL115: 69 | AM115: 72 | AN115: 47 | AO115: 44
A116: I16 | B116: Óbitos Neonatais | C116: A401 | D116: R03 | E116: ALENTEJO LITORAL | F116: ACES Alentejo Litoral | G116: I16R03 | H116: 3 | I116: 2 | J116: 3 | K116: 1 | L116: 0 | M116: 5 | N116: 4 | O116: 5 | P116: 2 | Q116: 2 | R116: 2 | S116: 1 | T116: 2 | U116: 3 | V116: 0 | W116: 1 | X116: 8 | Y116: 6 | Z116: 4 | AA116: 6 | AB116: 9 | AC116: 14 | AD116: 11 | AE116: 9 | AF116: 6 | AG116: 5 | AH116: 5 | AI116: 6 | AJ116: 5 | AK116: 4 | AL116: 9 | AM116: 18 | AN116: 8 | AO116: 7
A117: I16 | B117: Óbitos Neonatais | C117: A402 | D117: R04 | E117: ALENTEJO CENTRAL I | F117: ACES Alentejo Central I | G117: I16R04 | H117: 2 | I117: 3 | J117: 2 | K117: 2 | L117: 0 | M117: 0 | N117: 1 | O117: 0 | P117: 1 | Q117: 2 | R117: 0 | S117: 1 | T117: 0 | U117: 0 | V117: 2 | W117: 0 | X117: 7 | Y117: 7 | Z117: 4 | AA117: 2 | AB117: 1 | AC117: 1 | AD117: 2 | AE117: 3 | AF117: 3 | AG117: 3 | AH117: 1 | AI117: 1 | AJ117: 2 | AK117: 2 | AL117: 9 | AM117: 4 | AN117: 3 | AO117: 3
A118: I16 | B118: Óbitos Neonatais | C118: A403 | D118: R05 | E118: ALENTEJO CENTRAL II | F118: ACES Alentejo Central II | G118: I16R05 | H118: 2 | I118: 6 | J118: 0 | K118: 2 | L118: 4 | M118: 4 | N118: 3 | O118: 5 | P118: 5 | Q118: 2 | R118: 1 | S118: 3 | T118: 1 | U118: 3 | V118: 0 | W118: 2 | X118: 8 | Y118: 8 | Z118: 6 | AA118: 10 | AB118: 11 | AC118: 12 | AD118: 13 | AE118: 12 | AF118: 8 | AG118: 6 | AH118: 5 | AI118: 7 | AJ118: 4 | AK118: 5 | AL118: 14 | AM118: 19 | AN118: 8 | AO118: 9
A119: I16 | B119: Óbitos Neonatais | C119: A904 | D119: R06 | E119: ALTO ALENTEJO | F119: ULS Norte Alentejano | G119: I16R06 | H119: 2 | I119: 3 | J119: 4 | K119: 5 | L119: 3 | M119: 2 | N119: 3 | O119: 2 | P119: 4 | Q119: 3 | R119: 4 | S119: 3 | T119: 3 | U119: 3 | V119: 0 | W119: 1 | X119: 9 | Y119: 12 | Z119: 12 | AA119: 10 | AB119: 8 | AC119: 7 | AD119: 9 | AE119: 9 | AF119: 11 | AG119: 10 | AH119: 10 | AI119: 9 | AJ119: 6 | AK119: 4 | AL119: 17 | AM119: 14 | AN119: 13 | AO119: 10
A120: I16 | B120: Óbitos Neonatais | C120: A905 | D120: R07 | E120: BAIXO ALENTEJO | F120: ULS Baixo Alentejo | G120: I16R07 | H120: 4 | I120: 5 | J120: 4 | K120: 2 | L120: 5 | M120: 1 | N120: 5 | O120: 3 | P120: 6 | Q120: 2 | R120: 3 | S120: 1 | T120: 2 | U120: 6 | V120: 3 | W120: 3 | X120: 13 | Y120: 11 | Z120: 11 | AA120: 8 | AB120: 11 | AC120: 9 | AD120: 14 | AE120: 11 | AF120: 11 | AG120: 6 | AH120: 6 | AI120: 9 | AJ120: 11 | AK120: 12 | AL120: 20 | AM120: 17 | AN120: 15 | AO120: 15
A121: I17 | B121: Taxa de Mortalidade Neonatal | C121: CT | D121: R01 | E121: CONTINENTE | F121: Continente | G121: I17R01 | H121: 3.993517768 | I121: 3.998156144 | J121: 3.640379198 | K121: 3.455810424 | L121: 3.247498191 | M121: 2.817456963 | N121: 3.355146406 | O121: 2.645154003 | P121: 2.478002885 | Q121: 2.146586734 | R121: 2.11607313 | S121: 2.042816611 | T121: 2.079610729 | U121: 2.417200288 | V121: 1.633154068 | W121: 2.344601963 | X121: 3.875968992 | Y121: 3.695700028 | Z121: 3.444027722 | AA121: 3.177612113 | AB121: 3.143398102 | AC121: 2.941698893 | AD121: 2.832566967 | AE121: 2.425222312 | AF121: 2.248386318 | AG121: 2.102926767 | AH121: 2.079845787 | AI121: 2.177013221 | AJ121: 2.041352059 | AK121: 2.126475686 | AL121: 0.01668140191 | AM121: 0.03411468599 | AN121: 0.01645575869 | AO121: 0.0146400942
A122: I17 | B122: Taxa de Mortalidade Neonatal | C122: RA | D122: R02 | E122: REGIÃO ALENTEJO | F122: Região Alentejo | G122: I17R02 | H122: 2.959253358 | I122: 4.06591055 | J122: 2.793896411 | K122: 2.559726962 | L122: 2.511511093 | M122: 2.713090662 | N122: 3.521901827 | O122: 3.262997607 | P122: 3.928415539 | Q122: 2.455357143 | R122: 2.437835202 | S122: 2.250562641 | T122: 1.910219675 | U122: 3.714710253 | V122: 1.206272618 | W122: 1.711491443 | X122: 3.280122458 | Y122: 3.139717425 | Z122: 2.620582194 | AA122: 2.591979264 | AB122: 2.910360885 | AC122: 3.170390032 | AD122: 3.570908031 | AE122: 3.221319277 | AF122: 2.962625342 | AG122: 2.384548128 | AH122: 2.197086826 | AI122: 2.617586912 | AJ122: 2.263357853 | AK122: 2.199951112 | AL122: 0.3881820142 | AM122: 0.1767955801 | AN122: 0.1465416178 | AO122: 0.146627566
A123: I17 | B123: Taxa de Mortalidade Neonatal | C123: A401 | D123: R03 | E123: ALENTEJO LITORAL | F123: ACES Alentejo Litoral | G123: I17R03 | H123: 4.037685061 | I123: 2.564102564 | J123: 3.856041131 | K123: 1.204819277 | L123: 0 | M123: 6.369426752 | N123: 5.031446541 | O123: 6.00240096 | P123: 2.320185615 | Q123: 2.436053593 | R123: 2.673796791 | S123: 1.333333333 | T123: 2.45398773 | U123: 3.802281369 | V123: 0 | W123: 1.200480192 | X123: 3.476749239 | Y123: 2.512562814 | Z123: 1.65906263 | AA123: 2.481389578 | AB123: 3.776751993 | AC123: 5.801906341 | AD123: 4.417670683 | AE123: 3.577106518 | AF123: 2.468120115 | AG123: 2.156101768 | AH123: 2.161694769 | AI123: 2.548853016 | AJ123: 2.059308072 | AK123: 1.635322976 | AL123: 3.558718861 | AM123: 4.638671875 | AN123: 2.037697402 | AO123: 2.243829469
A124: I17 | B124: Taxa de Mortalidade Neonatal | C124: A402 | D124: R04 | E124: ALENTEJO CENTRAL I | F124: ACES Alentejo Central I | G124: I17R04 | H124: 4.056795132 | I124: 5.917159763 | J124: 4.237288136 | K124: 4.175365344 | L124: 0 | M124: 0 | N124: 2.173913043 | O124: 0 | P124: 2.197802198 | Q124: 5.194805195 | R124: 0 | S124: 2.597402597 | T124: 0 | U124: 0 | V124: 5.305039788 | W124: 0 | X124: 4.755434783 | Y124: 4.801097394 | Z124: 2.795248078 | AA124: 1.418439716 | AB124: 0.718907261 | AC124: 0.7194244604 | AD124: 1.43472023 | AE124: 2.274450341 | AF124: 2.407704655 | AG124: 2.551020408 | AH124: 0.8389261745 | AI124: 0.8673026886 | AJ124: 1.746724891 | AK124: 1.737619461 | AL124: 6.993006993 | AM124: 6.278026906 | AN124: 6.714876033 | AO124: 5.162622612
A125: I17 | B125: Taxa de Mortalidade Neonatal | C125: A403 | D125: R05 | E125: ALENTEJO CENTRAL II | F125: ACES Alentejo Central II | G125: I17R05 | H125: 2.014098691 | I125: 5.464480874 | J125: 0 | K125: 1.836547291 | L125: 3.597122302 | M125: 3.879728419 | N125: 2.798507463 | O125: 4.578754579 | P125: 4.528985507 | Q125: 1.857010214 | R125: 0.946969697 | S125: 3.089598352 | T125: 0.9891196835 | U125: 3.191489362 | V125: 0 | W125: 2.089864159 | X125: 2.528445006 | Y125: 2.45398773 | Z125: 1.832620648 | AA125: 3.094059406 | AB125: 3.421461897 | AC125: 3.755868545 | AD125: 3.977968176 | AE125: 3.666361137 | AF125: 2.471424158 | AG125: 1.932989691 | AH125: 1.645819618 | AI125: 2.395619439 | AJ125: 1.382170007 | AK125: 1.76056338 | AL125: 3.727865797 | AM125: 3.162202381 | AN125: 3.048160943 | AO125: 3.110742431
A126: I17 | B126: Taxa de Mortalidade Neonatal | C126: A904 | D126: R06 | E126: ALTO ALENTEJO | F126: ULS Norte Alentejano | G126: I17R06 | H126: 1.893939394 | I126: 2.707581227 | J126: 3.720930233 | K126: 4.332755633 | L126: 2.615518745 | M126: 1.93236715 | N126: 2.851711027 | O126: 1.97044335 | P126: 4.085801839 | Q126: 3.003003003 | R126: 4.700352526 | S126: 3.740648379 | T126: 3.348214286 | U126: 3.412969283 | V126: 0 | W126: 1.140250855 | X126: 2.778635381 | Y126: 3.596044351 | Z126: 3.55450237 | AA126: 2.997601918 | AB126: 2.473716759 | AC126: 2.25660864 | AD126: 2.954694682 | AE126: 3.007016372 | AF126: 3.888299753 | AG126: 3.770739065 | AH126: 3.923107101 | AI126: 3.492433062 | AJ126: 2.231312756 | AK126: 1.498127341 | AL126: 0.003011083376 | AM126: 0.006715489369 | AN126: 0.003789902969 | AO126: 0.003351669917
A127: I17 | B127: Taxa de Mortalidade Neonatal | C127: A905 | D127: R07 | E127: BAIXO ALENTEJO | F127: ULS Baixo Alentejo | G127: I17R07 | H127: 3.610108303 | I127: 4.237288136 | J127: 3.187250996 | K127: 1.76056338 | L127: 4.045307443 | M127: 0.8920606601 | N127: 4.295532646 | O127: 2.546689304 | P127: 5.076142132 | Q127: 1.669449082 | R127: 2.88184438 | S127: 0.9165902841 | T127: 1.877934272 | U127: 5.644402634 | V127: 2.759889604 | W127: 2.952755906 | X127: 3.669206887 | Y127: 3.080369644 | Z127: 3.032809484 | AA127: 2.290294875 | AB127: 3.124112468 | AC127: 2.598902686 | AD127: 3.972758229 | AE127: 3.091624508 | AF127: 3.215434084 | AG127: 1.801801802 | AH127: 1.876759462 | AI127: 2.795899348 | AJ127: 3.421461897 | AK127: 3.790271636 | AL127: 0.06562671416 | AM127: 0.03025767245 | AN127: 0.02740632463 | AO127: 0.02755121495
A128: I18 | B128: Óbitos Neonatais Precoces | C128: CT | D128: R01 | E128: CONTINENTE | F128: Continente | G128: I18R01 | H128: 317 | I128: 291 | J128: 293 | K128: 280 | L128: 277 | M128: 219 | N128: 274 | O128: 216 | P128: 172 | Q128: 160 | R128: 154 | S128: 152 | T128: 146 | U128: 151 | V128: 108 | W128: 136 | X128: 901 | Y128: 864 | Z128: 850 | AA128: 776 | AB128: 770 | AC128: 709 | AD128: 662 | AE128: 548 | AF128: 486 | AG128: 466 | AH128: 452 | AI128: 449 | AJ128: 405 | AK128: 395 | AL128: 1458 | AM128: 1041 | AN128: 711 | AO128: 693
A129: I18 | B129: Óbitos Neonatais Precoces | C129: RA | D129: R02 | E129: REGIÃO ALENTEJO | F129: Região Alentejo | G129: I18R02 | H129: 8 | I129: 8 | J129: 9 | K129: 8 | L129: 9 | M129: 9 | N129: 10 | O129: 12 | P129: 15 | Q129: 9 | R129: 8 | S129: 7 | T129: 8 | U129: 12 | V129: 4 | W129: 6 | X129: 25 | Y129: 25 | Z129: 26 | AA129: 26 | AB129: 28 | AC129: 31 | AD129: 37 | AE129: 36 | AF129: 32 | AG129: 24 | AH129: 23 | AI129: 27 | AJ129: 24 | AK129: 22 | AL129: 42 | AM129: 55 | AN129: 39 | AO129: 37
A130: I18 | B130: Óbitos Neonatais Precoces | C130: A401 | D130: R03 | E130: ALENTEJO LITORAL | F130: ACES Alentejo Litoral | G130: I18R03 | H130: 2 | I130: 1 | J130: 2 | K130: 1 | L130: 0 | M130: 4 | N130: 3 | O130: 3 | P130: 2 | Q130: 2 | R130: 2 | S130: 1 | T130: 2 | U130: 3 | V130: 0 | W130: 1 | X130: 5 | Y130: 4 | Z130: 3 | AA130: 5 | AB130: 7 | AC130: 10 | AD130: 8 | AE130: 7 | AF130: 6 | AG130: 5 | AH130: 5 | AI130: 6 | AJ130: 5 | AK130: 4 | AL130: 6 | AM130: 14 | AN130: 8 | AO130: 7
A131: I18 | B131: Óbitos Neonatais Precoces | C131: A402 | D131: R04 | E131: ALENTEJO CENTRAL I | F131: ACES Alentejo Central I | G131: I18R04 | H131: 1 | I131: 3 | J131: 2 | K131: 2 | L131: 0 | M131: 0 | N131: 1 | O131: 0 | P131: 1 | Q131: 2 | R131: 0 | S131: 1 | T131: 0 | U131: 0 | V131: 2 | W131: 0 | X131: 6 | Y131: 7 | Z131: 4 | AA131: 2 | AB131: 1 | AC131: 1 | AD131: 2 | AE131: 3 | AF131: 3 | AG131: 3 | AH131: 1 | AI131: 1 | AJ131: 2 | AK131: 2 | AL131: 8 | AM131: 4 | AN131: 3 | AO131: 3
A132: I18 | B132: Óbitos Neonatais Precoces | C132: A403 | D132: R05 | E132: ALENTEJO CENTRAL II | F132: ACES Alentejo Central II | G132: I18R05 | H132: 1 | I132: 2 | J132: 0 | K132: 1 | L132: 2 | M132: 2 | N132: 1 | O132: 4 | P132: 5 | Q132: 1 | R132: 1 | S132: 2 | T132: 1 | U132: 2 | V132: 0 | W132: 1 | X132: 3 | Y132: 3 | Z132: 3 | AA132: 5 | AB132: 5 | AC132: 7 | AD132: 10 | AE132: 10 | AF132: 7 | AG132: 4 | AH132: 4 | AI132: 5 | AJ132: 3 | AK132: 3 | AL132: 6 | AM132: 13 | AN132: 6 | AO132: 6
A133: I18 | B133: Óbitos Neonatais Precoces | C133: A904 | D133: R06 | E133: ALTO ALENTEJO | F133: ULS Norte Alentejano | G133: I18R06 | H133: 1 | I133: 0 | J133: 3 | K133: 2 | L133: 3 | M133: 2 | N133: 2 | O133: 2 | P133: 2 | Q133: 3 | R133: 2 | S133: 3 | T133: 3 | U133: 2 | V133: 0 | W133: 1 | X133: 4 | Y133: 5 | Z133: 8 | AA133: 7 | AB133: 7 | AC133: 6 | AD133: 6 | AE133: 7 | AF133: 7 | AG133: 8 | AH133: 8 | AI133: 8 | AJ133: 5 | AK133: 3 | AL133: 9 | AM133: 11 | AN133: 10 | AO133: 9
A134: I18 | B134: Óbitos Neonatais Precoces | C134: A905 | D134: R07 | E134: BAIXO ALENTEJO | F134: ULS Baixo Alentejo | G134: I18R07 | H134: 3 | I134: 2 | J134: 2 | K134: 2 | L134: 4 | M134: 1 | N134: 3 | O134: 3 | P134: 5 | Q134: 1 | R134: 3 | S134: 0 | T134: 2 | U134: 5 | V134: 2 | W134: 3 | X134: 7 | Y134: 6 | Z134: 8 | AA134: 7 | AB134: 8 | AC134: 7 | AD134: 11 | AE134: 9 | AF134: 9 | AG134: 4 | AH134: 5 | AI134: 7 | AJ134: 9 | AK134: 10 | AL134: 13 | AM134: 13 | AN134: 12 | AO134: 12
A135: I19 | B135: Taxa de Mortalidade Neonatal Precoce | C135: CT | D135: R01 | E135: CONTINENTE | F135: Continente | G135: I19R01 | H135: 3.057838484 | I135: 2.737561031 | J135: 2.741982275 | K135: 2.559859573 | L135: 2.444448367 | M135: 2.056743583 | N135: 2.532534753 | O135: 2.033285639 | P135: 1.664908188 | Q135: 1.547089538 | R135: 1.544432521 | S135: 1.568222853 | T135: 1.473898866 | U135: 1.600865103 | V135: 1.123443563 | W135: 1.483097056 | X135: 2.843850213 | Y135: 2.678762437 | Z135: 2.57922781 | AA135: 2.357387189 | AB135: 2.347639707 | AC135: 2.209390377 | AD135: 2.083510369 | AE135: 1.7510169 | AF135: 1.585944485 | AG135: 1.55303308 | AH135: 1.528602107 | AI135: 1.546643886 | AJ135: 1.398896081 | AK135: 1.399929826 | AL135: 2.702387109 | AM135: 1.972966007 | AN135: 1.462505554 | AO135: 1.449369326
A136: I19 | B136: Taxa de Mortalidade Neonatal Precoce | C136: RA | D136: R02 | E136: REGIÃO ALENTEJO | F136: Região Alentejo | G136: I19R02 | H136: 1.821078989 | I136: 1.711962337 | J136: 1.934235977 | K136: 1.706484642 | L136: 1.883633319 | M136: 2.034817997 | N136: 2.201188642 | O136: 2.610398086 | P136: 3.273679616 | Q136: 2.008928571 | R136: 1.950268162 | S136: 1.750437609 | T136: 1.910219675 | U136: 2.971768202 | V136: 0.9650180941 | W136: 1.466992665 | X136: 1.822290254 | Y136: 1.783930355 | Z136: 1.841490191 | AA136: 1.871985024 | AB136: 2.037252619 | AC136: 2.285630023 | AD136: 2.696399942 | AE136: 2.635624863 | AF136: 2.430872075 | AG136: 1.907638503 | AH136: 1.871592481 | AI136: 2.208588957 | AJ136: 1.940021017 | AK136: 1.792552758 | AL136: 1.811516066 | AM136: 2.430939227 | AN136: 1.905041032 | AO136: 1.808406647
A137: I19 | B137: Taxa de Mortalidade Neonatal Precoce | C137: A401 | D137: R03 | E137: ALENTEJO LITORAL | F137: ACES Alentejo Litoral | G137: I19R03 | H137: 2.69179004 | I137: 1.282051282 | J137: 2.570694087 | K137: 1.204819277 | L137: 0 | M137: 5.095541401 | N137: 3.773584906 | O137: 3.601440576 | P137: 2.320185615 | Q137: 2.436053593 | R137: 2.673796791 | S137: 1.333333333 | T137: 2.45398773 | U137: 3.802281369 | V137: 0 | W137: 1.200480192 | X137: 2.172968275 | Y137: 1.675041876 | Z137: 1.244296972 | AA137: 2.067824648 | AB137: 2.937473773 | AC137: 4.144218815 | AD137: 3.212851406 | AE137: 2.782193959 | AF137: 2.468120115 | AG137: 2.156101768 | AH137: 2.161694769 | AI137: 2.548853016 | AJ137: 2.059308072 | AK137: 1.635322976 | AL137: 1.525165226 | AM137: 3.41796875 | AN137: 2.037697402 | AO137: 1.745200698
A138: I19 | B138: Taxa de Mortalidade Neonatal Precoce | C138: A402 | D138: R04 | E138: ALENTEJO CENTRAL I | F138: ACES Alentejo Central I | G138: I19R04 | H138: 2.028397566 | I138: 5.917159763 | J138: 4.237288136 | K138: 4.175365344 | L138: 0 | M138: 0 | N138: 2.173913043 | O138: 0 | P138: 2.197802198 | Q138: 5.194805195 | R138: 0 | S138: 2.597402597 | T138: 0 | U138: 0 | V138: 5.305039788 | W138: 0 | X138: 4.076086957 | Y138: 4.801097394 | Z138: 2.795248078 | AA138: 1.418439716 | AB138: 0.718907261 | AC138: 0.7194244604 | AD138: 1.43472023 | AE138: 2.274450341 | AF138: 2.407704655 | AG138: 2.551020408 | AH138: 0.8389261745 | AI138: 0.8673026886 | AJ138: 1.746724891 | AK138: 1.737619461 | AL138: 3.29082682 | AM138: 1.793721973 | AN138: 1.549586777 | AO138: 1.548786784
A139: I19 | B139: Taxa de Mortalidade Neonatal Precoce | C139: A403 | D139: R05 | E139: ALENTEJO CENTRAL II | F139: ACES Alentejo Central II | G139: I19R05 | H139: 1.007049345 | I139: 1.821493625 | J139: 0 | K139: 0.9182736455 | L139: 1.798561151 | M139: 1.93986421 | N139: 0.9328358209 | O139: 3.663003663 | P139: 4.528985507 | Q139: 0.9285051068 | R139: 0.946969697 | S139: 2.059732235 | T139: 0.9891196835 | U139: 2.127659574 | V139: 0 | W139: 1.044932079 | X139: 0.9481668774 | Y139: 0.9202453988 | Z139: 0.9163103238 | AA139: 1.547029703 | AB139: 1.555209953 | AC139: 2.190923318 | AD139: 3.05997552 | AE139: 3.055300947 | AF139: 2.162496138 | AG139: 1.288659794 | AH139: 1.316655695 | AI139: 1.711156742 | AJ139: 1.036627505 | AK139: 1.056338028 | AL139: 1.118359739 | AM139: 2.418154762 | AN139: 1.219264377 | AO139: 1.244296972
A140: I19 | B140: Taxa de Mortalidade Neonatal Precoce | C140: A904 | D140: R06 | E140: ALTO ALENTEJO | F140: ULS Norte Alentejano | G140: I19R06 | H140: 0.946969697 | I140: 0 | J140: 2.790697674 | K140: 1.733102253 | L140: 2.615518745 | M140: 1.93236715 | N140: 1.901140684 | O140: 1.97044335 | P140: 2.042900919 | Q140: 3.003003003 | R140: 2.350176263 | S140: 3.740648379 | T140: 3.348214286 | U140: 2.275312856 | V140: 0 | W140: 1.140250855 | X140: 1.234949058 | Y140: 1.498351813 | Z140: 2.369668246 | AA140: 2.098321343 | AB140: 2.164502165 | AC140: 1.934235977 | AD140: 1.969796454 | AE140: 2.338790511 | AF140: 2.47437257 | AG140: 3.016591252 | AH140: 3.138485681 | AI140: 3.104384944 | AJ140: 1.859427296 | AK140: 1.123595506 | AL140: 1.624548736 | AM140: 2.165354331 | AN140: 2.303086135 | AO140: 2.06043956
A141: I19 | B141: Taxa de Mortalidade Neonatal Precoce | C141: A905 | D141: R07 | E141: BAIXO ALENTEJO | F141: ULS Baixo Alentejo | G141: I19R07 | H141: 2.707581227 | I141: 1.694915254 | J141: 1.593625498 | K141: 1.76056338 | L141: 3.236245955 | M141: 0.8920606601 | N141: 2.577319588 | O141: 2.546689304 | P141: 4.230118443 | Q141: 0.8347245409 | R141: 2.88184438 | S141: 0 | T141: 1.877934272 | U141: 4.703668862 | V141: 1.839926403 | W141: 2.952755906 | X141: 1.975726785 | Y141: 1.680201624 | Z141: 2.205679625 | AA141: 2.004008016 | AB141: 2.272081795 | AC141: 2.021368755 | AD141: 3.121452894 | AE141: 2.529510961 | AF141: 2.630809705 | AG141: 1.201201201 | AH141: 1.563966218 | AI141: 2.174588381 | AJ141: 2.799377916 | AK141: 3.158559697 | AL141: 2.197802198 | AM141: 2.224884477 | AN141: 2.244249112 | AO141: 2.254791432
A142: I20 | B142: Óbitos Pós-Neonatais | C142: CT | D142: R01 | E142: CONTINENTE | F142: Continente | G142: I20R01 | H142: 269 | I142: 239 | J142: 235 | K142: 214 | L142: 229 | M142: 214 | N142: 171 | O142: 151 | P142: 132 | Q142: 131 | R142: 115 | S142: 131 | T142: 118 | U142: 110 | V142: 79 | W142: 70 | X142: 743 | Y142: 688 | Z142: 678 | AA142: 657 | AB142: 614 | AC142: 536 | AD142: 454 | AE142: 414 | AF142: 378 | AG142: 377 | AH142: 364 | AI142: 359 | AJ142: 307 | AK142: 259 | AL142: 1186 | AM142: 799 | AN142: 553 | AO142: 508
A143: I20 | B143: Óbitos Pós-Neonatais | C143: RA | D143: R02 | E143: REGIÃO ALENTEJO | F143: Região Alentejo | G143: I20R02 | H143: 10 | I143: 5 | J143: 8 | K143: 7 | L143: 13 | M143: 4 | N143: 6 | O143: 10 | P143: 2 | Q143: 5 | R143: 4 | S143: 7 | T143: 9 | U143: 9 | V143: 4 | W143: 1 | X143: 23 | Y143: 20 | Z143: 28 | AA143: 24 | AB143: 23 | AC143: 20 | AD143: 18 | AE143: 17 | AF143: 11 | AG143: 16 | AH143: 20 | AI143: 25 | AJ143: 22 | AK143: 14 | AL143: 43 | AM143: 27 | AN143: 33 | AO143: 30
A144: I20 | B144: Óbitos Pós-Neonatais | C144: A401 | D144: R03 | E144: ALENTEJO LITORAL | F144: ACES Alentejo Litoral | G144: I20R03 | H144: 4 | I144: 0 | J144: 2 | K144: 2 | L144: 4 | M144: 1 | N144: 2 | O144: 4 | P144: 0 | Q144: 2 | R144: 0 | S144: 2 | T144: 1 | U144: 3 | V144: 0 | W144: 0 | X144: 6 | Y144: 4 | Z144: 8 | AA144: 7 | AB144: 7 | AC144: 7 | AD144: 6 | AE144: 6 | AF144: 2 | AG144: 4 | AH144: 3 | AI144: 6 | AJ144: 4 | AK144: 3 | AL144: 12 | AM144: 9 | AN144: 6 | AO144: 6
A145: I20 | B145: Óbitos Pós-Neonatais | C145: A402 | D145: R04 | E145: ALENTEJO CENTRAL I | F145: ACES Alentejo Central I | G145: I20R04 | H145: 0 | I145: 1 | J145: 1 | K145: 0 | L145: 1 | M145: 1 | N145: 2 | O145: 1 | P145: 0 | Q145: 0 | R145: 0 | S145: 0 | T145: 0 | U145: 1 | V145: 0 | W145: 0 | X145: 2 | Y145: 2 | Z145: 2 | AA145: 2 | AB145: 4 | AC145: 4 | AD145: 3 | AE145: 1 | AF145: 0 | AG145: 0 | AH145: 0 | AI145: 1 | AJ145: 1 | AK145: 1 | AL145: 3 | AM145: 4 | AN145: 1 | AO145: 1
A146: I20 | B146: Óbitos Pós-Neonatais | C146: A403 | D146: R05 | E146: ALENTEJO CENTRAL II | F146: ACES Alentejo Central II | G146: I20R05 | H146: 4 | I146: 3 | J146: 1 | K146: 2 | L146: 1 | M146: 0 | N146: 1 | O146: 2 | P146: 1 | Q146: 0 | R146: 1 | S146: 1 | T146: 0 | U146: 2 | V146: 2 | W146: 0 | X146: 8 | Y146: 6 | Z146: 4 | AA146: 3 | AB146: 2 | AC146: 3 | AD146: 4 | AE146: 3 | AF146: 2 | AG146: 2 | AH146: 2 | AI146: 3 | AJ146: 4 | AK146: 4 | AL146: 11 | AM146: 4 | AN146: 6 | AO146: 5
A147: I20 | B147: Óbitos Pós-Neonatais | C147: A904 | D147: R06 | E147: ALTO ALENTEJO | F147: ULS Norte Alentejano | G147: I20R06 | H147: 0 | I147: 1 | J147: 2 | K147: 3 | L147: 1 | M147: 0 | N147: 1 | O147: 1 | P147: 0 | Q147: 2 | R147: 1 | S147: 2 | T147: 2 | U147: 1 | V147: 0 | W147: 1 | X147: 3 | Y147: 6 | Z147: 6 | AA147: 4 | AB147: 2 | AC147: 2 | AD147: 2 | AE147: 3 | AF147: 3 | AG147: 5 | AH147: 5 | AI147: 5 | AJ147: 3 | AK147: 2 | AL147: 7 | AM147: 4 | AN147: 6 | AO147: 6
A148: I20 | B148: Óbitos Pós-Neonatais | C148: A905 | D148: R07 | E148: BAIXO ALENTEJO | F148: ULS Baixo Alentejo | G148: I20R07 | H148: 2 | I148: 0 | J148: 2 | K148: 0 | L148: 6 | M148: 2 | N148: 0 | O148: 2 | P148: 1 | Q148: 1 | R148: 2 | S148: 2 | T148: 6 | U148: 2 | V148: 2 | W148: 0 | X148: 4 | Y148: 2 | Z148: 8 | AA148: 8 | AB148: 8 | AC148: 4 | AD148: 3 | AE148: 4 | AF148: 4 | AG148: 5 | AH148: 10 | AI148: 10 | AJ148: 10 | AK148: 4 | AL148: 10 | AM148: 6 | AN148: 14 | AO148: 12
A149: I21 | B149: Taxa de Mortalidade Pós-Neonatal | C149: CT | D149: R01 | E149: CONTINENTE | F149: Continente | G149: I21R01 | H149: 2.594821932 | I149: 2.248374867 | J149: 2.199200801 | K149: 1.956464103 | L149: 2.020861646 | M149: 2.009785967 | N149: 1.580523514 | O149: 1.421417275 | P149: 1.277720237 | Q149: 1.266679559 | R149: 1.15331 | S149: 1.351560485 | T149: 1.19123333 | U149: 1.166193122 | V149: 0.8217781615 | W149: 0.7633587786 | X149: 2.34515062 | Y149: 2.133088607 | Z149: 2.057313476 | AA149: 1.995880648 | AB149: 1.872014 | AC149: 1.67028666 | AD149: 1.42887267 | AE149: 1.322848534 | AF149: 1.233512378 | AG149: 1.256423758 | AH149: 1.230998157 | AI149: 1.236626181 | AJ149: 1.06039777 | AK149: 0.9179286709 | AL149: 2.198238073 | AM149: 1.514313006 | AN149: 1.13750432 | AO149: 1.06245255
A150: I21 | B150: Taxa de Mortalidade Pós-Neonatal | C150: RA | D150: R02 | E150: REGIÃO ALENTEJO | F150: Região Alentejo | G150: I21R02 | H150: 2.276348737 | I150: 1.069976461 | J150: 1.719320868 | K150: 1.493174061 | L150: 2.720803684 | M150: 0.9043635541 | N150: 1.320713185 | O150: 2.175331738 | P150: 0.4364906155 | Q150: 1.116071429 | R150: 0.9751340809 | S150: 1.750437609 | T150: 2.148997135 | U150: 2.228826152 | V150: 0.9650180941 | W150: 0.2444987775 | X150: 1.676507034 | Y150: 1.427144284 | Z150: 1.983143282 | AA150: 1.727986176 | AB150: 1.673457509 | AC150: 1.474600015 | AD150: 1.311762134 | AE150: 1.24460063 | AF150: 0.8356122759 | AG150: 1.271759002 | AH150: 1.627471723 | AI150: 2.044989775 | AJ150: 1.778352599 | AK150: 1.140715392 | AL150: 1.854647401 | AM150: 1.193370166 | AN150: 1.611957796 | AO150: 1.46627566
A151: I21 | B151: Taxa de Mortalidade Pós-Neonatal | C151: A401 | D151: R03 | E151: ALENTEJO LITORAL | F151: ACES Alentejo Litoral | G151: I21R03 | H151: 5.383580081 | I151: 0 | J151: 2.570694087 | K151: 2.409638554 | L151: 4.98132005 | M151: 1.27388535 | N151: 2.51572327 | O151: 4.801920768 | P151: 0 | Q151: 2.436053593 | R151: 0 | S151: 2.666666667 | T151: 1.226993865 | U151: 3.802281369 | V151: 0 | W151: 0 | X151: 2.60756193 | Y151: 1.675041876 | Z151: 3.318125259 | AA151: 2.894954508 | AB151: 2.937473773 | AC151: 2.90095317 | AD151: 2.409638554 | AE151: 2.384737679 | AF151: 0.8227067051 | AG151: 1.724881414 | AH151: 1.297016861 | AI151: 2.548853016 | AJ151: 1.647446458 | AK151: 1.226492232 | AL151: 3.050330452 | AM151: 2.197265625 | AN151: 1.528273051 | AO151: 1.495886313
A152: I21 | B152: Taxa de Mortalidade Pós-Neonatal | C152: A402 | D152: R04 | E152: ALENTEJO CENTRAL I | F152: ACES Alentejo Central I | G152: I21R04 | H152: 0 | I152: 1.972386588 | J152: 2.118644068 | K152: 0 | L152: 2.083333333 | M152: 2.2172949 | N152: 4.347826087 | O152: 2.087682672 | P152: 0 | Q152: 0 | R152: 0 | S152: 0 | T152: 0 | U152: 2.72479564 | V152: 0 | W152: 0 | X152: 1.358695652 | Y152: 1.371742112 | Z152: 1.397624039 | AA152: 1.418439716 | AB152: 2.875629044 | AC152: 2.877697842 | AD152: 2.152080344 | AE152: 0.7581501137 | AF152: 0 | AG152: 0 | AH152: 0 | AI152: 0.8673026886 | AJ152: 0.8733624454 | AK152: 0.8688097307 | AL152: 1.234060058 | AM152: 1.793721973 | AN152: 0.5165289256 | AO152: 0.5162622612
A153: I21 | B153: Taxa de Mortalidade Pós-Neonatal | C153: A403 | D153: R05 | E153: ALENTEJO CENTRAL II | F153: ACES Alentejo Central II | G153: I21R05 | H153: 4.028197382 | I153: 2.732240437 | J153: 0.9319664492 | K153: 1.836547291 | L153: 0.8992805755 | M153: 0 | N153: 0.9328358209 | O153: 1.831501832 | P153: 0.9057971014 | Q153: 0 | R153: 0.946969697 | S153: 1.029866117 | T153: 0 | U153: 2.127659574 | V153: 2.120890774 | W153: 0 | X153: 2.528445006 | Y153: 1.840490798 | Z153: 1.221747098 | AA153: 0.9282178218 | AB153: 0.6220839813 | AC153: 0.9389671362 | AD153: 1.223990208 | AE153: 0.9165902841 | AF153: 0.6178560395 | AG153: 0.6443298969 | AH153: 0.6583278473 | AI153: 1.026694045 | AJ153: 1.382170007 | AK153: 1.408450704 | AL153: 2.050326188 | AM153: 0.744047619 | AN153: 1.219264377 | AO153: 1.036914144
A154: I21 | B154: Taxa de Mortalidade Pós-Neonatal | C154: A904 | D154: R06 | E154: ALTO ALENTEJO | F154: ULS Norte Alentejano | G154: I21R06 | H154: 0 | I154: 0.9025270758 | J154: 1.860465116 | K154: 2.59965338 | L154: 0.8718395815 | M154: 0 | N154: 0.9505703422 | O154: 0.9852216749 | P154: 0 | Q154: 2.002002002 | R154: 1.175088132 | S154: 2.493765586 | T154: 2.232142857 | U154: 1.137656428 | V154: 0 | W154: 1.140250855 | X154: 0.9262117938 | Y154: 1.798022176 | Z154: 1.777251185 | AA154: 1.199040767 | AB154: 0.6184291899 | AC154: 0.6447453256 | AD154: 0.6565988181 | AE154: 1.002338791 | AF154: 1.060445387 | AG154: 1.885369532 | AH154: 1.96155355 | AI154: 1.94024059 | AJ154: 1.115656378 | AK154: 0.7490636704 | AL154: 1.263537906 | AM154: 0.7874015748 | AN154: 1.381851681 | AO154: 1.373626374
A155: I21 | B155: Taxa de Mortalidade Pós-Neonatal | C155: A905 | D155: R07 | E155: BAIXO ALENTEJO | F155: ULS Baixo Alentejo | G155: I21R07 | H155: 1.805054152 | I155: 0 | J155: 1.593625498 | K155: 0 | L155: 4.854368932 | M155: 1.78412132 | N155: 0 | O155: 1.697792869 | P155: 0.8460236887 | Q155: 0.8347245409 | R155: 1.921229587 | S155: 1.833180568 | T155: 5.633802817 | U155: 1.881467545 | V155: 1.839926403 | W155: 0 | X155: 1.128986734 | Y155: 0.5600672081 | Z155: 2.205679625 | AA155: 2.290294875 | AB155: 2.272081795 | AC155: 1.15506786 | AD155: 0.8513053348 | AE155: 1.124227094 | AF155: 1.169248758 | AG155: 1.501501502 | AH155: 3.127932437 | AI155: 3.106554831 | AJ155: 3.110419907 | AK155: 1.263423879 | AL155: 1.690617075 | AM155: 1.026869759 | AN155: 2.61829063 | AO155: 2.254791432
A156: I26 | B156: Nados Vivos + Fetos Mortos 28+s | C156: CT | D156: R01 | E156: CONTINENTE | F156: Continente | G156: I26R01 | H156: 104155 | I156: 106733 | J156: 107273 | K156: 109778 | L156: 113741 | M156: 106833 | N156: 108555 | O156: 106548 | P156: 103576 | Q156: 103703 | R156: 100019 | S156: 97192 | T156: 99305 | U156: 94594 | V156: 96362 | W156: 91909 | X156: 318161 | Y156: 323784 | Z156: 330792 | AA156: 330352 | AB156: 329129 | AC156: 321936 | AD156: 318679 | AE156: 313827 | AF156: 307298 | AG156: 300914 | AH156: 296516 | AI156: 291091 | AJ156: 290261 | AK156: 282865 | AL156: 541680 | AM156: 529215 | AN156: 487472 | AO156: 479362
A157: I26 | B157: Nados Vivos + Fetos Mortos 28+s | C157: RA | D157: R02 | E157: REGIÃO ALENTEJO | F157: Região Alentejo | G157: I26R02 | H157: 4411 | I157: 4696 | J157: 4663 | K157: 4718 | L157: 4808 | M157: 4445 | N157: 4567 | O157: 4615 | P157: 4595 | Q157: 4501 | R157: 4115 | S157: 4020 | T157: 4199 | U157: 4053 | V157: 4162 | W157: 4098 | X157: 13770 | Y157: 14077 | Z157: 14189 | AA157: 13971 | AB157: 13820 | AC157: 13627 | AD157: 13777 | AE157: 13711 | AF157: 13211 | AG157: 12636 | AH157: 12334 | AI157: 12272 | AJ157: 12414 | AK157: 12313 | AL157: 23296 | AM157: 22723 | AN157: 20549 | AO157: 20532
A158: I26 | B158: Nados Vivos + Fetos Mortos 28+s | C158: A401 | D158: R03 | E158: ALENTEJO LITORAL | F158: ACES Alentejo Litoral | G158: I26R03 | H158: 746 | I158: 782 | J158: 780 | K158: 835 | L158: 807 | M158: 788 | N158: 800 | O158: 835 | P158: 864 | Q158: 827 | R158: 752 | S158: 753 | T158: 816 | U158: 793 | V158: 826 | W158: 835 | X158: 2308 | Y158: 2397 | Z158: 2422 | AA158: 2430 | AB158: 2395 | AC158: 2423 | AD158: 2499 | AE158: 2526 | AF158: 2443 | AG158: 2332 | AH158: 2321 | AI158: 2362 | AJ158: 2435 | AK158: 2454 | AL158: 3950 | AM158: 4114 | AN158: 3940 | AO158: 4023
A159: I26 | B159: Nados Vivos + Fetos Mortos 28+s | C159: A402 | D159: R04 | E159: ALENTEJO CENTRAL I | F159: ACES Alentejo Central I | G159: I26R04 | H159: 495 | I159: 509 | J159: 473 | K159: 483 | L159: 481 | M159: 452 | N159: 460 | O159: 482 | P159: 456 | Q159: 391 | R159: 407 | S159: 386 | T159: 401 | U159: 370 | V159: 378 | W159: 408 | X159: 1477 | Y159: 1465 | Z159: 1437 | AA159: 1416 | AB159: 1393 | AC159: 1394 | AD159: 1398 | AE159: 1329 | AF159: 1254 | AG159: 1184 | AH159: 1194 | AI159: 1157 | AJ159: 1149 | AK159: 1156 | AL159: 2441 | AM159: 2241 | AN159: 1942 | AO159: 1943
A160: I26 | B160: Nados Vivos + Fetos Mortos 28+s | C160: A403 | D160: R05 | E160: ALENTEJO CENTRAL II | F160: ACES Alentejo Central II | G160: I26R05 | H160: 995 | I160: 1101 | J160: 1076 | K160: 1097 | L160: 1120 | M160: 1039 | N160: 1079 | O160: 1093 | P160: 1110 | Q160: 1078 | R160: 1059 | S160: 976 | T160: 1014 | U160: 942 | V160: 946 | W160: 961 | X160: 3172 | Y160: 3274 | Z160: 3293 | AA160: 3256 | AB160: 3238 | AC160: 3211 | AD160: 3282 | AE160: 3281 | AF160: 3247 | AG160: 3113 | AH160: 3049 | AI160: 2932 | AJ160: 2902 | AK160: 2849 | AL160: 5389 | AM160: 5399 | AN160: 4937 | AO160: 4839
A161: I26 | B161: Nados Vivos + Fetos Mortos 28+s | C161: A904 | D161: R06 | E161: ALTO ALENTEJO | F161: ULS Norte Alentejano | G161: I26R06 | H161: 1061 | I161: 1118 | J161: 1077 | K161: 1164 | L161: 1157 | M161: 1039 | N161: 1057 | O161: 1019 | P161: 980 | Q161: 1001 | R161: 852 | S161: 807 | T161: 902 | U161: 883 | V161: 918 | W161: 877 | X161: 3256 | Y161: 3359 | Z161: 3398 | AA161: 3360 | AB161: 3253 | AC161: 3115 | AD161: 3056 | AE161: 3000 | AF161: 2833 | AG161: 2660 | AH161: 2561 | AI161: 2592 | AJ161: 2703 | AK161: 2678 | AL161: 5577 | AM161: 5096 | AN161: 4362 | AO161: 4387
A162: I26 | B162: Nados Vivos + Fetos Mortos 28+s | C162: A905 | D162: R07 | E162: BAIXO ALENTEJO | F162: ULS Baixo Alentejo | G162: I26R07 | H162: 1114 | I162: 1186 | J162: 1257 | K162: 1139 | L162: 1243 | M162: 1127 | N162: 1171 | O162: 1186 | P162: 1185 | Q162: 1204 | R162: 1045 | S162: 1098 | T162: 1066 | U162: 1065 | V162: 1094 | W162: 1017 | X162: 3557 | Y162: 3582 | Z162: 3639 | AA162: 3509 | AB162: 3541 | AC162: 3484 | AD162: 3542 | AE162: 3575 | AF162: 3434 | AG162: 3347 | AH162: 3209 | AI162: 3229 | AJ162: 3225 | AK162: 3176 | AL162: 5939 | AM162: 5873 | AN162: 5368 | AO162: 5340
A163: I22 | B163: Fetos Mortos de 28 ou mais semanas | C163: CT | D163: R01 | E163: CONTINENTE | F163: Continente | G163: I22R01 | H163: 487 | I163: 434 | J163: 416 | K163: 397 | L163: 423 | M163: 354 | N163: 363 | O163: 316 | P163: 267 | Q163: 283 | R163: 306 | S163: 267 | T163: 248 | U163: 270 | V163: 229 | W163: 209 | X163: 1337 | Y163: 1247 | Z163: 1236 | AA163: 1174 | AB163: 1140 | AC163: 1033 | AD163: 946 | AE163: 866 | AF163: 856 | AG163: 856 | AH163: 821 | AI163: 785 | AJ163: 747 | AK163: 708 | AL163: 2157 | AM163: 1583 | AN163: 1320 | AO163: 1223
A164: I22 | B164: Fetos Mortos de 28 ou mais semanas | C164: RA | D164: R02 | E164: REGIÃO ALENTEJO | F164: Região Alentejo | G164: I22R02 | H164: 18 | I164: 23 | J164: 10 | K164: 30 | L164: 30 | M164: 22 | N164: 24 | O164: 18 | P164: 13 | Q164: 21 | R164: 13 | S164: 21 | T164: 11 | U164: 15 | V164: 17 | W164: 8 | X164: 51 | Y164: 63 | Z164: 70 | AA164: 82 | AB164: 76 | AC164: 64 | AD164: 55 | AE164: 52 | AF164: 47 | AG164: 55 | AH164: 45 | AI164: 47 | AJ164: 43 | AK164: 40 | AL164: 111 | AM164: 98 | AN164: 77 | AO164: 72
A165: I22 | B165: Fetos Mortos de 28 ou mais semanas | C165: A401 | D165: R03 | E165: ALENTEJO LITORAL | F165: ACES Alentejo Litoral | G165: I22R03 | H165: 3 | I165: 2 | J165: 2 | K165: 5 | L165: 4 | M165: 3 | N165: 5 | O165: 2 | P165: 2 | Q165: 6 | R165: 4 | S165: 3 | T165: 1 | U165: 4 | V165: 2 | W165: 2 | X165: 7 | Y165: 9 | Z165: 11 | AA165: 12 | AB165: 12 | AC165: 10 | AD165: 9 | AE165: 10 | AF165: 12 | AG165: 13 | AH165: 8 | AI165: 8 | AJ165: 7 | AK165: 8 | AL165: 16 | AM165: 18 | AN165: 14 | AO165: 12
A166: I22 | B166: Fetos Mortos de 28 ou mais semanas | C166: A402 | D166: R04 | E166: ALENTEJO CENTRAL I | F166: ACES Alentejo Central I | G166: I22R04 | H166: 2 | I166: 2 | J166: 1 | K166: 4 | L166: 1 | M166: 1 | N166: 0 | O166: 3 | P166: 1 | Q166: 6 | R166: 1 | S166: 1 | T166: 0 | U166: 3 | V166: 1 | W166: 1 | X166: 5 | Y166: 7 | Z166: 6 | AA166: 6 | AB166: 2 | AC166: 4 | AD166: 4 | AE166: 10 | AF166: 8 | AG166: 8 | AH166: 2 | AI166: 4 | AJ166: 4 | AK166: 5 | AL166: 10 | AM166: 11 | AN166: 6 | AO166: 6
A167: I22 | B167: Fetos Mortos de 28 ou mais semanas | C167: A403 | D167: R05 | E167: ALENTEJO CENTRAL II | F167: ACES Alentejo Central II | G167: I22R05 | H167: 2 | I167: 3 | J167: 3 | K167: 8 | L167: 8 | M167: 8 | N167: 7 | O167: 1 | P167: 6 | Q167: 1 | R167: 3 | S167: 5 | T167: 3 | U167: 2 | V167: 3 | W167: 4 | X167: 8 | Y167: 14 | Z167: 19 | AA167: 24 | AB167: 23 | AC167: 16 | AD167: 14 | AE167: 8 | AF167: 10 | AG167: 9 | AH167: 11 | AI167: 10 | AJ167: 8 | AK167: 9 | AL167: 24 | AM167: 23 | AN167: 16 | AO167: 17
A168: I22 | B168: Fetos Mortos de 28 ou mais semanas | C168: A904 | D168: R06 | E168: ALTO ALENTEJO | F168: ULS Norte Alentejano | G168: I22R06 | H168: 5 | I168: 10 | J168: 2 | K168: 10 | L168: 10 | M168: 4 | N168: 5 | O168: 4 | P168: 1 | Q168: 2 | R168: 1 | S168: 5 | T168: 6 | U168: 4 | V168: 4 | W168: 0 | X168: 17 | Y168: 22 | Z168: 22 | AA168: 24 | AB168: 19 | AC168: 13 | AD168: 10 | AE168: 7 | AF168: 4 | AG168: 8 | AH168: 12 | AI168: 15 | AJ168: 14 | AK168: 8 | AL168: 37 | AM168: 16 | AN168: 20 | AO168: 19
A169: I22 | B169: Fetos Mortos de 28 ou mais semanas | C169: A905 | D169: R07 | E169: BAIXO ALENTEJO | F169: ULS Baixo Alentejo | G169: I22R07 | H169: 6 | I169: 6 | J169: 2 | K169: 3 | L169: 7 | M169: 6 | N169: 7 | O169: 8 | P169: 3 | Q169: 6 | R169: 4 | S169: 7 | T169: 1 | U169: 2 | V169: 7 | W169: 1 | X169: 14 | Y169: 11 | Z169: 12 | AA169: 16 | AB169: 20 | AC169: 21 | AD169: 18 | AE169: 17 | AF169: 13 | AG169: 17 | AH169: 12 | AI169: 10 | AJ169: 10 | AK169: 10 | AL169: 24 | AM169: 30 | AN169: 21 | AO169: 18
A170: I23 | B170: Taxa de Mortalidade Fetal Tardia | C170: CT | D170: R01 | E170: CONTINENTE | F170: Continente | G170: I23R01 | H170: 4.675723681 | I170: 4.066221319 | J170: 3.877956242 | K170: 3.616389441 | L170: 3.718975567 | M170: 3.313582882 | N170: 3.343927042 | O170: 2.965799452 | P170: 2.577817255 | Q170: 2.728947089 | R170: 3.05941871 | S170: 2.747139682 | T170: 2.497356629 | U170: 2.854303656 | V170: 2.376455449 | W170: 2.273988402 | X170: 0.4202274949 | Y170: 0.3851332987 | Z170: 0.3736486977 | AA170: 0.3553785054 | AB170: 0.346368749 | AC170: 0.3208712291 | AD170: 0.2968504357 | AE170: 0.2759482135 | AF170: 0.2785569708 | AG170: 0.2844666582 | AH170: 0.2768821919 | AI170: 0.2696751188 | AJ170: 0.2573545878 | AK170: 0.2502960776 | AL170: 3.982055826 | AM170: 2.991222849 | AN170: 2.707847835 | AO170: 2.55130778
A171: I23 | B171: Taxa de Mortalidade Fetal Tardia | C171: RA | D171: R02 | E171: REGIÃO ALENTEJO | F171: Região Alentejo | G171: I23R02 | H171: 4.080707323 | I171: 4.897785349 | J171: 2.14454214 | K171: 6.358626537 | L171: 6.239600666 | M171: 4.949381327 | N171: 5.255090869 | O171: 3.900325027 | P171: 2.829162133 | Q171: 4.66562986 | R171: 3.159173755 | S171: 5.223880597 | T171: 2.61967135 | U171: 3.70096225 | V171: 4.084574724 | W171: 1.952171791 | X171: 0.3703703704 | Y171: 0.447538538 | Z171: 0.4933399112 | AA171: 0.5869300694 | AB171: 0.5499276411 | AC171: 0.4696558303 | AD171: 0.3992160848 | AE171: 0.3792575305 | AF171: 0.3557641359 | AG171: 0.4352643242 | AH171: 0.3648451435 | AI171: 0.3829856584 | AJ171: 0.3463831158 | AK171: 0.3248599042 | AL171: 4.764766484 | AM171: 4.312810808 | AN171: 3.74714098 | AO171: 3.506721216
A172: I23 | B172: Taxa de Mortalidade Fetal Tardia | C172: A401 | D172: R03 | E172: ALENTEJO LITORAL | F172: ACES Alentejo Litoral | G172: I23R03 | H172: 4.021447721 | I172: 2.557544757 | J172: 2.564102564 | K172: 5.988023952 | L172: 4.956629492 | M172: 3.807106599 | N172: 6.25 | O172: 2.395209581 | P172: 2.314814815 | Q172: 7.255139057 | R172: 5.319148936 | S172: 3.984063745 | T172: 1.225490196 | U172: 5.044136192 | V172: 2.421307506 | W172: 2.395209581 | X172: 0.3032928943 | Y172: 0.3754693367 | Z172: 0.4541701073 | AA172: 0.4938271605 | AB172: 0.5010438413 | AC172: 0.4127115147 | AD172: 0.3601440576 | AE172: 0.3958828187 | AF172: 0.4911993451 | AG172: 0.5574614065 | AH172: 0.3446790177 | AI172: 0.3386960203 | AJ172: 0.2874743326 | AK172: 0.32599837 | AL172: 4.050632911 | AM172: 4.375303841 | AN172: 3.553299492 | AO172: 2.98284862
A173: I23 | B173: Taxa de Mortalidade Fetal Tardia | C173: A402 | D173: R04 | E173: ALENTEJO CENTRAL I | F173: ACES Alentejo Central I | G173: I23R04 | H173: 4.04040404 | I173: 3.929273084 | J173: 2.114164905 | K173: 8.281573499 | L173: 2.079002079 | M173: 2.212389381 | N173: 0 | O173: 6.22406639 | P173: 2.192982456 | Q173: 15.34526854 | R173: 2.457002457 | S173: 2.590673575 | T173: 0 | U173: 8.108108108 | V173: 2.645502646 | W173: 2.450980392 | X173: 0.3385240352 | Y173: 0.4778156997 | Z173: 0.4175365344 | AA173: 0.4237288136 | AB173: 0.1435750179 | AC173: 0.2869440459 | AD173: 0.2861230329 | AE173: 0.7524454477 | AF173: 0.6379585327 | AG173: 0.6756756757 | AH173: 0.1675041876 | AI173: 0.345721694 | AJ173: 0.3481288077 | AK173: 0.4325259516 | AL173: 4.096681688 | AM173: 4.908522981 | AN173: 3.089598352 | AO173: 3.088008235
A174: I23 | B174: Taxa de Mortalidade Fetal Tardia | C174: A403 | D174: R05 | E174: ALENTEJO CENTRAL II | F174: ACES Alentejo Central II | G174: I23R05 | H174: 2.010050251 | I174: 2.72479564 | J174: 2.788104089 | K174: 7.292616226 | L174: 7.142857143 | M174: 7.699711261 | N174: 6.487488415 | O174: 0.9149130833 | P174: 5.405405405 | Q174: 0.9276437848 | R174: 2.83286119 | S174: 5.12295082 | T174: 2.958579882 | U174: 2.123142251 | V174: 3.171247357 | W174: 4.162330905 | X174: 0.2522068096 | Y174: 0.4276114844 | Z174: 0.5769814759 | AA174: 0.7371007371 | AB174: 0.7103150093 | AC174: 0.498287138 | AD174: 0.4265691651 | AE174: 0.2438281012 | AF174: 0.3079765938 | AG174: 0.2891101831 | AH174: 0.3607740243 | AI174: 0.3410641201 | AJ174: 0.2756719504 | AK174: 0.3159003159 | AL174: 4.453516422 | AM174: 4.260048157 | AN174: 3.240834515 | AO174: 3.513122546
A175: I23 | B175: Taxa de Mortalidade Fetal Tardia | C175: A904 | D175: R06 | E175: ALTO ALENTEJO | F175: ULS Norte Alentejano | G175: I23R06 | H175: 4.712535344 | I175: 8.944543828 | J175: 1.857010214 | K175: 8.591065292 | L175: 8.643042351 | M175: 3.84985563 | N175: 4.730368969 | O175: 3.925417076 | P175: 1.020408163 | Q175: 1.998001998 | R175: 1.17370892 | S175: 6.195786865 | T175: 6.651884701 | U175: 4.530011325 | V175: 4.357298475 | W175: 0 | X175: 0.5221130221 | Y175: 0.6549568324 | Z175: 0.6474396704 | AA175: 0.7142857143 | AB175: 0.5840762373 | AC175: 0.4173354735 | AD175: 0.3272251309 | AE175: 0.2333333333 | AF175: 0.1411930815 | AG175: 0.3007518797 | AH175: 0.468566966 | AI175: 0.5787037037 | AJ175: 0.5179430263 | AK175: 0.2987303958 | AL175: 6.63439125 | AM175: 3.139717425 | AN175: 4.585052728 | AO175: 4.330977889
A176: I23 | B176: Taxa de Mortalidade Fetal Tardia | C176: A905 | D176: R07 | E176: BAIXO ALENTEJO | F176: ULS Baixo Alentejo | G176: I23R07 | H176: 5.385996409 | I176: 5.059021922 | J176: 1.591089897 | K176: 2.633889377 | L176: 5.631536605 | M176: 5.323868678 | N176: 5.977796755 | O176: 6.745362563 | P176: 2.53164557 | Q176: 4.983388704 | R176: 3.827751196 | S176: 6.375227687 | T176: 0.9380863039 | U176: 1.877934272 | V176: 6.398537477 | W176: 0.9832841691 | X176: 0.393590104 | Y176: 0.3070910106 | Z176: 0.3297609233 | AA176: 0.4559703619 | AB176: 0.5648121999 | AC176: 0.6027554535 | AD176: 0.5081874647 | AE176: 0.4755244755 | AF176: 0.3785672685 | AG176: 0.5079175381 | AH176: 0.3739482705 | AI176: 0.3096934035 | AJ176: 0.3100775194 | AK176: 0.314861461 | AL176: 4.041084358 | AM176: 5.108121914 | AN176: 3.912071535 | AO176: 3.370786517
A177: I24 | B177: Óbitos Perinatais | C177: CT | D177: R01 | E177: CONTINENTE | F177: Continente | G177: I24R01 | H177: 804 | I177: 725 | J177: 709 | K177: 677 | L177: 700 | M177: 573 | N177: 637 | O177: 532 | P177: 439 | Q177: 443 | R177: 460 | S177: 419 | T177: 394 | U177: 421 | V177: 337 | W177: 345 | X177: 2238 | Y177: 2111 | Z177: 2086 | AA177: 1950 | AB177: 1910 | AC177: 1742 | AD177: 1608 | AE177: 1414 | AF177: 1342 | AG177: 1322 | AH177: 1273 | AI177: 1234 | AJ177: 1152 | AK177: 1103 | AL177: 3615 | AM177: 2624 | AN177: 2031 | AO177: 1916
A178: I24 | B178: Óbitos Perinatais | C178: RA | D178: R02 | E178: REGIÃO ALENTEJO | F178: Região Alentejo | G178: I24R02 | H178: 26 | I178: 31 | J178: 19 | K178: 38 | L178: 39 | M178: 31 | N178: 34 | O178: 30 | P178: 28 | Q178: 30 | R178: 21 | S178: 28 | T178: 19 | U178: 27 | V178: 21 | W178: 14 | X178: 76 | Y178: 88 | Z178: 96 | AA178: 108 | AB178: 104 | AC178: 95 | AD178: 92 | AE178: 88 | AF178: 79 | AG178: 79 | AH178: 68 | AI178: 74 | AJ178: 67 | AK178: 62 | AL178: 153 | AM178: 153 | AN178: 116 | AO178: 109
A179: I24 | B179: Óbitos Perinatais | C179: A401 | D179: R03 | E179: ALENTEJO LITORAL | F179: ACES Alentejo Litoral | G179: I24R03 | H179: 5 | I179: 3 | J179: 4 | K179: 6 | L179: 4 | M179: 7 | N179: 8 | O179: 5 | P179: 4 | Q179: 8 | R179: 6 | S179: 4 | T179: 3 | U179: 7 | V179: 2 | W179: 3 | X179: 12 | Y179: 13 | Z179: 14 | AA179: 17 | AB179: 19 | AC179: 20 | AD179: 17 | AE179: 17 | AF179: 18 | AG179: 18 | AH179: 13 | AI179: 14 | AJ179: 12 | AK179: 12 | AL179: 22 | AM179: 32 | AN179: 22 | AO179: 19
A180: I24 | B180: Óbitos Perinatais | C180: A402 | D180: R04 | E180: ALENTEJO CENTRAL I | F180: ACES Alentejo Central I | G180: I24R04 | H180: 3 | I180: 5 | J180: 3 | K180: 6 | L180: 1 | M180: 1 | N180: 1 | O180: 3 | P180: 2 | Q180: 8 | R180: 1 | S180: 2 | T180: 0 | U180: 3 | V180: 3 | W180: 1 | X180: 11 | Y180: 14 | Z180: 10 | AA180: 8 | AB180: 3 | AC180: 5 | AD180: 6 | AE180: 13 | AF180: 11 | AG180: 11 | AH180: 3 | AI180: 5 | AJ180: 6 | AK180: 7 | AL180: 18 | AM180: 15 | AN180: 9 | AO180: 9
A181: I24 | B181: Óbitos Perinatais | C181: A403 | D181: R05 | E181: ALENTEJO CENTRAL II | F181: ACES Alentejo Central II | G181: I24R05 | H181: 3 | I181: 5 | J181: 3 | K181: 9 | L181: 10 | M181: 10 | N181: 8 | O181: 5 | P181: 11 | Q181: 2 | R181: 4 | S181: 7 | T181: 4 | U181: 4 | V181: 3 | W181: 5 | X181: 11 | Y181: 17 | Z181: 22 | AA181: 29 | AB181: 28 | AC181: 23 | AD181: 24 | AE181: 18 | AF181: 17 | AG181: 13 | AH181: 15 | AI181: 15 | AJ181: 11 | AK181: 12 | AL181: 30 | AM181: 36 | AN181: 22 | AO181: 23
A182: I24 | B182: Óbitos Perinatais | C182: A904 | D182: R06 | E182: ALTO ALENTEJO | F182: ULS Norte Alentejano | G182: I24R06 | H182: 6 | I182: 10 | J182: 5 | K182: 12 | L182: 13 | M182: 6 | N182: 7 | O182: 6 | P182: 3 | Q182: 5 | R182: 3 | S182: 8 | T182: 9 | U182: 6 | V182: 4 | W182: 1 | X182: 21 | Y182: 27 | Z182: 30 | AA182: 31 | AB182: 26 | AC182: 19 | AD182: 16 | AE182: 14 | AF182: 11 | AG182: 16 | AH182: 20 | AI182: 23 | AJ182: 19 | AK182: 11 | AL182: 46 | AM182: 27 | AN182: 30 | AO182: 28
A183: I24 | B183: Óbitos Perinatais | C183: A905 | D183: R07 | E183: BAIXO ALENTEJO | F183: ULS Baixo Alentejo | G183: I24R07 | H183: 9 | I183: 8 | J183: 4 | K183: 5 | L183: 11 | M183: 7 | N183: 10 | O183: 11 | P183: 8 | Q183: 7 | R183: 7 | S183: 7 | T183: 3 | U183: 7 | V183: 9 | W183: 4 | X183: 21 | Y183: 17 | Z183: 20 | AA183: 23 | AB183: 28 | AC183: 28 | AD183: 29 | AE183: 26 | AF183: 22 | AG183: 21 | AH183: 17 | AI183: 17 | AJ183: 19 | AK183: 20 | AL183: 37 | AM183: 43 | AN183: 33 | AO183: 30
A184: I25 | B184: Taxa de Mortalidade Perinatal | C184: CT | D184: R01 | E184: CONTINENTE | F184: Continente | G184: I25R01 | H184: 7.719264558 | I184: 6.79265082 | J184: 6.609305231 | K184: 6.166991565 | L184: 6.15433309 | M184: 5.363511275 | N184: 5.867993183 | O184: 4.993054773 | P184: 4.238433614 | Q184: 4.271814702 | R184: 4.599126166 | S184: 4.311054408 | T184: 3.967574644 | U184: 4.450599404 | V184: 3.497229198 | W184: 3.753712912 | X184: 7.034174522 | Y184: 6.519778618 | Z184: 6.306077535 | AA184: 5.902794595 | AB184: 5.803195707 | AC184: 5.411013369 | AD184: 5.045829816 | AE184: 4.505667135 | AF184: 4.367096434 | AG184: 4.393281801 | AH184: 4.293191598 | AI184: 4.23922416 | AJ184: 3.968841835 | AK184: 3.899386633 | AL184: 6.673681879 | AM184: 4.958287275 | AN184: 4.166393147 | AO184: 3.996979318
A185: I25 | B185: Taxa de Mortalidade Perinatal | C185: RA | D185: R02 | E185: REGIÃO ALENTEJO | F185: Região Alentejo | G185: I25R02 | H185: 5.894355022 | I185: 6.601362862 | J185: 4.074630066 | K185: 8.05426028 | L185: 8.111480865 | M185: 6.974128234 | N185: 7.444712065 | O185: 6.500541712 | P185: 6.093579978 | Q185: 6.665185514 | R185: 5.10328068 | S185: 6.965174129 | T185: 4.524886878 | U185: 6.66173205 | V185: 5.045651129 | W185: 3.416300634 | X185: 5.519244735 | Y185: 6.25133196 | Z185: 6.765804496 | AA185: 7.730298475 | AB185: 7.525325615 | AC185: 6.971453732 | AD185: 6.677796327 | AE185: 6.418204361 | AF185: 5.979865264 | AG185: 6.251978474 | AH185: 5.513215502 | AI185: 6.029986962 | AJ185: 5.39713227 | AK185: 5.035328515 | AL185: 6.567651099 | AM185: 6.733265854 | AN185: 5.645043554 | AO185: 5.308786285
A186: I25 | B186: Taxa de Mortalidade Perinatal | C186: A401 | D186: R03 | E186: ALENTEJO LITORAL | F186: ACES Alentejo Litoral | G186: I25R03 | H186: 6.702412869 | I186: 3.836317136 | J186: 5.128205128 | K186: 7.185628743 | L186: 4.956629492 | M186: 8.883248731 | N186: 10 | O186: 5.988023952 | P186: 4.62962963 | Q186: 9.673518742 | R186: 7.978723404 | S186: 5.312084993 | T186: 3.676470588 | U186: 8.827238335 | V186: 2.421307506 | W186: 3.592814371 | X186: 5.199306759 | Y186: 5.423445974 | Z186: 5.780346821 | AA186: 6.995884774 | AB186: 7.933194154 | AC186: 8.254230293 | AD186: 6.802721088 | AE186: 6.730007918 | AF186: 7.367990176 | AG186: 7.718696398 | AH186: 5.601034037 | AI186: 5.927180356 | AJ186: 4.928131417 | AK186: 4.88997555 | AL186: 5.569620253 | AM186: 7.778317939 | AN186: 5.583756345 | AO186: 4.722843649
A187: I25 | B187: Taxa de Mortalidade Perinatal | C187: A402 | D187: R04 | E187: ALENTEJO CENTRAL I | F187: ACES Alentejo Central I | G187: I25R04 | H187: 6.060606061 | I187: 9.823182711 | J187: 6.342494715 | K187: 12.42236025 | L187: 2.079002079 | M187: 2.212389381 | N187: 2.173913043 | O187: 6.22406639 | P187: 4.385964912 | Q187: 20.46035806 | R187: 2.457002457 | S187: 5.18134715 | T187: 0 | U187: 8.108108108 | V187: 7.936507937 | W187: 2.450980392 | X187: 7.447528775 | Y187: 9.556313993 | Z187: 6.958942241 | AA187: 5.649717514 | AB187: 2.153625269 | AC187: 3.586800574 | AD187: 4.291845494 | AE187: 9.78179082 | AF187: 8.771929825 | AG187: 9.290540541 | AH187: 2.512562814 | AI187: 4.321521175 | AJ187: 5.221932115 | AK187: 6.055363322 | AL187: 7.374027038 | AM187: 6.693440428 | AN187: 4.634397528 | AO187: 4.632012352
A188: I25 | B188: Taxa de Mortalidade Perinatal | C188: A403 | D188: R05 | E188: ALENTEJO CENTRAL II | F188: ACES Alentejo Central II | G188: I25R05 | H188: 3.015075377 | I188: 4.541326067 | J188: 2.788104089 | K188: 8.204193254 | L188: 8.928571429 | M188: 9.624639076 | N188: 7.414272475 | O188: 4.574565416 | P188: 9.90990991 | Q188: 1.85528757 | R188: 3.777148253 | S188: 7.172131148 | T188: 3.944773176 | U188: 4.246284501 | V188: 3.171247357 | W188: 5.202913632 | X188: 3.467843632 | Y188: 5.192425168 | Z188: 6.680838142 | AA188: 8.906633907 | AB188: 8.647313156 | AC188: 7.162877608 | AD188: 7.31261426 | AE188: 5.486132277 | AF188: 5.235602094 | AG188: 4.176035978 | AH188: 4.919645786 | AI188: 5.115961801 | AJ188: 3.790489318 | AK188: 4.212004212 | AL188: 5.566895528 | AM188: 6.667901463 | AN188: 4.456147458 | AO188: 4.75304815
A189: I25 | B189: Taxa de Mortalidade Perinatal | C189: A904 | D189: R06 | E189: ALTO ALENTEJO | F189: ULS Norte Alentejano | G189: I25R06 | H189: 5.655042413 | I189: 8.944543828 | J189: 4.642525534 | K189: 10.30927835 | L189: 11.23595506 | M189: 5.774783446 | N189: 6.622516556 | O189: 5.888125613 | P189: 3.06122449 | Q189: 4.995004995 | R189: 3.521126761 | S189: 9.913258984 | T189: 9.977827051 | U189: 6.795016988 | V189: 4.357298475 | W189: 1.140250855 | X189: 6.44963145 | Y189: 8.038106579 | Z189: 8.828722778 | AA189: 9.226190476 | AB189: 7.992622195 | AC189: 6.099518459 | AD189: 5.235602094 | AE189: 4.666666667 | AF189: 3.882809742 | AG189: 6.015037594 | AH189: 7.809449434 | AI189: 8.87345679 | AJ189: 7.029226785 | AK189: 4.107542942 | AL189: 8.248162094 | AM189: 5.298273155 | AN189: 6.877579092 | AO189: 6.382493731
A190: I25 | B190: Taxa de Mortalidade Perinatal | C190: A905 | D190: R07 | E190: BAIXO ALENTEJO | F190: ULS Baixo Alentejo | G190: I25R07 | H190: 8.078994614 | I190: 6.745362563 | J190: 3.182179793 | K190: 4.389815628 | L190: 8.849557522 | M190: 6.211180124 | N190: 8.53970965 | O190: 9.274873524 | P190: 6.751054852 | Q190: 5.813953488 | R190: 6.698564593 | S190: 6.375227687 | T190: 2.814258912 | U190: 6.572769953 | V190: 8.226691042 | W190: 3.933136676 | X190: 5.90385156 | Y190: 4.745951982 | Z190: 5.496015389 | AA190: 6.554573953 | AB190: 7.907370799 | AC190: 8.03673938 | AD190: 8.187464709 | AE190: 7.272727273 | AF190: 6.406523005 | AG190: 6.274275471 | AH190: 5.297600499 | AI190: 5.26478786 | AJ190: 5.891472868 | AK190: 6.297229219 | AL190: 6.230005051 | AM190: 7.32164141 | AN190: 6.147540984 | AO190: 5.617977528

Sheet Id (hidden)
A1: Lista de Variáveis
F3: Consulta de Dados por Indicador ou por Local de Residência | G3: 1 | J3: Cod_IndRes
J4: =CONCATENATE(J9,J40) -> I25R01 | K4: 10
B6: n1 | C6: n2 | D6: n3 | E6: cod_Ind | F6: Indicador | G6: Ind_Abrev | H6: Anual | I6: ContarInd | J6: Id_Indicador
B7: 1 | F7: ----- Selecionar ----- | I7: =COUNTIF(H8:H34,"VERDADEIRO") -> 0 | J7: 25
B8: 2 | C8: 0 | D8: I01 | E8: NB01 | F8: Nados Vivos | G8: Nados Vivos | H8: FALSE | J8: =INDEX(Indicadores,Id_Indicador) -> Taxa de Mortalidade Perinatal
B9: 3 | C9: 1 | D9: I02 | E9: NT01 | F9: Taxa Bruta de Natalidade | G9: Taxa Bruta de Natalidade | H9: FALSE | J9: =INDEX(cod_I,Id_Indicador) -> I25
C10: 0 | D10: I03 | E10: NB02 | F10: Nascimentos em Mulheres com Idade Inferior a 20 anos | G10: Nasc. Mulheres < 20 anos | H10: FALSE | J10: =INDEX(NumForm,Id_Indicador) -> 1
C11: 1 | D11: I04 | E11: NT02 | F11: Proporção de Nascimentos em Mulheres com Idade Inferior a 20 anos | G11: Proporção Nasc. Mulheres < 20 anos | H11: FALSE | J11: =INDEX(Indicadores_Abrev,Id_Indicador) -> Taxa de Mortalidade Perinatal
C12: 0 | D12: I05 | E12: NB03 | F12: Nascimentos em Mulheres com Idade igual ou superior a 35 anos | G12: Nasc. Mulheres ≥35 anos | H12: FALSE
C13: 1 | D13: I06 | E13: NT03 | F13: Proporção de Nascimentos em Mulheres com Idade igual ou superior a 35 anos | G13: Proporção Nasc. Mulheres ≥35 anos | H13: FALSE
C14: 0 | D14: I07 | E14: NB04 | F14: Nascimentos Pré-termo | G14: Nascimentos Pré-termo | H14: FALSE
C15: 1 | D15: I08 | E15: NT04 | F15: Proporção de Nascimentos Pré-termo | G15: Proporção de Nascimentos Pré-termo | H15: FALSE
C16: 0 | D16: I09 | E16: NB05 | F16: Crianças com Baixo Peso à Nascença | G16: Baixo Peso à Nascença | H16: FALSE
C17: 1 | D17: I10 | E17: NT05 | F17: Proporção de Crianças com Baixo Peso à Nascença | G17: Proporção de Baixo Peso à Nascença | H17: FALSE
C18: 2 | D18: I11 | E18: NT06 | F18: Índice Sintético de Fecundidade (ISF) | G18: Índice Sintético de Fecundidade (ISF) | H18: FALSE
C19: 0 | D19: I12 | E19: MB01 | F19: Óbitos | G19: Óbitos | H19: FALSE
C20: 1 | D20: I13 | E20: MT01 | F20: Taxa Bruta de Mortalidade | G20: Taxa Bruta de Mortalidade | H20: FALSE
C21: 0 | D21: I14 | E21: MB02 | F21: Óbitos Infantis | G21: Óbitos Infantis | H21: FALSE
C22: 1 | D22: I15 | E22: MT02 | F22: Taxa de Mortalidade Infantil | G22: Taxa de Mortalidade Infantil | H22: FALSE
C23: 0 | D23: I16 | E23: MB03 | F23: Óbitos Neonatais | G23: Óbitos Neonatais | H23: FALSE
C24: 1 | D24: I17 | E24: MT03 | F24: Taxa de Mortalidade Neonatal | G24: Taxa de Mortalidade Neonatal | H24: FALSE
C25: 0 | D25: I18 | E25: MB04 | F25: Óbitos Neonatais Precoces | G25: Óbitos Neonatais Precoces | H25: FALSE
C26: 1 | D26: I19 | E26: MT04 | F26: Taxa de Mortalidade Neonatal Precoce | G26: Taxa de Mortalidade Neonatal Precoce | H26: FALSE
C27: 0 | D27: I20 | E27: MB05 | F27: Óbitos Pós-Neonatais | G27: Óbitos Pós-Neonatais | H27: FALSE
C28: 1 | D28: I21 | E28: MT05 | F28: Taxa de Mortalidade Pós-Neonatal | G28: Taxa de Mortalidade Pós-Neonatal | H28: FALSE
C29: 0 | D29: I22 | E29: MB06 | F29: Fetos Mortos de 28 ou mais semanas | G29: Fetos Mortos de 28 ou mais semanas | H29: FALSE
C30: 1 | D30: I23 | E30: MT06 | F30: Taxa de Mortalidade Fetal Tardia | G30: Taxa de Mortalidade Fetal Tardia | H30: FALSE
C31: 0 | D31: I24 | E31: MB07 | F31: Óbitos Perinatais | G31: Óbitos Perinatais | H31: FALSE
C32: 1 | D32: I25 | E32: MT07 | F32: Taxa de Mortalidade Perinatal | G32: Taxa de Mortalidade Perinatal | H32: FALSE
C33: 0 | D33: I26 | E33: NM01 | F33: Nados Vivos + Fetos Mortos 28+s | G33: Nados Vivos + Fetos Mortos 28+s
C34: 1 | D34: I27 | E34: PB01 | F34: População Média | G34: População Média
F35: Todos | H35: FALSE
B37: n1 | C37: n2 | D37: n3 | E37: cod_LR | F37: Local_Residencia | G37: Res_Abrev | H37: Anual | I37: ContarRes | J37: Id_Residencia
F38: ----- Selecionar ----- | I38: =COUNTIF(H39:H45,"VERDADEIRO") -> 0 | J38: 1
D39: R01 | E39: CT | F39: Continente | G39: CT | H39: FALSE | J39: =INDEX(Residencia,Id_Residencia) -> Continente
D40: R02 | E40: RA | F40: Região de Saúde do Alentejo | G40: RA | H40: FALSE | J40: =INDEX(cod_R,Id_Residencia) -> R01
D41: R03 | E41: A401 | F41: ACES Alentejo Litoral | G41: A401 | H41: FALSE
D42: R04 | E42: A402 | F42: ACES Alentejo Central I | G42: A402 | H42: FALSE
D43: R05 | E43: A403 | F43: ACES Alentejo Central II | G43: A403 | H43: FALSE
D44: R06 | E44: A904 | F44: ULS Norte Alentejano | G44: A904 | H44: FALSE
D45: R07 | E45: A905 | F45: ULS Baixo Alentejo | G45: A905 | H45: FALSE
F46: Todos | H46: FALSE
B48: n1 | C48: n2 | D48: n3 | E48: cod_Ano | F48: Ano | G48: Ano_Abrev | I48: ContarAno | J48: Id_Ano | L48: Identificar Colunas (ANO) | N48: Colunas a Formatar
B49: 1 | F49: ----- Selecionar ----- | I49: =COUNTIF(H50:H65,"VERDADEIRO") -> 0 | J49: 9 | L49: 1 | M49: =INDEX(ncol,Id_col) -> C | N49: =ContarAno+1 -> 1 | O49: =INDEX(ncol,N49) -> C
B50: 2 | C50: 1 | D50: A01 | E50: A96 | F50: 1996 | G50: 96 | H50: FALSE | J50: =INDEX(Ano,Id_Ano) -> 2004 | L50: C
B51: 3 | C51: 2 | D51: A02 | E51: A97 | F51: 1997 | G51: 97 | H51: FALSE | J51: =INDEX(cod_A,Id_Ano) -> A09 | L51: D
B52: 4 | C52: 3 | D52: A03 | E52: A98 | F52: 1998 | G52: 98 | H52: FALSE | L52: E
B53: 5 | C53: 4 | D53: A04 | E53: A99 | F53: 1999 | G53: 99 | H53: FALSE | L53: F
B54: 6 | C54: 5 | D54: A05 | E54: A00 | F54: 2000 | G54: 00 | H54: FALSE | L54: G
B55: 7 | C55: 6 | D55: A06 | E55: A01 | F55: 2001 | G55: 01 | H55: FALSE | L55: H
B56: 8 | C56: 7 | D56: A07 | E56: A02 | F56: 2002 | G56: 02 | H56: FALSE | L56: I
B57: 9 | C57: 8 | D57: A08 | E57: A03 | F57: 2003 | G57: 03 | H57: FALSE | L57: J
B58: 10 | C58: 9 | D58: A09 | E58: A04 | F58: 2004 | G58: 04 | H58: FALSE | L58: K
B59: 11 | C59: 10 | D59: A10 | E59: A05 | F59: 2005 | G59: 05 | H59: FALSE | L59: L
B60: 12 | C60: 11 | D60: A11 | E60: A06 | F60: 2006 | G60: 06 | H60: FALSE | L60: M
B61: 13 | C61: 12 | D61: A12 | E61: A07 | F61: 2007 | G61: 07 | H61: FALSE | L61: N
B62: 14 | C62: 13 | D62: A13 | E62: A08 | F62: 2008 | G62: 08 | H62: FALSE | L62: O
B63: 15 | C63: 14 | D63: A14 | E63: A09 | F63: 2009 | G63: 09 | H63: FALSE | L63: P
B64: 16 | C64: 15 | D64: A15 | E64: A10 | F64: 2010 | G64: 10 | H64: FALSE | L64: Q
B65: 17 | C65: 16 | D65: A16 | E65: A11 | F65: 2011 | G65: 11 | H65: FALSE | L65: R
F66: Todos | H66: FALSE
B68: n1 | C68: n2 | D68: n3 | E68: cod_Tri | F68: Triénio | G68: Tri_Abrev
C69: 1 | F69: ----- Selecionar -----
C70: 2 | D70: 1 | E70: T01 | F70: 1996-1998 | G70: 96-98
C71: 3 | D71: 2 | E71: T02 | F71: 1997-1999 | G71: 97-99
C72: 4 | D72: 3 | E72: T03 | F72: 1998-2000 | G72: 98-00
C73: 5 | D73: 4 | E73: T04 | F73: 1999-2001 | G73: 99-01
C74: 6 | D74: 5 | E74: T05 | F74: 2000-2002 | G74: 00-02
C75: 7 | D75: 6 | E75: T06 | F75: 2001-2003 | G75: 01-03
C76: 8 | D76: 7 | E76: T07 | F76: 2002-2004 | G76: 02-04
C77: 9 | D77: 8 | E77: T08 | F77: 2003-2005 | G77: 03-05
C78: 10 | D78: 9 | E78: T09 | F78: 2004-2006 | G78: 04-06
C79: 11 | D79: 10 | E79: T10 | F79: 2005-2007 | G79: 05-07
C80: 12 | D80: 11 | E80: T11 | F80: 2006-2008 | G80: 06-08
C81: 13 | D81: 12 | E81: T12 | F81: 2007-2009 | G81: 07-09
C82: 14 | D82: 13 | E82: T13 | F82: 2008-2010 | G82: 08-10
C83: 15 | D83: 14 | E83: T14 | F83: 2009-2011 | G83: 09-11
B85: n1 | C85: n2 | D85: n3 | E85: cod_Qui | F85: Quinquénio | G85: Qui_Abrev
F86: ----- Selecionar -----
D87: 1 | E87: Q01 | F87: 1996-2000 | G87: 96-00
D88: 2 | E88: Q02 | F88: 2001-2005 | G88: 01-05
D89: 3 | E89: Q03 | F89: 2006-2010 | G89: 06-10
D90: 4 | E90: Q04 | F90: 2007-2011 | G90: 07-11
B92: n1 | C92: n2 | D92: n3 | E92: cod_LR | F92: ACeS_Select
D93: 1 | F93: ----- Selecionar -----
D94: 2 | E94: R03 | F94: ACES Alentejo Litoral
D95: 3 | E95: R04 | F95: ACES Alentejo Central I
D96: 4 | E96: R05 | F96: ACES Alentejo Central II
D97: 5 | E97: R06 | F97: ULS Norte Alentejano
D98: 6 | E98: R07 | F98: ULS Baixo Alentejo
B100: n1 | C100: n2 | D100: n3 | E100: cod_Ind | F100: Indicador_Select
C101: 1 | F101: ----- Selecionar -----
C102: 2 | D102: A | E102: I02 | F102: Taxa Bruta de Natalidade (Anual) | G102: TAXA BRUTA DE NATALIDADE | H102: (/1000 HABITANTES) | I102: (ANUAL)
C103: 3 | D103: T | E103: I04 | F103: Proporção de Nascimentos em Mulheres com Idade Inferior a 20 anos | G103: PROPORÇÃO DE NASCIMENTOS EM MULHERES COM IDADE INFERIOR A 20 ANOS | H103: (%) | I103: (MÉDIA ANUAL POR TRIÉNIOS)
C104: 4 | D104: T | E104: I06 | F104: Proporção de Nascimentos em Mulheres com Idade igual ou superior a 35 anos | G104: PROPORÇÃO DE NASCIMENTOS EM MULHERES COM IDADE IGUAL OU SUPERIOR A 35 ANOS | H104: (%) | I104: (MÉDIA ANUAL POR TRIÉNIOS)
C105: 5 | D105: T | E105: I08 | F105: Proporção de Nascimentos Pré-termo | G105: PROPORÇÃO DE NASCIMENTOS PRÉ-TERMO | H105: (%) | I105: (MÉDIA ANUAL POR TRIÉNIOS)
C106: 6 | D106: T | E106: I10 | F106: Proporção de Crianças com Baixo Peso à Nascença | G106: PROPORÇÃO DE CRIANÇAS COM BAIXO PESO À NASCENÇA | H106: (%) | I106: (MÉDIA ANUAL POR TRIÉNIOS)
C107: 7 | D107: A | E107: I11 | F107: Índice Sintético de Fecundidade, ISF (Anual) | G107: ÍNDICE SINTÉTICO DE FECUNDIDADE | H107: (ISF) | I107: (ANUAL)
C108: 8 | D108: A | E108: I13 | F108: Taxa Bruta de Mortalidade (Anual) | G108: TAXA BRUTA DE MORTALIDADE | H108: (/1000 HABITANTES) | I108: (ANUAL)
C109: 9 | D109: T | E109: I15 | F109: Taxa de Mortalidade Infantil | G109: TAXA DE MORTALIDADE INFANTIL | H109: (/1000 NADOS VIVOS) | I109: (MÉDIA ANUAL POR TRIÉNIOS)
C110: 10 | D110: T | E110: I17 | F110: Taxa de Mortalidade Neonatal | G110: TAXA DE MORTALIDADE NEONATAL | H110: (/1000 NADOS VIVOS) | I110: (MÉDIA ANUAL POR TRIÉNIOS)
C111: 11 | D111: T | E111: I19 | F111: Taxa de Mortalidade Neonatal Precoce | G111: TAXA DE MORTALIDADE NEONATAL PRECOCE | H111: (/1000 NADOS VIVOS) | I111: (MÉDIA ANUAL POR TRIÉNIOS)
C112: 12 | D112: T | E112: I21 | F112: Taxa de Mortalidade Pós-Neonatal | G112: TAXA DE MORTALIDADE PÓS-NEONATAL | H112: (/1000 NADOS VIVOS) | I112: (MÉDIA ANUAL POR TRIÉNIOS)
C113: 13 | D113: T | E113: I23 | F113: Taxa de Mortalidade Fetal Tardia | G113: TAXA DE MORTALIDADE FETAL TARDIA | H113: (/1000 (NADOS VIVOS + FETOS MORTOS DE 28 OU MAIS SEMANAS)) | I113: (MÉDIA ANUAL POR TRIÉNIOS)
C114: 14 | D114: T | E114: I25 | F114: Taxa de Mortalidade Perinatal | G114: TAXA DE MORTALIDADE PERINATAL | H114: (/1000 (NADOS VIVOS + FETOS MORTOS DE 28 OU MAIS SEMANAS)) | I114: (MÉDIA ANUAL POR TRIÉNIOS)
B116: n1 | C116: n2 | D116: n3 | E116: cod_Ind | F116: RazaoR_Indicador
D117: 1 | F117: ----- Selecionar -----
D118: 2 | E118: I03 | F118: Nascimentos em Mulheres com Idade Inferior a 20 anos | G118: NASCIMENTOS EM MULHERES COM IDADE INFERIOR A 20 ANOS
D119: 3 | E119: I05 | F119: Nascimentos em Mulheres com Idade igual ou superior a 35 anos | G119: NASCIMENTOS EM MULHERES COM IDADE IGUAL OU SUPERIOR A 35 ANOS
D120: 4 | E120: I07 | F120: Nascimentos Pré-termo | G120: NASCIMENTOS PRÉ-TERMO
D121: 5 | E121: I09 | F121: Crianças com Baixo Peso à Nascença | G121: CRIANÇAS COM BAIXO PESO À NASCENÇA
D122: 6 | E122: I14 | F122: Óbitos Infantis | G122: ÓBITOS INFANTIS
D123: 7 | E123: I16 | F123: Óbitos Neonatais | G123: ÓBITOS NEONATAIS
D124: 8 | E124: I18 | F124: Óbitos Neonatais Precoces | G124: ÓBITOS NEONATAIS PRECOCES
D125: 9 | E125: I20 | F125: Óbitos Pós-Neonatais | G125: ÓBITOS PÓS-NEONATAIS
D126: 10 | E126: I22 | F126: Fetos Mortos de 28 ou mais semanas | G126: FETOS MORTOS DE 28 OU MAIS SEMANAS
D127: 11 | E127: I24 | F127: Óbitos Perinatais | G127: ÓBITOS PERINATAIS

Sheet ConsAnual
B2: mort@lidades.infantil
B4: Consulta de Indicadores (Anual)
B7: Selecione Indicador, Local de Residência e Ano. Gere os dados por Indicador ou por Local de Residência.
B9: INDICADOR | D9: LOCAL DE RESIDÊNCIA | F9: ANO
B10: Natalidade
B12: Mortalidade

Sheet DadosAnual
B2: mort@lidades.infantil
B4: Consulta de Indicadores (Anual)

Sheet DefInd
B2: mort@lidades.infantil
B4: Indicadores
B7: INDICADORES DE NATALIDADE
B9: INDICADOR | C9: DEFINIÇÃO
B10: Nados vivos | C10: Número de crianças nascidas vivas.
B11: Taxa bruta de natalidade | C11: Número de nados vivos ocorrido durante um determinado período de tempo, normalmente um ano civil, referido à população média desse período (expressa em número de nados vivos por 1000 habitantes).
B12: Nascimentos em mulheres com idade inferior a 20 anos | C12: Número de nados vivos em mulheres com idade inferior a 20 anos.
B13: Proporção (%) de nascimentos em mulheres com idade inferior a 20 anos | C13: Número de nados vivos em mulheres com idade inferior a 20 anos, durante um determinado período de tempo, referido ao número total de nados vivos.
B14: Nascimentos em mulheres com idade igual ou superior a 35 anos | C14: Número de nados vivos em mulheres com idade igual ou superior a 35 anos.
B15: Proporção (%) de nascimentos em mulheres com idade igual ou superior a 35 anos | C15: Número de nados vivos em mulheres com idade igual ou superior a 35 anos, durante um determinado período de tempo, referido ao número total de nados vivos do mesmo período.
B16: Nascimentos pré-termo | C16: Número de nados vivos com menos de 37 semanas de gestação.
B17: Proporção (%) de nascimentos pré-termo | C17: Número de nados vivos com menos de 37 semanas de gestação, durante um determinado período de tempo, referido ao número total de nados vivos do mesmo período.
B18: Crianças com baixo peso à nascença | C18: Número de nascimentos de crianças com peso inferior a 2500 gramas.
B19: Proporção (%) de crianças com baixo peso à nascença | C19: Número de nascimentos de crianças com peso inferior a 2500 gramas, durante um determinado período de tempo, referido ao número total de nados vivos do mesmo período.
B20: Índice sintético de fecundidade (ISF) | C20: Número médio de crianças vivas nascidas por mulher em idade fértil (dos 15 aos 49 anos de idade), admitindo que as mulheres estariam submetidas às taxas de fecundidade observadas no momento. Valor resultante da soma das taxas de fecundidade por idades, ano a ano ou grupos quinquenais, entre os 15 e os 49 anos, observadas num determinado período (habitualmente um ano civil).
C21: Nota: O número de 2,1 crianças por mulher é considerado o nível mínimo para assegurar a substituição de gerações, nos países mais desenvolvidos.
B23: INDICADORES DE MORTALIDADE
B25: INDICADOR | C25: DEFINIÇÃO
B26: Óbitos | C26: Número de óbitos.
B27: Taxa bruta de mortalidade | C27: Número de óbitos observado durante um determinado período de tempo, normalmente um ano civil, referido à população média desse período (expressa em número de óbitos por 1000 habitantes).
B28: Óbitos infantis | C28: Número de óbitos de crianças com menos de 1 ano de idade.
B29: Taxa de mortalidade infantil | C29: Número de óbitos de crianças com menos de 1 ano de idade observado durante um determinado período de tempo, referido ao número de nados vivos do mesmo período (habitualmente expressa em número de óbitos de crianças com menos de 1 ano por 1000 nados vivos).
B30: Óbitos neonatais | C30: Número de óbitos de crianças com menos de 28 dias de idade.
B31: Taxa de mortalidade neonatal | C31: Número de óbitos de crianças com menos de 28 dias de idade observado durante um determinado período de tempo, referido ao número de nados vivos do mesmo período (expressa em número de óbitos de crianças com menos de 28 dias de idade por 1000 nados vivos).
B32: Óbitos neonatais precoces | C32: Número de óbitos de crianças com menos de 7 dias de idade.
B33: Taxa de mortalidade neonatal precoce | C33: Número de óbitos de crianças com menos de 7 dias de idade observado durante um determinado período de tempo, referido ao número de nados vivos do mesmo período (expressa em número de óbitos de crianças com menos de 7 dias de idade por 1000 nados vivos).
B34: Óbitos pós-neonatais | C34: Número de óbitos de crianças com 28 ou mais dias de idade e menos de um ano de idade.
B35: Taxa de mortalidade pós-neonatal | C35: Número de óbitos de crianças com 28 ou mais dias de idade e menos de um ano de idade observado durante um determinado período de tempo, referido ao número de nados vivos do mesmo período (expressa em número de óbitos de crianças com mais de 27 dias e menos de um ano de idade por 1000 nados vivos).
B36: Fetos mortos de 28 ou mais semanas | C36: Número de fetos mortos de 28 ou mais semanas.
B37: Taxa de mortalidade fetal tardia | C37: Número de fetos mortos de 28 ou mais semanas observado durante um determinado período de tempo, referido ao número de nados vivos e fetos mortos de 28 ou mais semanas do mesmo período (expressa em número de fetos mortos de 28 ou mais semanas por 1000 nados vivos e fetos mortos de 28 ou mais semanas).
B38: Óbitos perinatais | C38: Número de óbitos fetais de 28 ou mais semanas de gestação e óbitos de nados vivos com menos de 7 dias de idade.
B39: Taxa de mortalidade perinatal | C39: Número de óbitos fetais de 28 ou mais semanas de gestação e óbitos de nados vivos com menos de 7 dias de idade observado durante um determinado período de tempo, referido ao número de nados vivos e fetos mortos de 28 ou mais semanas do mesmo período (habitualmente expressa em número de óbitos fetais de 28 ou mais semanas e óbitos de nados vivos com menos de 7 dias de idade por 1000 nados vivos e fetos mortos de 28 ou mais semanas)

Sheet AnACeS
B2: mort@lidades.infantil
B4: Análise por ACeS
B6: Selecione o ACeS:
C8: =AnACeS_base!D1 -> 
C10: TAXA BRUTA DE NATALIDADE (/1000 HABITANTES), 1996-2011 (ANUAL) | I10: TAXA BRUTA DE MORTALIDADE (/1000 HABITANTES), 1996-2011 (ANUAL)
C27: NATALIDADE
C29: Local de residência | D29: 96-98 | E29: 97-99 | F29: 98-00 | G29: 99-01 | H29: 00-02 | I29: 01-03 | J29: 02-04 | K29: 03-05 | L29: 04-06 | M29: 05-07 | N29: 06-08 | O29: 07-09 | P29: 08-10 | Q29: 09-11
C31: PROPORÇÃO (%) DE NASCIMENTOS EM MULHERES COM IDADE INFERIOR A 20 ANOS
C32: =AnACeS_base!$D$15 -> Continente | D32: =AnACeS_base!F15 -> 6.600510062 | E32: =AnACeS_base!G15 -> 6.339737767 | F32: =AnACeS_base!H15 -> 6.157071939 | G32: =AnACeS_base!I15 -> 5.999793425 | H32: =AnACeS_base!J15 -> 5.838610441 | I32: =AnACeS_base!K15 -> 5.574270107 | J32: =AnACeS_base!L15 -> 5.323966979 | K32: =AnACeS_base!M15 -> 5.047913318 | L32: =AnACeS_base!N15 -> 4.792097689 | M32: =AnACeS_base!O15 -> 4.59577815 | N32: =AnACeS_base!P15 -> 4.375792624 | O32: =AnACeS_base!Q15 -> 4.281000048 | P32: =AnACeS_base!R15 -> 4.070614893 | Q32: =AnACeS_base!S15 -> 3.892868155
C33: =AnACeS_base!$D$16 -> Região de Saúde do Alentejo | D33: =AnACeS_base!F16 -> 10.34331948 | E33: =AnACeS_base!G16 -> 9.64035964 | F33: =AnACeS_base!H16 -> 9.023301934 | G33: =AnACeS_base!I16 -> 8.841529268 | H33: =AnACeS_base!J16 -> 8.636495925 | I33: =AnACeS_base!K16 -> 8.331490083 | J33: =AnACeS_base!L16 -> 7.863285235 | K33: =AnACeS_base!M16 -> 7.226004832 | L33: =AnACeS_base!N16 -> 6.700091158 | M33: =AnACeS_base!O16 -> 6.422382958 | N33: =AnACeS_base!P16 -> 5.980958581 | O33: =AnACeS_base!Q16 -> 5.644171779 | P33: =AnACeS_base!R16 -> 5.343141217 | Q33: =AnACeS_base!S16 -> 5.36136234
C34: =AnACeS_base!D1 ->  | D34: =AnACeS_base!F17 ->  | E34: =AnACeS_base!G17 ->  | F34: =AnACeS_base!H17 ->  | G34: =AnACeS_base!I17 ->  | H34: =AnACeS_base!J17 ->  | I34: =AnACeS_base!K17 ->  | J34: =AnACeS_base!L17 ->  | K34: =AnACeS_base!M17 ->  | L34: =AnACeS_base!N17 ->  | M34: =AnACeS_base!O17 ->  | N34: =AnACeS_base!P17 ->  | O34: =AnACeS_base!Q17 ->  | P34: =AnACeS_base!R17 ->  | Q34: =AnACeS_base!S17 -> 
C36: PROPORÇÃO (%) DE NASCIMENTOS EM MULHERES COM IDADE IGUAL OU SUPERIOR A 35 ANOS
C37: =AnACeS_base!$D$15 -> Continente | D37: =AnACeS_base!F18 -> 11.02852057 | E37: =AnACeS_base!G18 -> 11.79864636 | F37: =AnACeS_base!H18 -> 12.54202624 | G37: =AnACeS_base!I18 -> 13.28612483 | H37: =AnACeS_base!J18 -> 13.84558628 | I37: =AnACeS_base!K18 -> 14.45888633 | J37: =AnACeS_base!L18 -> 15.03841276 | K37: =AnACeS_base!M18 -> 15.7112228 | L37: =AnACeS_base!N18 -> 16.51927608 | M37: =AnACeS_base!O18 -> 17.42429797 | N37: =AnACeS_base!P18 -> 18.40139333 | O37: =AnACeS_base!Q18 -> 19.43259871 | P37: =AnACeS_base!R18 -> 20.60556657 | Q37: =AnACeS_base!S18 -> 22.21032971
C38: =AnACeS_base!$D$16 -> Região de Saúde do Alentejo | D38: =AnACeS_base!F19 -> 9.803921569 | E38: =AnACeS_base!G19 -> 10.46810333 | F38: =AnACeS_base!H19 -> 11.43848714 | G38: =AnACeS_base!I19 -> 12.36950104 | H38: =AnACeS_base!J19 -> 12.64551804 | I38: =AnACeS_base!K19 -> 13.01334513 | J38: =AnACeS_base!L19 -> 13.48928728 | K38: =AnACeS_base!M19 -> 14.27630134 | L38: =AnACeS_base!N19 -> 14.89668794 | M38: =AnACeS_base!O19 -> 15.33264446 | N38: =AnACeS_base!P19 -> 16.42932704 | O38: =AnACeS_base!Q19 -> 17.26789366 | P38: =AnACeS_base!R19 -> 18.46253334 | Q38: =AnACeS_base!S19 -> 19.62030473
C39: =AnACeS_base!D1 ->  | D39: =AnACeS_base!F20 ->  | E39: =AnACeS_base!G20 ->  | F39: =AnACeS_base!H20 ->  | G39: =AnACeS_base!I20 ->  | H39: =AnACeS_base!J20 ->  | I39: =AnACeS_base!K20 ->  | J39: =AnACeS_base!L20 ->  | K39: =AnACeS_base!M20 ->  | L39: =AnACeS_base!N20 ->  | M39: =AnACeS_base!O20 ->  | N39: =AnACeS_base!P20 ->  | O39: =AnACeS_base!Q20 ->  | P39: =AnACeS_base!R20 ->  | Q39: =AnACeS_base!S20 -> 
C41: PROPORÇÃO (%) DE NASCIMENTOS PRÉ-TERMO
C42: =AnACeS_base!$D$15 -> Continente | H42: =AnACeS_base!J21 -> 6.027031394 | I42: =AnACeS_base!K21 -> 6.353633341 | J42: =AnACeS_base!L21 -> 6.734585328 | K42: =AnACeS_base!M21 -> 6.7775218 | L42: =AnACeS_base!N21 -> 7.102159626 | M42: =AnACeS_base!O21 -> 7.836818215 | N42: =AnACeS_base!P21 -> 8.66534774 | O42: =AnACeS_base!Q21 -> 8.960200616 | P42: =AnACeS_base!R21 -> 8.518759024 | Q42: =AnACeS_base!S21 -> 8.020711873
C43: =AnACeS_base!$D$16 -> Região de Saúde do Alentejo | H43: =AnACeS_base!J22 -> 6.257275902 | I43: =AnACeS_base!K22 -> 6.436629064 | J43: =AnACeS_base!L22 -> 6.711849585 | K43: =AnACeS_base!M22 -> 6.852624643 | L43: =AnACeS_base!N22 -> 7.072318444 | M43: =AnACeS_base!O22 -> 8.115412129 | N43: =AnACeS_base!P22 -> 8.56863862 | O43: =AnACeS_base!Q22 -> 8.801635992 | P43: =AnACeS_base!R22 -> 8.115754587 | Q43: =AnACeS_base!S22 -> 7.463537847
C44: =AnACeS_base!D1 ->  | H44: =AnACeS_base!J23 ->  | I44: =AnACeS_base!K23 ->  | J44: =AnACeS_base!L23 ->  | K44: =AnACeS_base!M23 ->  | L44: =AnACeS_base!N23 ->  | M44: =AnACeS_base!O23 ->  | N44: =AnACeS_base!P23 ->  | O44: =AnACeS_base!Q23 ->  | P44: =AnACeS_base!R23 ->  | Q44: =AnACeS_base!S23 -> 
C45: PROPORÇÃO (%) DE BAIXO PESO À NASCENÇA
C46: =AnACeS_base!$D$15 -> Continente | D46: =AnACeS_base!F24 -> 6.524442593 | E46: =AnACeS_base!G24 -> 6.882311177 | F46: =AnACeS_base!H24 -> 7.071939215 | G46: =AnACeS_base!I24 -> 7.231042172 | H46: =AnACeS_base!J24 -> 7.199326807 | I46: =AnACeS_base!K24 -> 7.305634413 | J46: =AnACeS_base!L24 -> 7.443041799 | K46: =AnACeS_base!M24 -> 7.506047079 | L46: =AnACeS_base!N24 -> 7.562931974 | M46: =AnACeS_base!O24 -> 7.648188017 | N46: =AnACeS_base!P24 -> 7.714029659 | O46: =AnACeS_base!Q24 -> 7.918196661 | P46: =AnACeS_base!R24 -> 8.082165284 | Q46: =AnACeS_base!S24 -> 8.325861134
C47: =AnACeS_base!$D$16 -> Região de Saúde do Alentejo | D47: =AnACeS_base!F25 -> 6.837233034 | E47: =AnACeS_base!G25 -> 7.321250178 | F47: =AnACeS_base!H25 -> 7.613853672 | G47: =AnACeS_base!I25 -> 7.76873785 | H47: =AnACeS_base!J25 -> 7.530558789 | I47: =AnACeS_base!K25 -> 7.358254074 | J47: =AnACeS_base!L25 -> 7.535344702 | K47: =AnACeS_base!M25 -> 7.701881543 | L47: =AnACeS_base!N25 -> 8.21178973 | M47: =AnACeS_base!O25 -> 8.194897067 | N47: =AnACeS_base!P25 -> 8.503539751 | O47: =AnACeS_base!Q25 -> 8.433537832 | P47: =AnACeS_base!R25 -> 8.85942931 | Q47: =AnACeS_base!S25 -> 8.82424835
C48: =AnACeS_base!D1 ->  | D48: =AnACeS_base!F26 ->  | E48: =AnACeS_base!G26 ->  | F48: =AnACeS_base!H26 ->  | G48: =AnACeS_base!I26 ->  | H48: =AnACeS_base!J26 ->  | I48: =AnACeS_base!K26 ->  | J48: =AnACeS_base!L26 ->  | K48: =AnACeS_base!M26 ->  | L48: =AnACeS_base!N26 ->  | M48: =AnACeS_base!O26 ->  | N48: =AnACeS_base!P26 ->  | O48: =AnACeS_base!Q26 ->  | P48: =AnACeS_base!R26 ->  | Q48: =AnACeS_base!S26 -> 
C50: Fonte: INE
C52: PROPORÇÃO (%) DE NASCIMENTOS EM MULHERES COM IDADE INFERIOR A 20 ANOS, 1996-2011 (MÉDIA ANUAL POR TRIÉNIOS) | I52: PROPORÇÃO (%) DE NASCIMENTOS EM MULHERES COM IDADE IGUAL OU SUPERIOR A 35 ANOS, 1996-2011 (MÉDIA ANUAL POR TRIÉNIOS)
C68: PROPORÇÃO (%) DE NASCIMENTOS PRÉ-TERMO, 1996-2011 (MÉDIA ANUAL POR TRIÉNIOS) | I68: PROPORÇÃO (%) DE BAIXO PESO À NASCENÇA, 1996-2011 (MÉDIA ANUAL POR TRIÉNIOS)
C87: MORTALIDADE INFANTIL E COMPONENTES
C89: Local de residência | D89: 96-98 | E89: 97-99 | F89: 98-00 | G89: 99-01 | H89: 00-02 | I89: 01-03 | J89: 02-04 | K89: 03-05 | L89: 04-06 | M89: 05-07 | N89: 06-08 | O89: 07-09 | P89: 08-10 | Q89: 09-11
C91: TAXA DE MORTALIDADE INFANTIL
C92: =AnACeS_base!$D$15 -> Continente | D92: =AnACeS_base!F27 -> 6.221119612 | E92: =AnACeS_base!G27 -> 5.828788635 | F92: =AnACeS_base!H27 -> 5.501341198 | G92: =AnACeS_base!I27 -> 5.173492761 | H92: =AnACeS_base!J27 -> 5.015412102 | I92: =AnACeS_base!K27 -> 4.611985553 | J92: =AnACeS_base!L27 -> 4.261439636 | K92: =AnACeS_base!M27 -> 3.748070846 | L92: =AnACeS_base!N27 -> 3.481898695 | M92: =AnACeS_base!O27 -> 3.359350526 | N92: =AnACeS_base!P27 -> 3.310843944 | O92: =AnACeS_base!Q27 -> 3.413639401 | P92: =AnACeS_base!R27 -> 3.101749829 | Q92: =AnACeS_base!S27 -> 3.044404356
C93: =AnACeS_base!$D$16 -> Região de Saúde do Alentejo | D93: =AnACeS_base!F28 -> 4.956629492 | E93: =AnACeS_base!G28 -> 4.56686171 | F93: =AnACeS_base!H28 -> 4.603725476 | G93: =AnACeS_base!I28 -> 4.31996544 | H93: =AnACeS_base!J28 -> 4.583818393 | I93: =AnACeS_base!K28 -> 4.644990046 | J93: =AnACeS_base!L28 -> 4.882670165 | K93: =AnACeS_base!M28 -> 4.465919906 | L93: =AnACeS_base!N28 -> 3.798237618 | M93: =AnACeS_base!O28 -> 3.65630713 | N93: =AnACeS_base!P28 -> 3.824558548 | O93: =AnACeS_base!Q28 -> 4.662576687 | P93: =AnACeS_base!R28 -> 4.041710452 | Q93: =AnACeS_base!S28 -> 3.340666504
C94: =AnACeS_base!D1 ->  | D94: =AnACeS_base!F29 ->  | E94: =AnACeS_base!G29 ->  | F94: =AnACeS_base!H29 ->  | G94: =AnACeS_base!I29 ->  | H94: =AnACeS_base!J29 ->  | I94: =AnACeS_base!K29 ->  | J94: =AnACeS_base!L29 ->  | K94: =AnACeS_base!M29 ->  | L94: =AnACeS_base!N29 ->  | M94: =AnACeS_base!O29 ->  | N94: =AnACeS_base!P29 ->  | O94: =AnACeS_base!Q29 ->  | P94: =AnACeS_base!R29 ->  | Q94: =AnACeS_base!S29 -> 
C96: TAXA DE MORTALIDADE NEONATAL
C97: Continente | D97: =AnACeS_base!F30 -> 3.875968992 | E97: =AnACeS_base!G30 -> 3.695700028 | F97: =AnACeS_base!H30 -> 3.444027722 | G97: =AnACeS_base!I30 -> 3.177612113 | H97: =AnACeS_base!J30 -> 3.143398102 | I97: =AnACeS_base!K30 -> 2.941698893 | J97: =AnACeS_base!L30 -> 2.832566967 | K97: =AnACeS_base!M30 -> 2.425222312 | L97: =AnACeS_base!N30 -> 2.248386318 | M97: =AnACeS_base!O30 -> 2.102926767 | N97: =AnACeS_base!P30 -> 2.079845787 | O97: =AnACeS_base!Q30 -> 2.177013221 | P97: =AnACeS_base!R30 -> 2.041352059 | Q97: =AnACeS_base!S30 -> 2.126475686
C98: Região de Saúde do Alentejo | D98: =AnACeS_base!F31 -> 3.280122458 | E98: =AnACeS_base!G31 -> 3.139717425 | F98: =AnACeS_base!H31 -> 2.620582194 | G98: =AnACeS_base!I31 -> 2.591979264 | H98: =AnACeS_base!J31 -> 2.910360885 | I98: =AnACeS_base!K31 -> 3.170390032 | J98: =AnACeS_base!L31 -> 3.570908031 | K98: =AnACeS_base!M31 -> 3.221319277 | L98: =AnACeS_base!N31 -> 2.962625342 | M98: =AnACeS_base!O31 -> 2.384548128 | N98: =AnACeS_base!P31 -> 2.197086826 | O98: =AnACeS_base!Q31 -> 2.617586912 | P98: =AnACeS_base!R31 -> 2.263357853 | Q98: =AnACeS_base!S31 -> 2.199951112
C99: =AnACeS_base!D1 ->  | D99: =AnACeS_base!F32 ->  | E99: =AnACeS_base!G32 ->  | F99: =AnACeS_base!H32 ->  | G99: =AnACeS_base!I32 ->  | H99: =AnACeS_base!J32 ->  | I99: =AnACeS_base!K32 ->  | J99: =AnACeS_base!L32 ->  | K99: =AnACeS_base!M32 ->  | L99: =AnACeS_base!N32 ->  | M99: =AnACeS_base!O32 ->  | N99: =AnACeS_base!P32 ->  | O99: =AnACeS_base!Q32 ->  | P99: =AnACeS_base!R32 ->  | Q99: =AnACeS_base!S32 -> 
C101: TAXA DE MORTALIDADE NEONATAL PRECOCE
C102: Continente | D102: =AnACeS_base!F33 -> 2.843850213 | E102: =AnACeS_base!G33 -> 2.678762437 | F102: =AnACeS_base!H33 -> 2.57922781 | G102: =AnACeS_base!I33 -> 2.357387189 | H102: =AnACeS_base!J33 -> 2.347639707 | I102: =AnACeS_base!K33 -> 2.209390377 | J102: =AnACeS_base!L33 -> 2.083510369 | K102: =AnACeS_base!M33 -> 1.7510169 | L102: =AnACeS_base!N33 -> 1.585944485 | M102: =AnACeS_base!O33 -> 1.55303308 | N102: =AnACeS_base!P33 -> 1.528602107 | O102: =AnACeS_base!Q33 -> 1.546643886 | P102: =AnACeS_base!R33 -> 1.398896081 | Q102: =AnACeS_base!S33 -> 1.399929826
C103: Região de Saúde do Alentejo | D103: =AnACeS_base!F34 -> 1.822290254 | E103: =AnACeS_base!G34 -> 1.783930355 | F103: =AnACeS_base!H34 -> 1.841490191 | G103: =AnACeS_base!I34 -> 1.871985024 | H103: =AnACeS_base!J34 -> 2.037252619 | I103: =AnACeS_base!K34 -> 2.285630023 | J103: =AnACeS_base!L34 -> 2.696399942 | K103: =AnACeS_base!M34 -> 2.635624863 | L103: =AnACeS_base!N34 -> 2.430872075 | M103: =AnACeS_base!O34 -> 1.907638503 | N103: =AnACeS_base!P34 -> 1.871592481 | O103: =AnACeS_base!Q34 -> 2.208588957 | P103: =AnACeS_base!R34 -> 1.940021017 | Q103: =AnACeS_base!S34 -> 1.792552758
C104: =AnACeS_base!D1 ->  | D104: =AnACeS_base!F35 ->  | E104: =AnACeS_base!G35 ->  | F104: =AnACeS_base!H35 ->  | G104: =AnACeS_base!I35 ->  | H104: =AnACeS_base!J35 ->  | I104: =AnACeS_base!K35 ->  | J104: =AnACeS_base!L35 ->  | K104: =AnACeS_base!M35 ->  | L104: =AnACeS_base!N35 ->  | M104: =AnACeS_base!O35 ->  | N104: =AnACeS_base!P35 ->  | O104: =AnACeS_base!Q35 ->  | P104: =AnACeS_base!R35 ->  | Q104: =AnACeS_base!S35 -> 
C106: TAXA DE MORTALIDADE PÓS-NEONATAL
C107: Continente | D107: =AnACeS_base!F36 -> 2.34515062 | E107: =AnACeS_base!G36 -> 2.133088607 | F107: =AnACeS_base!H36 -> 2.057313476 | G107: =AnACeS_base!I36 -> 1.995880648 | H107: =AnACeS_base!J36 -> 1.872014 | I107: =AnACeS_base!K36 -> 1.67028666 | J107: =AnACeS_base!L36 -> 1.42887267 | K107: =AnACeS_base!M36 -> 1.322848534 | L107: =AnACeS_base!N36 -> 1.233512378 | M107: =AnACeS_base!O36 -> 1.256423758 | N107: =AnACeS_base!P36 -> 1.230998157 | O107: =AnACeS_base!Q36 -> 1.236626181 | P107: =AnACeS_base!R36 -> 1.06039777 | Q107: =AnACeS_base!S36 -> 0.9179286709
C108: Região de Saúde do Alentejo | D108: =AnACeS_base!F37 -> 1.676507034 | E108: =AnACeS_base!G37 -> 1.427144284 | F108: =AnACeS_base!H37 -> 1.983143282 | G108: =AnACeS_base!I37 -> 1.727986176 | H108: =AnACeS_base!J37 -> 1.673457509 | I108: =AnACeS_base!K37 -> 1.474600015 | J108: =AnACeS_base!L37 -> 1.311762134 | K108: =AnACeS_base!M37 -> 1.24460063 | L108: =AnACeS_base!N37 -> 0.8356122759 | M108: =AnACeS_base!O37 -> 1.271759002 | N108: =AnACeS_base!P37 -> 1.627471723 | O108: =AnACeS_base!Q37 -> 2.044989775 | P108: =AnACeS_base!R37 -> 1.778352599 | Q108: =AnACeS_base!S37 -> 1.140715392
C109: =AnACeS_base!D1 ->  | D109: =AnACeS_base!F38 ->  | E109: =AnACeS_base!G38 ->  | F109: =AnACeS_base!H38 ->  | G109: =AnACeS_base!I38 ->  | H109: =AnACeS_base!J38 ->  | I109: =AnACeS_base!K38 ->  | J109: =AnACeS_base!L38 ->  | K109: =AnACeS_base!M38 ->  | L109: =AnACeS_base!N38 ->  | M109: =AnACeS_base!O38 ->  | N109: =AnACeS_base!P38 ->  | O109: =AnACeS_base!Q38 ->  | P109: =AnACeS_base!R38 ->  | Q109: =AnACeS_base!S38 -> 
C111: TAXA DE MORTALIDADE FETAL TARDIA
C112: Continente | D112: =AnACeS_base!F39 -> 0.4202274949 | E112: =AnACeS_base!G39 -> 0.3851332987 | F112: =AnACeS_base!H39 -> 0.3736486977 | G112: =AnACeS_base!I39 -> 0.3553785054 | H112: =AnACeS_base!J39 -> 0.346368749 | I112: =AnACeS_base!K39 -> 0.3208712291 | J112: =AnACeS_base!L39 -> 0.2968504357 | K112: =AnACeS_base!M39 -> 0.2759482135 | L112: =AnACeS_base!N39 -> 0.2785569708 | M112: =AnACeS_base!O39 -> 0.2844666582 | N112: =AnACeS_base!P39 -> 0.2768821919 | O112: =AnACeS_base!Q39 -> 0.2696751188 | P112: =AnACeS_base!R39 -> 0.2573545878 | Q112: =AnACeS_base!S39 -> 0.2502960776
C113: Região de Saúde do Alentejo | D113: =AnACeS_base!F40 -> 0.3703703704 | E113: =AnACeS_base!G40 -> 0.447538538 | F113: =AnACeS_base!H40 -> 0.4933399112 | G113: =AnACeS_base!I40 -> 0.5869300694 | H113: =AnACeS_base!J40 -> 0.5499276411 | I113: =AnACeS_base!K40 -> 0.4696558303 | J113: =AnACeS_base!L40 -> 0.3992160848 | K113: =AnACeS_base!M40 -> 0.3792575305 | L113: =AnACeS_base!N40 -> 0.3557641359 | M113: =AnACeS_base!O40 -> 0.4352643242 | N113: =AnACeS_base!P40 -> 0.3648451435 | O113: =AnACeS_base!Q40 -> 0.3829856584 | P113: =AnACeS_base!R40 -> 0.3463831158 | Q113: =AnACeS_base!S40 -> 0.3248599042
C114: =AnACeS_base!D1 ->  | D114: =AnACeS_base!F41 ->  | E114: =AnACeS_base!G41 ->  | F114: =AnACeS_base!H41 ->  | G114: =AnACeS_base!I41 ->  | H114: =AnACeS_base!J41 ->  | I114: =AnACeS_base!K41 ->  | J114: =AnACeS_base!L41 ->  | K114: =AnACeS_base!M41 ->  | L114: =AnACeS_base!N41 ->  | M114: =AnACeS_base!O41 ->  | N114: =AnACeS_base!P41 ->  | O114: =AnACeS_base!Q41 ->  | P114: =AnACeS_base!R41 ->  | Q114: =AnACeS_base!S41 -> 
C116: TAXA DE MORTALIDADE PERINATAL
C117: Continente | D117: =AnACeS_base!F42 -> 7.034174522 | E117: =AnACeS_base!G42 -> 6.519778618 | F117: =AnACeS_base!H42 -> 6.306077535 | G117: =AnACeS_base!I42 -> 5.902794595 | H117: =AnACeS_base!J42 -> 5.803195707 | I117: =AnACeS_base!K42 -> 5.411013369 | J117: =AnACeS_base!L42 -> 5.045829816 | K117: =AnACeS_base!M42 -> 4.505667135 | L117: =AnACeS_base!N42 -> 4.367096434 | M117: =AnACeS_base!O42 -> 4.393281801 | N117: =AnACeS_base!P42 -> 4.293191598 | O117: =AnACeS_base!Q42 -> 4.23922416 | P117: =AnACeS_base!R42 -> 3.968841835 | Q117: =AnACeS_base!S42 -> 3.899386633
C118: Região de Saúde do Alentejo | D118: =AnACeS_base!F43 -> 5.519244735 | E118: =AnACeS_base!G43 -> 6.25133196 | F118: =AnACeS_base!H43 -> 6.765804496 | G118: =AnACeS_base!I43 -> 7.730298475 | H118: =AnACeS_base!J43 -> 7.525325615 | I118: =AnACeS_base!K43 -> 6.971453732 | J118: =AnACeS_base!L43 -> 6.677796327 | K118: =AnACeS_base!M43 -> 6.418204361 | L118: =AnACeS_base!N43 -> 5.979865264 | M118: =AnACeS_base!O43 -> 6.251978474 | N118: =AnACeS_base!P43 -> 5.513215502 | O118: =AnACeS_base!Q43 -> 6.029986962 | P118: =AnACeS_base!R43 -> 5.39713227 | Q118: =AnACeS_base!S43 -> 5.035328515
C119: =AnACeS_base!D1 ->  | D119: =AnACeS_base!F44 ->  | E119: =AnACeS_base!G44 ->  | F119: =AnACeS_base!H44 ->  | G119: =AnACeS_base!I44 ->  | H119: =AnACeS_base!J44 ->  | I119: =AnACeS_base!K44 ->  | J119: =AnACeS_base!L44 ->  | K119: =AnACeS_base!M44 ->  | L119: =AnACeS_base!N44 ->  | M119: =AnACeS_base!O44 ->  | N119: =AnACeS_base!P44 ->  | O119: =AnACeS_base!Q44 ->  | P119: =AnACeS_base!R44 ->  | Q119: =AnACeS_base!S44 -> 
C121: Fonte: INE
C123: TAXA DE MORTALIDADE INFANTIL (/1000 NADOS VIVOS), 1996-2011 (MÉDIA ANUAL POR TRIÉNIOS) | I123: TAXA DE MORTALIDADE NEONATAL (/1000 NADOS VIVOS), 1996-2011 (MÉDIA ANUAL POR TRIÉNIOS)
C138: TAXA DE MORTALIDADE NEONATAL PRECOCE (/1000 NADOS VIVOS), 1996-2011 (MÉDIA ANUAL POR TRIÉNIOS) | I138: TAXA DE MORTALIDADE PÓS-NEONATAL (/1000 NADOS VIVOS), 1996-2011 (MÉDIA ANUAL POR TRIÉNIOS)
C153: TAXA DE MORTALIDADE FETAL TARDIA (/1000 (NV+FM 28+ SEM)), 1996-2011 (MÉDIA ANUAL POR TRIÉNIOS) | I153: TAXA DE MORTALIDADE PERINATAL (/1000 (NV+FM 28+ SEM)), 1996-2011 (MÉDIA ANUAL POR TRIÉNIOS)

Sheet AnACeS_base (hidden)
B1: AnACeS_Select | C1: 1 | D1: =IF(AnACeS_Select=1,"",VLOOKUP(AnACeS_Select,AnACeS_tab,3,FALSE)) -> 
F2: 2 | G2: 3 | H2: 4 | I2: 5 | J2: 6 | K2: 7 | L2: 8 | M2: 9 | N2: 10 | O2: 11 | P2: 12 | Q2: 13 | R2: 14 | S2: 15 | T2: 16 | U2: 17
A3: Icod | B3: Indicador | C3: Rcod | D3: Local_Residencia | E3: cod_IndRes | F3: 1996 | G3: 1997 | H3: 1998 | I3: 1999 | J3: 2000 | K3: 2001 | L3: 2002 | M3: 2003 | N3: 2004 | O3: 2005 | P3: 2006 | Q3: 2007 | R3: 2008 | S3: 2009 | T3: 2010 | U3: 2011
A4: I02 | B4: Taxa Bruta de Natalidade | C4: =Id!$D$39 -> R01 | D4: =Id!$F$39 -> Continente | E4: I02R01 | F4: =VLOOKUP($E4,BaseAnual,F$2,FALSE) -> 10.82925126 | G4: 11.06279836 | H4: 11.07442506 | I4: 11.28398227 | J4: 11.62403284 | K4: 10.84789947 | L4: 10.94016541 | M4: 10.66634912 | N4: 10.31263787 | O4: 10.27729569 | P4: 9.876277862 | Q4: 9.578917507 | R4: 9.777522063 | S4: 9.302055414 | T4: 9.476581361 | U4: 9.127027218
A5: I02 | B5: Taxa Bruta de Natalidade | C5: =Id!$D$40 -> R02 | D5: =Id!$F$40 -> Região de Saúde do Alentejo | E5: I02R02 | F5: 8.320012727 | G5: 8.869166976 | H5: 8.846243056 | I5: 8.927551246 | J5: 9.106433587 | K5: 8.435470936 | L5: 8.671022219 | M5: 8.790002687 | N5: 8.786564342 | O5: 8.623684912 | P5: 7.936285288 | Q5: 7.785889025 | R5: 8.218532909 | S5: 7.98822538 | T5: 8.268955508 | U5: 8.023682615
A6: I02 | B6: Taxa Bruta de Natalidade | C6: =IF(AnACeS_Select=1,"",VLOOKUP(AnACeS_Select,AnACeS_tab,2,FALSE)) ->  | D6: =IF(AnACeS_Select=1,"",VLOOKUP(AnACeS_Select,AnACeS_tab,3,FALSE)) ->  | E6: =IF(C6="","",CONCATENATE(A6,C6)) ->  | F6: =IF(AnACeS_base!$C6="","",VLOOKUP($E6,BaseAnual,F$2,FALSE)) ->  | G6: =IF(AnACeS_base!$C6="","",VLOOKUP($E6,BaseAnual,G$2,FALSE)) ->  | H6: =IF(AnACeS_base!$C6="","",VLOOKUP($E6,BaseAnual,H$2,FALSE)) ->  | I6: =IF(AnACeS_base!$C6="","",VLOOKUP($E6,BaseAnual,I$2,FALSE)) ->  | J6: =IF(AnACeS_base!$C6="","",VLOOKUP($E6,BaseAnual,J$2,FALSE)) ->  | K6: =IF(AnACeS_base!$C6="","",VLOOKUP($E6,BaseAnual,K$2,FALSE)) ->  | L6: =IF(AnACeS_base!$C6="","",VLOOKUP($E6,BaseAnual,L$2,FALSE)) ->  | M6: =IF(AnACeS_base!$C6="","",VLOOKUP($E6,BaseAnual,M$2,FALSE)) ->  | N6: =IF(AnACeS_base!$C6="","",VLOOKUP($E6,BaseAnual,N$2,FALSE)) ->  | O6: =IF(AnACeS_base!$C6="","",VLOOKUP($E6,BaseAnual,O$2,FALSE)) ->  | P6: =IF(AnACeS_base!$C6="","",VLOOKUP($E6,BaseAnual,P$2,FALSE)) ->  | Q6: =IF(AnACeS_base!$C6="","",VLOOKUP($E6,BaseAnual,Q$2,FALSE)) ->  | R6: =IF(AnACeS_base!$C6="","",VLOOKUP($E6,BaseAnual,R$2,FALSE)) ->  | S6: =IF(AnACeS_base!$C6="","",VLOOKUP($E6,BaseAnual,S$2,FALSE)) ->  | T6: =IF(AnACeS_base!$C6="","",VLOOKUP($E6,BaseAnual,T$2,FALSE)) ->  | U6: =IF(AnACeS_base!$C6="","",VLOOKUP($E6,BaseAnual,U$2,FALSE)) -> 
A7: I13 | B7: Taxa Bruta de Mortalidade | C7: =Id!$D$39 -> R01 | D7: =Id!$F$39 -> Continente | E7: I13R01 | F7: =VLOOKUP($E7,BaseAnual,F$2,FALSE) -> 10.59922839 | G7: 10.3401192 | H7: 10.45125093 | I7: 10.59114507 | J7: 10.26004155 | K7: 10.15787774 | L7: 10.20079014 | M7: 10.37406673 | N7: 9.677462665 | O7: 10.16828202 | P7: 9.61132702 | Q7: 9.751174955 | R7: 9.811476934 | S7: 9.796230806 | T7: 9.940291416 | U7: 9.750292697
A8: I13 | B8: Taxa Bruta de Mortalidade | C8: =Id!$D$40 -> R02 | D8: =Id!$F$40 -> Região de Saúde do Alentejo | E8: I13R02 | F8: 15.09268869 | G8: 14.51749587 | H8: 14.9015373 | I8: 15.02334722 | J8: 14.38961356 | K8: 14.21805015 | L8: 14.45233992 | M8: 15.224277 | N8: 13.56528943 | O8: 15.1953948 | P8: 13.69986254 | Q8: 14.15633886 | R8: 14.79257428 | S8: 14.59562329 | T8: 14.89808438 | U8: 14.15817052
A9: I13 | B9: Taxa Bruta de Mortalidade | C9: =IF(AnACeS_Select=1,"",VLOOKUP(AnACeS_Select,AnACeS_tab,2,FALSE)) ->  | D9: =IF(AnACeS_Select=1,"",VLOOKUP(AnACeS_Select,AnACeS_tab,3,FALSE)) ->  | E9: =IF(C6="","",CONCATENATE(A9,C9)) ->  | F9: =IF(AnACeS_base!$C9="","",VLOOKUP($E9,BaseAnual,F$2,FALSE)) ->  | G9: =IF(AnACeS_base!$C9="","",VLOOKUP($E9,BaseAnual,G$2,FALSE)) ->  | H9: =IF(AnACeS_base!$C9="","",VLOOKUP($E9,BaseAnual,H$2,FALSE)) ->  | I9: =IF(AnACeS_base!$C9="","",VLOOKUP($E9,BaseAnual,I$2,FALSE)) ->  | J9: =IF(AnACeS_base!$C9="","",VLOOKUP($E9,BaseAnual,J$2,FALSE)) ->  | K9: =IF(AnACeS_base!$C9="","",VLOOKUP($E9,BaseAnual,K$2,FALSE)) ->  | L9: =IF(AnACeS_base!$C9="","",VLOOKUP($E9,BaseAnual,L$2,FALSE)) ->  | M9: =IF(AnACeS_base!$C9="","",VLOOKUP($E9,BaseAnual,M$2,FALSE)) ->  | N9: =IF(AnACeS_base!$C9="","",VLOOKUP($E9,BaseAnual,N$2,FALSE)) ->  | O9: =IF(AnACeS_base!$C9="","",VLOOKUP($E9,BaseAnual,O$2,FALSE)) ->  | P9: =IF(AnACeS_base!$C9="","",VLOOKUP($E9,BaseAnual,P$2,FALSE)) ->  | Q9: =IF(AnACeS_base!$C9="","",VLOOKUP($E9,BaseAnual,Q$2,FALSE)) ->  | R9: =IF(AnACeS_base!$C9="","",VLOOKUP($E9,BaseAnual,R$2,FALSE)) ->  | S9: =IF(AnACeS_base!$C9="","",VLOOKUP($E9,BaseAnual,S$2,FALSE)) ->  | T9: =IF(AnACeS_base!$C9="","",VLOOKUP($E9,BaseAnual,T$2,FALSE)) ->  | U9: =IF(AnACeS_base!$C9="","",VLOOKUP($E9,BaseAnual,U$2,FALSE)) -> 
A10: I11 | B10: Índice sintético de fecundidade (ISF) | C10: =Id!$D$39 -> R01 | D10: =Id!$F$39 -> Continente | E10: I11R01 | F10: =VLOOKUP($E10,BaseAnual,F$2,FALSE) -> 1.430507732 | G10: 1.467928863 | H10: 1.463759498 | I10: 1.496298194 | J10: 1.547289654 | K10: 1.446928308 | L10: 1.463499912 | M10: 1.433247534 | N10: 1.39709478 | O10: 1.404695986 | P10: 0.05673651699 | Q10: 1.336207962 | R10: 1.379282825 | S10: 1.331599081 | T10: 1.378433561 | U10: 1.30616032
A11: I11 | B11: Índice sintético de fecundidade (ISF) | C11: =Id!$D$40 -> R02 | D11: =Id!$F$40 -> Região de Saúde do Alentejo | E11: I11R02 | F11: 1.31165901 | G11: 1.39951639 | H11: 1.405368764 | I11: 1.424195547 | J11: 1.454479336 | K11: 1.34331365 | L11: 1.377500105 | M11: 1.39573183 | N11: 1.395255347 | O11: 1.370543128 | P11: 1.26170722 | Q11: 1.244466768 | R11: 1.310492874 | S11: 1.285827659 | T11: 1.348126504 | U11: 1.324699314
A12: I11 | B12: Índice sintético de fecundidade (ISF) | C12: =IF(AnACeS_Select=1,"",VLOOKUP(AnACeS_Select,AnACeS_tab,2,FALSE)) ->  | D12: =IF(AnACeS_Select=1,"",VLOOKUP(AnACeS_Select,AnACeS_tab,3,FALSE)) ->  | E12: =IF(C12="","",CONCATENATE(A12,C12)) ->  | F12: =IF(AnACeS_base!$C12="","",VLOOKUP($E12,BaseAnual,F$2,FALSE)) ->  | G12: =IF(AnACeS_base!$C12="","",VLOOKUP($E12,BaseAnual,G$2,FALSE)) ->  | H12: =IF(AnACeS_base!$C12="","",VLOOKUP($E12,BaseAnual,H$2,FALSE)) ->  | I12: =IF(AnACeS_base!$C12="","",VLOOKUP($E12,BaseAnual,I$2,FALSE)) ->  | J12: =IF(AnACeS_base!$C12="","",VLOOKUP($E12,BaseAnual,J$2,FALSE)) ->  | K12: =IF(AnACeS_base!$C12="","",VLOOKUP($E12,BaseAnual,K$2,FALSE)) ->  | L12: =IF(AnACeS_base!$C12="","",VLOOKUP($E12,BaseAnual,L$2,FALSE)) ->  | M12: =IF(AnACeS_base!$C12="","",VLOOKUP($E12,BaseAnual,M$2,FALSE)) ->  | N12: =IF(AnACeS_base!$C12="","",VLOOKUP($E12,BaseAnual,N$2,FALSE)) ->  | O12: =IF(AnACeS_base!$C12="","",VLOOKUP($E12,BaseAnual,O$2,FALSE)) ->  | P12: =IF(AnACeS_base!$C12="","",VLOOKUP($E12,BaseAnual,P$2,FALSE)) ->  | Q12: =IF(AnACeS_base!$C12="","",VLOOKUP($E12,BaseAnual,Q$2,FALSE)) ->  | R12: =IF(AnACeS_base!$C12="","",VLOOKUP($E12,BaseAnual,R$2,FALSE)) ->  | S12: =IF(AnACeS_base!$C12="","",VLOOKUP($E12,BaseAnual,S$2,FALSE)) ->  | T12: =IF(AnACeS_base!$C12="","",VLOOKUP($E12,BaseAnual,T$2,FALSE)) ->  | U12: =IF(AnACeS_base!$C12="","",VLOOKUP($E12,BaseAnual,U$2,FALSE)) -> 
F13: 18 | G13: 19 | H13: 20 | I13: 21 | J13: 22 | K13: 23 | L13: 24 | M13: 25 | N13: 26 | O13: 27 | P13: 28 | Q13: 29 | R13: 30 | S13: 31
A14: Icod | B14: Indicador | C14: Rcod | D14: Local_Residencia | E14: cod_IndRes | F14: 96-98 | G14: 97-99 | H14: 98-00 | I14: 99-01 | J14: 00-02 | K14: 01-03 | L14: 02-04 | M14: 03-05 | N14: 04-06 | O14: 05-07 | P14: 06-08 | Q14: 07-09 | R14: 08-10 | S14: 09-11
A15: I04 | B15: Proporção de Nascimentos em Mulheres com Idade Inferior a 20 anos | C15: =Id!$D$39 -> R01 | D15: =Id!$F$39 -> Continente | E15: I04R01 | F15: =VLOOKUP($E15,BaseTrienal,F$13,FALSE) -> 6.600510062 | G15: 6.339737767 | H15: 6.157071939 | I15: 5.999793425 | J15: 5.838610441 | K15: 5.574270107 | L15: 5.323966979 | M15: 5.047913318 | N15: 4.792097689 | O15: 4.59577815 | P15: 4.375792624 | Q15: 4.281000048 | R15: 4.070614893 | S15: 3.892868155
A16: I04 | B16: Proporção de Nascimentos em Mulheres com Idade Inferior a 20 anos | C16: =Id!$D$40 -> R02 | D16: =Id!$F$40 -> Região de Saúde do Alentejo | E16: I04R02 | F16: 10.34331948 | G16: 9.64035964 | H16: 9.023301934 | I16: 8.841529268 | J16: 8.636495925 | K16: 8.331490083 | L16: 7.863285235 | M16: 7.226004832 | N16: 6.700091158 | O16: 6.422382958 | P16: 5.980958581 | Q16: 5.644171779 | R16: 5.343141217 | S16: 5.36136234
A17: I04 | B17: Proporção de Nascimentos em Mulheres com Idade Inferior a 20 anos | C17: =IF(AnACeS_Select=1,"",VLOOKUP(AnACeS_Select,AnACeS_tab,2,FALSE)) ->  | D17: =IF(AnACeS_Select=1,"",VLOOKUP(AnACeS_Select,AnACeS_tab,3,FALSE)) ->  | E17: =IF(C17="","",CONCATENATE(A17,C17)) ->  | F17: =IF(AnACeS_base!$C17="","",VLOOKUP($E17,BaseTrienal,F$13,FALSE)) ->  | G17: =IF(AnACeS_base!$C17="","",VLOOKUP($E17,BaseTrienal,G$13,FALSE)) ->  | H17: =IF(AnACeS_base!$C17="","",VLOOKUP($E17,BaseTrienal,H$13,FALSE)) ->  | I17: =IF(AnACeS_base!$C17="","",VLOOKUP($E17,BaseTrienal,I$13,FALSE)) ->  | J17: =IF(AnACeS_base!$C17="","",VLOOKUP($E17,BaseTrienal,J$13,FALSE)) ->  | K17: =IF(AnACeS_base!$C17="","",VLOOKUP($E17,BaseTrienal,K$13,FALSE)) ->  | L17: =IF(AnACeS_base!$C17="","",VLOOKUP($E17,BaseTrienal,L$13,FALSE)) ->  | M17: =IF(AnACeS_base!$C17="","",VLOOKUP($E17,BaseTrienal,M$13,FALSE)) ->  | N17: =IF(AnACeS_base!$C17="","",VLOOKUP($E17,BaseTrienal,N$13,FALSE)) ->  | O17: =IF(AnACeS_base!$C17="","",VLOOKUP($E17,BaseTrienal,O$13,FALSE)) ->  | P17: =IF(AnACeS_base!$C17="","",VLOOKUP($E17,BaseTrienal,P$13,FALSE)) ->  | Q17: =IF(AnACeS_base!$C17="","",VLOOKUP($E17,BaseTrienal,Q$13,FALSE)) ->  | R17: =IF(AnACeS_base!$C17="","",VLOOKUP($E17,BaseTrienal,R$13,FALSE)) ->  | S17: =IF(AnACeS_base!$C17="","",VLOOKUP($E17,BaseTrienal,S$13,FALSE)) -> 
A18: I06 | B18: Proporção de Nascimentos em Mulheres com Idade igual ou superior a 35 anos | C18: =Id!$D$39 -> R01 | D18: =Id!$F$39 -> Continente | E18: I06R01 | F18: =VLOOKUP($E18,BaseTrienal,F$13,FALSE) -> 11.02852057 | G18: 11.79864636 | H18: 12.54202624 | I18: 13.28612483 | J18: 13.84558628 | K18: 14.45888633 | L18: 15.03841276 | M18: 15.7112228 | N18: 16.51927608 | O18: 17.42429797 | P18: 18.40139333 | Q18: 19.43259871 | R18: 20.60556657 | S18: 22.21032971
A19: I06 | B19: Proporção de Nascimentos em Mulheres com Idade igual ou superior a 35 anos | C19: =Id!$D$40 -> R02 | D19: =Id!$F$40 -> Região de Saúde do Alentejo | E19: I06R02 | F19: 9.803921569 | G19: 10.46810333 | H19: 11.43848714 | I19: 12.36950104 | J19: 12.64551804 | K19: 13.01334513 | L19: 13.48928728 | M19: 14.27630134 | N19: 14.89668794 | O19: 15.33264446 | P19: 16.42932704 | Q19: 17.26789366 | R19: 18.46253334 | S19: 19.62030473
A20: I06 | B20: Proporção de Nascimentos em Mulheres com Idade igual ou superior a 35 anos | C20: =IF(AnACeS_Select=1,"",VLOOKUP(AnACeS_Select,AnACeS_tab,2,FALSE)) ->  | D20: =IF(AnACeS_Select=1,"",VLOOKUP(AnACeS_Select,AnACeS_tab,3,FALSE)) ->  | E20: =IF(C20="","",CONCATENATE(A20,C20)) ->  | F20: =IF(AnACeS_base!$C20="","",VLOOKUP($E20,BaseTrienal,F$13,FALSE)) ->  | G20: =IF(AnACeS_base!$C20="","",VLOOKUP($E20,BaseTrienal,G$13,FALSE)) ->  | H20: =IF(AnACeS_base!$C20="","",VLOOKUP($E20,BaseTrienal,H$13,FALSE)) ->  | I20: =IF(AnACeS_base!$C20="","",VLOOKUP($E20,BaseTrienal,I$13,FALSE)) ->  | J20: =IF(AnACeS_base!$C20="","",VLOOKUP($E20,BaseTrienal,J$13,FALSE)) ->  | K20: =IF(AnACeS_base!$C20="","",VLOOKUP($E20,BaseTrienal,K$13,FALSE)) ->  | L20: =IF(AnACeS_base!$C20="","",VLOOKUP($E20,BaseTrienal,L$13,FALSE)) ->  | M20: =IF(AnACeS_base!$C20="","",VLOOKUP($E20,BaseTrienal,M$13,FALSE)) ->  | N20: =IF(AnACeS_base!$C20="","",VLOOKUP($E20,BaseTrienal,N$13,FALSE)) ->  | O20: =IF(AnACeS_base!$C20="","",VLOOKUP($E20,BaseTrienal,O$13,FALSE)) ->  | P20: =IF(AnACeS_base!$C20="","",VLOOKUP($E20,BaseTrienal,P$13,FALSE)) ->  | Q20: =IF(AnACeS_base!$C20="","",VLOOKUP($E20,BaseTrienal,Q$13,FALSE)) ->  | R20: =IF(AnACeS_base!$C20="","",VLOOKUP($E20,BaseTrienal,R$13,FALSE)) ->  | S20: =IF(AnACeS_base!$C20="","",VLOOKUP($E20,BaseTrienal,S$13,FALSE)) -> 
A21: I08 | B21: Proporção nascimentos pré-termo | C21: =Id!$D$39 -> R01 | D21: =Id!$F$39 -> Continente | E21: I08R01 | F21: =VLOOKUP($E21,BaseTrienal,F$13,FALSE) -> 0 | G21: 0 | H21: 0 | I21: 0 | J21: 6.027031394 | K21: 6.353633341 | L21: 6.734585328 | M21: 6.7775218 | N21: 7.102159626 | O21: 7.836818215 | P21: 8.66534774 | Q21: 8.960200616 | R21: 8.518759024 | S21: 8.020711873
A22: I08 | B22: Proporção nascimentos pré-termo | C22: =Id!$D$40 -> R02 | D22: =Id!$F$40 -> Região de Saúde do Alentejo | E22: I08R02 | F22: 0 | G22: 0 | H22: 0 | I22: 0 | J22: 6.257275902 | K22: 6.436629064 | L22: 6.711849585 | M22: 6.852624643 | N22: 7.072318444 | O22: 8.115412129 | P22: 8.56863862 | Q22: 8.801635992 | R22: 8.115754587 | S22: 7.463537847
A23: I08 | B23: Proporção nascimentos pré-termo | C23: =IF(AnACeS_Select=1,"",VLOOKUP(AnACeS_Select,AnACeS_tab,2,FALSE)) ->  | D23: =IF(AnACeS_Select=1,"",VLOOKUP(AnACeS_Select,AnACeS_tab,3,FALSE)) ->  | E23: =IF(C23="","",CONCATENATE(A23,C23)) ->  | F23: =IF(AnACeS_base!$C23="","",VLOOKUP($E23,BaseTrienal,F$13,FALSE)) ->  | G23: =IF(AnACeS_base!$C23="","",VLOOKUP($E23,BaseTrienal,G$13,FALSE)) ->  | H23: =IF(AnACeS_base!$C23="","",VLOOKUP($E23,BaseTrienal,H$13,FALSE)) ->  | I23: =IF(AnACeS_base!$C23="","",VLOOKUP($E23,BaseTrienal,I$13,FALSE)) ->  | J23: =IF(AnACeS_base!$C23="","",VLOOKUP($E23,BaseTrienal,J$13,FALSE)) ->  | K23: =IF(AnACeS_base!$C23="","",VLOOKUP($E23,BaseTrienal,K$13,FALSE)) ->  | L23: =IF(AnACeS_base!$C23="","",VLOOKUP($E23,BaseTrienal,L$13,FALSE)) ->  | M23: =IF(AnACeS_base!$C23="","",VLOOKUP($E23,BaseTrienal,M$13,FALSE)) ->  | N23: =IF(AnACeS_base!$C23="","",VLOOKUP($E23,BaseTrienal,N$13,FALSE)) ->  | O23: =IF(AnACeS_base!$C23="","",VLOOKUP($E23,BaseTrienal,O$13,FALSE)) ->  | P23: =IF(AnACeS_base!$C23="","",VLOOKUP($E23,BaseTrienal,P$13,FALSE)) ->  | Q23: =IF(AnACeS_base!$C23="","",VLOOKUP($E23,BaseTrienal,Q$13,FALSE)) ->  | R23: =IF(AnACeS_base!$C23="","",VLOOKUP($E23,BaseTrienal,R$13,FALSE)) ->  | S23: =IF(AnACeS_base!$C23="","",VLOOKUP($E23,BaseTrienal,S$13,FALSE)) -> 
A24: I10 | B24: Proporção de Baixo Peso à Nascença | C24: =Id!$D$39 -> R01 | D24: =Id!$F$39 -> Continente | E24: I10R01 | F24: =VLOOKUP($E24,BaseTrienal,F$13,FALSE) -> 6.524442593 | G24: 6.882311177 | H24: 7.071939215 | I24: 7.231042172 | J24: 7.199326807 | K24: 7.305634413 | L24: 7.443041799 | M24: 7.506047079 | N24: 7.562931974 | O24: 7.648188017 | P24: 7.714029659 | Q24: 7.918196661 | R24: 8.082165284 | S24: 8.325861134
A25: I10 | B25: Proporção de Baixo Peso à Nascença | C25: =Id!$D$40 -> R02 | D25: =Id!$F$40 -> Região de Saúde do Alentejo | E25: I10R02 | F25: 6.837233034 | G25: 7.321250178 | H25: 7.613853672 | I25: 7.76873785 | J25: 7.530558789 | K25: 7.358254074 | L25: 7.535344702 | M25: 7.701881543 | N25: 8.21178973 | O25: 8.194897067 | P25: 8.503539751 | Q25: 8.433537832 | R25: 8.85942931 | S25: 8.82424835
A26: I10 | B26: Proporção de Baixo Peso à Nascença | C26: =IF(AnACeS_Select=1,"",VLOOKUP(AnACeS_Select,AnACeS_tab,2,FALSE)) ->  | D26: =IF(AnACeS_Select=1,"",VLOOKUP(AnACeS_Select,AnACeS_tab,3,FALSE)) ->  | E26: =IF(C26="","",CONCATENATE(A26,C26)) ->  | F26: =IF(AnACeS_base!$C26="","",VLOOKUP($E26,BaseTrienal,F$13,FALSE)) ->  | G26: =IF(AnACeS_base!$C26="","",VLOOKUP($E26,BaseTrienal,G$13,FALSE)) ->  | H26: =IF(AnACeS_base!$C26="","",VLOOKUP($E26,BaseTrienal,H$13,FALSE)) ->  | I26: =IF(AnACeS_base!$C26="","",VLOOKUP($E26,BaseTrienal,I$13,FALSE)) ->  | J26: =IF(AnACeS_base!$C26="","",VLOOKUP($E26,BaseTrienal,J$13,FALSE)) ->  | K26: =IF(AnACeS_base!$C26="","",VLOOKUP($E26,BaseTrienal,K$13,FALSE)) ->  | L26: =IF(AnACeS_base!$C26="","",VLOOKUP($E26,BaseTrienal,L$13,FALSE)) ->  | M26: =IF(AnACeS_base!$C26="","",VLOOKUP($E26,BaseTrienal,M$13,FALSE)) ->  | N26: =IF(AnACeS_base!$C26="","",VLOOKUP($E26,BaseTrienal,N$13,FALSE)) ->  | O26: =IF(AnACeS_base!$C26="","",VLOOKUP($E26,BaseTrienal,O$13,FALSE)) ->  | P26: =IF(AnACeS_base!$C26="","",VLOOKUP($E26,BaseTrienal,P$13,FALSE)) ->  | Q26: =IF(AnACeS_base!$C26="","",VLOOKUP($E26,BaseTrienal,Q$13,FALSE)) ->  | R26: =IF(AnACeS_base!$C26="","",VLOOKUP($E26,BaseTrienal,R$13,FALSE)) ->  | S26: =IF(AnACeS_base!$C26="","",VLOOKUP($E26,BaseTrienal,S$13,FALSE)) -> 
A27: I15 | B27: Taxa de Mortalidade Infantil | C27: =Id!$D$39 -> R01 | D27: =Id!$F$39 -> Continente | E27: I15R01 | F27: =VLOOKUP($E27,BaseTrienal,F$13,FALSE) -> 6.221119612 | G27: 5.828788635 | H27: 5.501341198 | I27: 5.173492761 | J27: 5.015412102 | K27: 4.611985553 | L27: 4.261439636 | M27: 3.748070846 | N27: 3.481898695 | O27: 3.359350526 | P27: 3.310843944 | Q27: 3.413639401 | R27: 3.101749829 | S27: 3.044404356
A28: I15 | B28: Taxa de Mortalidade Infantil | C28: =Id!$D$40 -> R02 | D28: =Id!$F$40 -> Região de Saúde do Alentejo | E28: I15R02 | F28: 4.956629492 | G28: 4.56686171 | H28: 4.603725476 | I28: 4.31996544 | J28: 4.583818393 | K28: 4.644990046 | L28: 4.882670165 | M28: 4.465919906 | N28: 3.798237618 | O28: 3.65630713 | P28: 3.824558548 | Q28: 4.662576687 | R28: 4.041710452 | S28: 3.340666504
A29: I15 | B29: Taxa de Mortalidade Infantil | C29: =IF(AnACeS_Select=1,"",VLOOKUP(AnACeS_Select,AnACeS_tab,2,FALSE)) ->  | D29: =IF(AnACeS_Select=1,"",VLOOKUP(AnACeS_Select,AnACeS_tab,3,FALSE)) ->  | E29: =IF(C29="","",CONCATENATE(A29,C29)) ->  | F29: =IF(AnACeS_base!$C29="","",VLOOKUP($E29,BaseTrienal,F$13,FALSE)) ->  | G29: =IF(AnACeS_base!$C29="","",VLOOKUP($E29,BaseTrienal,G$13,FALSE)) ->  | H29: =IF(AnACeS_base!$C29="","",VLOOKUP($E29,BaseTrienal,H$13,FALSE)) ->  | I29: =IF(AnACeS_base!$C29="","",VLOOKUP($E29,BaseTrienal,I$13,FALSE)) ->  | J29: =IF(AnACeS_base!$C29="","",VLOOKUP($E29,BaseTrienal,J$13,FALSE)) ->  | K29: =IF(AnACeS_base!$C29="","",VLOOKUP($E29,BaseTrienal,K$13,FALSE)) ->  | L29: =IF(AnACeS_base!$C29="","",VLOOKUP($E29,BaseTrienal,L$13,FALSE)) ->  | M29: =IF(AnACeS_base!$C29="","",VLOOKUP($E29,BaseTrienal,M$13,FALSE)) ->  | N29: =IF(AnACeS_base!$C29="","",VLOOKUP($E29,BaseTrienal,N$13,FALSE)) ->  | O29: =IF(AnACeS_base!$C29="","",VLOOKUP($E29,BaseTrienal,O$13,FALSE)) ->  | P29: =IF(AnACeS_base!$C29="","",VLOOKUP($E29,BaseTrienal,P$13,FALSE)) ->  | Q29: =IF(AnACeS_base!$C29="","",VLOOKUP($E29,BaseTrienal,Q$13,FALSE)) ->  | R29: =IF(AnACeS_base!$C29="","",VLOOKUP($E29,BaseTrienal,R$13,FALSE)) ->  | S29: =IF(AnACeS_base!$C29="","",VLOOKUP($E29,BaseTrienal,S$13,FALSE)) -> 
A30: I17 | B30: Taxa de Mortalidade Neonatal | C30: =Id!$D$39 -> R01 | D30: =Id!$F$39 -> Continente | E30: I17R01 | F30: =VLOOKUP($E30,BaseTrienal,F$13,FALSE) -> 3.875968992 | G30: 3.695700028 | H30: 3.444027722 | I30: 3.177612113 | J30: 3.143398102 | K30: 2.941698893 | L30: 2.832566967 | M30: 2.425222312 | N30: 2.248386318 | O30: 2.102926767 | P30: 2.079845787 | Q30: 2.177013221 | R30: 2.041352059 | S30: 2.126475686
A31: I17 | B31: Taxa de Mortalidade Neonatal | C31: =Id!$D$40 -> R02 | D31: =Id!$F$40 -> Região de Saúde do Alentejo | E31: I17R02 | F31: 3.280122458 | G31: 3.139717425 | H31: 2.620582194 | I31: 2.591979264 | J31: 2.910360885 | K31: 3.170390032 | L31: 3.570908031 | M31: 3.221319277 | N31: 2.962625342 | O31: 2.384548128 | P31: 2.197086826 | Q31: 2.617586912 | R31: 2.263357853 | S31: 2.199951112
A32: I17 | B32: Taxa de Mortalidade Neonatal | C32: =IF(AnACeS_Select=1,"",VLOOKUP(AnACeS_Select,AnACeS_tab,2,FALSE)) ->  | D32: =IF(AnACeS_Select=1,"",VLOOKUP(AnACeS_Select,AnACeS_tab,3,FALSE)) ->  | E32: =IF(C32="","",CONCATENATE(A32,C32)) ->  | F32: =IF(AnACeS_base!$C32="","",VLOOKUP($E32,BaseTrienal,F$13,FALSE)) ->  | G32: =IF(AnACeS_base!$C32="","",VLOOKUP($E32,BaseTrienal,G$13,FALSE)) ->  | H32: =IF(AnACeS_base!$C32="","",VLOOKUP($E32,BaseTrienal,H$13,FALSE)) ->  | I32: =IF(AnACeS_base!$C32="","",VLOOKUP($E32,BaseTrienal,I$13,FALSE)) ->  | J32: =IF(AnACeS_base!$C32="","",VLOOKUP($E32,BaseTrienal,J$13,FALSE)) ->  | K32: =IF(AnACeS_base!$C32="","",VLOOKUP($E32,BaseTrienal,K$13,FALSE)) ->  | L32: =IF(AnACeS_base!$C32="","",VLOOKUP($E32,BaseTrienal,L$13,FALSE)) ->  | M32: =IF(AnACeS_base!$C32="","",VLOOKUP($E32,BaseTrienal,M$13,FALSE)) ->  | N32: =IF(AnACeS_base!$C32="","",VLOOKUP($E32,BaseTrienal,N$13,FALSE)) ->  | O32: =IF(AnACeS_base!$C32="","",VLOOKUP($E32,BaseTrienal,O$13,FALSE)) ->  | P32: =IF(AnACeS_base!$C32="","",VLOOKUP($E32,BaseTrienal,P$13,FALSE)) ->  | Q32: =IF(AnACeS_base!$C32="","",VLOOKUP($E32,BaseTrienal,Q$13,FALSE)) ->  | R32: =IF(AnACeS_base!$C32="","",VLOOKUP($E32,BaseTrienal,R$13,FALSE)) ->  | S32: =IF(AnACeS_base!$C32="","",VLOOKUP($E32,BaseTrienal,S$13,FALSE)) -> 
A33: I19 | B33: Taxa de Mortalidade Neonatal Precoce | C33: =Id!$D$39 -> R01 | D33: =Id!$F$39 -> Continente | E33: I19R01 | F33: =VLOOKUP($E33,BaseTrienal,F$13,FALSE) -> 2.843850213 | G33: 2.678762437 | H33: 2.57922781 | I33: 2.357387189 | J33: 2.347639707 | K33: 2.209390377 | L33: 2.083510369 | M33: 1.7510169 | N33: 1.585944485 | O33: 1.55303308 | P33: 1.528602107 | Q33: 1.546643886 | R33: 1.398896081 | S33: 1.399929826
A34: I19 | B34: Taxa de Mortalidade Neonatal Precoce | C34: =Id!$D$40 -> R02 | D34: =Id!$F$40 -> Região de Saúde do Alentejo | E34: I19R02 | F34: 1.822290254 | G34: 1.783930355 | H34: 1.841490191 | I34: 1.871985024 | J34: 2.037252619 | K34: 2.285630023 | L34: 2.696399942 | M34: 2.635624863 | N34: 2.430872075 | O34: 1.907638503 | P34: 1.871592481 | Q34: 2.208588957 | R34: 1.940021017 | S34: 1.792552758
A35: I19 | B35: Taxa de Mortalidade Neonatal Precoce | C35: =IF(AnACeS_Select=1,"",VLOOKUP(AnACeS_Select,AnACeS_tab,2,FALSE)) ->  | D35: =IF(AnACeS_Select=1,"",VLOOKUP(AnACeS_Select,AnACeS_tab,3,FALSE)) ->  | E35: =IF(C35="","",CONCATENATE(A35,C35)) ->  | F35: =IF(AnACeS_base!$C35="","",VLOOKUP($E35,BaseTrienal,F$13,FALSE)) ->  | G35: =IF(AnACeS_base!$C35="","",VLOOKUP($E35,BaseTrienal,G$13,FALSE)) ->  | H35: =IF(AnACeS_base!$C35="","",VLOOKUP($E35,BaseTrienal,H$13,FALSE)) ->  | I35: =IF(AnACeS_base!$C35="","",VLOOKUP($E35,BaseTrienal,I$13,FALSE)) ->  | J35: =IF(AnACeS_base!$C35="","",VLOOKUP($E35,BaseTrienal,J$13,FALSE)) ->  | K35: =IF(AnACeS_base!$C35="","",VLOOKUP($E35,BaseTrienal,K$13,FALSE)) ->  | L35: =IF(AnACeS_base!$C35="","",VLOOKUP($E35,BaseTrienal,L$13,FALSE)) ->  | M35: =IF(AnACeS_base!$C35="","",VLOOKUP($E35,BaseTrienal,M$13,FALSE)) ->  | N35: =IF(AnACeS_base!$C35="","",VLOOKUP($E35,BaseTrienal,N$13,FALSE)) ->  | O35: =IF(AnACeS_base!$C35="","",VLOOKUP($E35,BaseTrienal,O$13,FALSE)) ->  | P35: =IF(AnACeS_base!$C35="","",VLOOKUP($E35,BaseTrienal,P$13,FALSE)) ->  | Q35: =IF(AnACeS_base!$C35="","",VLOOKUP($E35,BaseTrienal,Q$13,FALSE)) ->  | R35: =IF(AnACeS_base!$C35="","",VLOOKUP($E35,BaseTrienal,R$13,FALSE)) ->  | S35: =IF(AnACeS_base!$C35="","",VLOOKUP($E35,BaseTrienal,S$13,FALSE)) -> 
A36: I21 | B36: Taxa de Mortalidade Pós-Neonatal | C36: =Id!$D$39 -> R01 | D36: =Id!$F$39 -> Continente | E36: I21R01 | F36: =VLOOKUP($E36,BaseTrienal,F$13,FALSE) -> 2.34515062 | G36: 2.133088607 | H36: 2.057313476 | I36: 1.995880648 | J36: 1.872014 | K36: 1.67028666 | L36: 1.42887267 | M36: 1.322848534 | N36: 1.233512378 | O36: 1.256423758 | P36: 1.230998157 | Q36: 1.236626181 | R36: 1.06039777 | S36: 0.9179286709
A37: I21 | B37: Taxa de Mortalidade Pós-Neonatal | C37: =Id!$D$40 -> R02 | D37: =Id!$F$40 -> Região de Saúde do Alentejo | E37: I21R02 | F37: 1.676507034 | G37: 1.427144284 | H37: 1.983143282 | I37: 1.727986176 | J37: 1.673457509 | K37: 1.474600015 | L37: 1.311762134 | M37: 1.24460063 | N37: 0.8356122759 | O37: 1.271759002 | P37: 1.627471723 | Q37: 2.044989775 | R37: 1.778352599 | S37: 1.140715392
A38: I21 | B38: Taxa de Mortalidade Pós-Neonatal | C38: =IF(AnACeS_Select=1,"",VLOOKUP(AnACeS_Select,AnACeS_tab,2,FALSE)) ->  | D38: =IF(AnACeS_Select=1,"",VLOOKUP(AnACeS_Select,AnACeS_tab,3,FALSE)) ->  | E38: =IF(C38="","",CONCATENATE(A38,C38)) ->  | F38: =IF(AnACeS_base!$C38="","",VLOOKUP($E38,BaseTrienal,F$13,FALSE)) ->  | G38: =IF(AnACeS_base!$C38="","",VLOOKUP($E38,BaseTrienal,G$13,FALSE)) ->  | H38: =IF(AnACeS_base!$C38="","",VLOOKUP($E38,BaseTrienal,H$13,FALSE)) ->  | I38: =IF(AnACeS_base!$C38="","",VLOOKUP($E38,BaseTrienal,I$13,FALSE)) ->  | J38: =IF(AnACeS_base!$C38="","",VLOOKUP($E38,BaseTrienal,J$13,FALSE)) ->  | K38: =IF(AnACeS_base!$C38="","",VLOOKUP($E38,BaseTrienal,K$13,FALSE)) ->  | L38: =IF(AnACeS_base!$C38="","",VLOOKUP($E38,BaseTrienal,L$13,FALSE)) ->  | M38: =IF(AnACeS_base!$C38="","",VLOOKUP($E38,BaseTrienal,M$13,FALSE)) ->  | N38: =IF(AnACeS_base!$C38="","",VLOOKUP($E38,BaseTrienal,N$13,FALSE)) ->  | O38: =IF(AnACeS_base!$C38="","",VLOOKUP($E38,BaseTrienal,O$13,FALSE)) ->  | P38: =IF(AnACeS_base!$C38="","",VLOOKUP($E38,BaseTrienal,P$13,FALSE)) ->  | Q38: =IF(AnACeS_base!$C38="","",VLOOKUP($E38,BaseTrienal,Q$13,FALSE)) ->  | R38: =IF(AnACeS_base!$C38="","",VLOOKUP($E38,BaseTrienal,R$13,FALSE)) ->  | S38: =IF(AnACeS_base!$C38="","",VLOOKUP($E38,BaseTrienal,S$13,FALSE)) -> 
A39: I23 | B39: Taxa de Mortalidade Fetal Tardia | C39: =Id!$D$39 -> R01 | D39: =Id!$F$39 -> Continente | E39: I23R01 | F39: =VLOOKUP($E39,BaseTrienal,F$13,FALSE) -> 0.4202274949 | G39: 0.3851332987 | H39: 0.3736486977 | I39: 0.3553785054 | J39: 0.346368749 | K39: 0.3208712291 | L39: 0.2968504357 | M39: 0.2759482135 | N39: 0.2785569708 | O39: 0.2844666582 | P39: 0.2768821919 | Q39: 0.2696751188 | R39: 0.2573545878 | S39: 0.2502960776
A40: I23 | B40: Taxa de Mortalidade Fetal Tardia | C40: =Id!$D$40 -> R02 | D40: =Id!$F$40 -> Região de Saúde do Alentejo | E40: I23R02 | F40: 0.3703703704 | G40: 0.447538538 | H40: 0.4933399112 | I40: 0.5869300694 | J40: 0.5499276411 | K40: 0.4696558303 | L40: 0.3992160848 | M40: 0.3792575305 | N40: 0.3557641359 | O40: 0.4352643242 | P40: 0.3648451435 | Q40: 0.3829856584 | R40: 0.3463831158 | S40: 0.3248599042
A41: I23 | B41: Taxa de Mortalidade Fetal Tardia | C41: =IF(AnACeS_Select=1,"",VLOOKUP(AnACeS_Select,AnACeS_tab,2,FALSE)) ->  | D41: =IF(AnACeS_Select=1,"",VLOOKUP(AnACeS_Select,AnACeS_tab,3,FALSE)) ->  | E41: =IF(C41="","",CONCATENATE(A41,C41)) ->  | F41: =IF(AnACeS_base!$C41="","",VLOOKUP($E41,BaseTrienal,F$13,FALSE)) ->  | G41: =IF(AnACeS_base!$C41="","",VLOOKUP($E41,BaseTrienal,G$13,FALSE)) ->  | H41: =IF(AnACeS_base!$C41="","",VLOOKUP($E41,BaseTrienal,H$13,FALSE)) ->  | I41: =IF(AnACeS_base!$C41="","",VLOOKUP($E41,BaseTrienal,I$13,FALSE)) ->  | J41: =IF(AnACeS_base!$C41="","",VLOOKUP($E41,BaseTrienal,J$13,FALSE)) ->  | K41: =IF(AnACeS_base!$C41="","",VLOOKUP($E41,BaseTrienal,K$13,FALSE)) ->  | L41: =IF(AnACeS_base!$C41="","",VLOOKUP($E41,BaseTrienal,L$13,FALSE)) ->  | M41: =IF(AnACeS_base!$C41="","",VLOOKUP($E41,BaseTrienal,M$13,FALSE)) ->  | N41: =IF(AnACeS_base!$C41="","",VLOOKUP($E41,BaseTrienal,N$13,FALSE)) ->  | O41: =IF(AnACeS_base!$C41="","",VLOOKUP($E41,BaseTrienal,O$13,FALSE)) ->  | P41: =IF(AnACeS_base!$C41="","",VLOOKUP($E41,BaseTrienal,P$13,FALSE)) ->  | Q41: =IF(AnACeS_base!$C41="","",VLOOKUP($E41,BaseTrienal,Q$13,FALSE)) ->  | R41: =IF(AnACeS_base!$C41="","",VLOOKUP($E41,BaseTrienal,R$13,FALSE)) ->  | S41: =IF(AnACeS_base!$C41="","",VLOOKUP($E41,BaseTrienal,S$13,FALSE)) -> 
A42: I25 | B42: Taxa de Mortalidade Perinatal | C42: =Id!$D$39 -> R01 | D42: =Id!$F$39 -> Continente | E42: I25R01 | F42: =VLOOKUP($E42,BaseTrienal,F$13,FALSE) -> 7.034174522 | G42: 6.519778618 | H42: 6.306077535 | I42: 5.902794595 | J42: 5.803195707 | K42: 5.411013369 | L42: 5.045829816 | M42: 4.505667135 | N42: 4.367096434 | O42: 4.393281801 | P42: 4.293191598 | Q42: 4.23922416 | R42: 3.968841835 | S42: 3.899386633
A43: I25 | B43: Taxa de Mortalidade Perinatal | C43: =Id!$D$40 -> R02 | D43: =Id!$F$40 -> Região de Saúde do Alentejo | E43: I25R02 | F43: 5.519244735 | G43: 6.25133196 | H43: 6.765804496 | I43: 7.730298475 | J43: 7.525325615 | K43: 6.971453732 | L43: 6.677796327 | M43: 6.418204361 | N43: 5.979865264 | O43: 6.251978474 | P43: 5.513215502 | Q43: 6.029986962 | R43: 5.39713227 | S43: 5.035328515
A44: I25 | B44: Taxa de Mortalidade Perinatal | C44: =IF(AnACeS_Select=1,"",VLOOKUP(AnACeS_Select,AnACeS_tab,2,FALSE)) ->  | D44: =IF(AnACeS_Select=1,"",VLOOKUP(AnACeS_Select,AnACeS_tab,3,FALSE)) ->  | E44: =IF(C44="","",CONCATENATE(A44,C44)) ->  | F44: =IF(AnACeS_base!$C44="","",VLOOKUP($E44,BaseTrienal,F$13,FALSE)) ->  | G44: =IF(AnACeS_base!$C44="","",VLOOKUP($E44,BaseTrienal,G$13,FALSE)) ->  | H44: =IF(AnACeS_base!$C44="","",VLOOKUP($E44,BaseTrienal,H$13,FALSE)) ->  | I44: =IF(AnACeS_base!$C44="","",VLOOKUP($E44,BaseTrienal,I$13,FALSE)) ->  | J44: =IF(AnACeS_base!$C44="","",VLOOKUP($E44,BaseTrienal,J$13,FALSE)) ->  | K44: =IF(AnACeS_base!$C44="","",VLOOKUP($E44,BaseTrienal,K$13,FALSE)) ->  | L44: =IF(AnACeS_base!$C44="","",VLOOKUP($E44,BaseTrienal,L$13,FALSE)) ->  | M44: =IF(AnACeS_base!$C44="","",VLOOKUP($E44,BaseTrienal,M$13,FALSE)) ->  | N44: =IF(AnACeS_base!$C44="","",VLOOKUP($E44,BaseTrienal,N$13,FALSE)) ->  | O44: =IF(AnACeS_base!$C44="","",VLOOKUP($E44,BaseTrienal,O$13,FALSE)) ->  | P44: =IF(AnACeS_base!$C44="","",VLOOKUP($E44,BaseTrienal,P$13,FALSE)) ->  | Q44: =IF(AnACeS_base!$C44="","",VLOOKUP($E44,BaseTrienal,Q$13,FALSE)) ->  | R44: =IF(AnACeS_base!$C44="","",VLOOKUP($E44,BaseTrienal,R$13,FALSE)) ->  | S44: =IF(AnACeS_base!$C44="","",VLOOKUP($E44,BaseTrienal,S$13,FALSE)) -> 

Sheet AnIndT
B2: mort@lidades.infantil
B4: Análise por Indicador
B6: Seleccione o Indicador | I6: Seleccione o ACeS
B9: =IF(AnInd_baseT!E1="A","",AnInd_baseT!D1) -> 
B11: =AnInd_baseT!B41 -> 
C12: 96-98 | D12: 97-99 | E12: 98-00 | F12: 99-01 | G12: 00-02 | I12: 01-03 | J12: 02-04 | K12: 03-05 | L12: 04-06 | M12: 05-07 | N12: 06-08 | O12: 07-09 | P12: 08-10 | Q12: 09-11
B13: =AnInd_baseT!B4 -> Continente | C13: =AnInd_baseT!F4 ->  | D13: =AnInd_baseT!G4 ->  | E13: =AnInd_baseT!H4 ->  | F13: =AnInd_baseT!I4 ->  | G13: =AnInd_baseT!J4 ->  | I13: =AnInd_baseT!K4 ->  | J13: =AnInd_baseT!L4 ->  | K13: =AnInd_baseT!M4 ->  | L13: =AnInd_baseT!N4 ->  | M13: =AnInd_baseT!O4 ->  | N13: =AnInd_baseT!P4 ->  | O13: =AnInd_baseT!Q4 ->  | P13: =AnInd_baseT!R4 ->  | Q13: =AnInd_baseT!S4 -> 
B14: =AnInd_baseT!B5 -> Região de Saúde do Alentejo | C14: =AnInd_baseT!F5 ->  | D14: =AnInd_baseT!G5 ->  | E14: =AnInd_baseT!H5 ->  | F14: =AnInd_baseT!I5 ->  | G14: =AnInd_baseT!J5 ->  | I14: =AnInd_baseT!K5 ->  | J14: =AnInd_baseT!L5 ->  | K14: =AnInd_baseT!M5 ->  | L14: =AnInd_baseT!N5 ->  | M14: =AnInd_baseT!O5 ->  | N14: =AnInd_baseT!P5 ->  | O14: =AnInd_baseT!Q5 ->  | P14: =AnInd_baseT!R5 ->  | Q14: =AnInd_baseT!S5 -> 
B15: =IF(AnInd_codACeS="","",AnInd_baseT!D12) ->  | C15: =IF(AnInd_codACeS="","",AnInd_baseT!F12) ->  | D15: =IF(AnInd_codACeS="","",AnInd_baseT!G12) ->  | E15: =IF(AnInd_codACeS="","",AnInd_baseT!H12) ->  | F15: =IF(AnInd_codACeS="","",AnInd_baseT!I12) ->  | G15: =IF(AnInd_codACeS="","",AnInd_baseT!J12) ->  | I15: =IF(AnInd_codACeS="","",AnInd_baseT!K12) ->  | J15: =IF(AnInd_codACeS="","",AnInd_baseT!L12) ->  | K15: =IF(AnInd_codACeS="","",AnInd_baseT!M12) ->  | L15: =IF(AnInd_codACeS="","",AnInd_baseT!N12) ->  | M15: =IF(AnInd_codACeS="","",AnInd_baseT!O12) ->  | N15: =IF(AnInd_codACeS="","",AnInd_baseT!P12) ->  | O15: =IF(AnInd_codACeS="","",AnInd_baseT!Q12) ->  | P15: =IF(AnInd_codACeS="","",AnInd_baseT!R12) ->  | Q15: =IF(AnInd_codACeS="","",AnInd_baseT!S12) -> 
B36: Selecione o Triénio
B38: =AnInd_baseT!B42 -> 
G59: Legenda
G60: =AnInd_baseT!B43 -> 
H61: =AnInd_baseT!J33 -> 
H62: =AnInd_baseT!J34 -> 
H63: =AnInd_baseT!J35 -> 
H64: =AnInd_baseT!J36 -> 
H65: =AnInd_baseT!J37 -> 

Sheet AnIndA
B2: mort@lidades.infantil
B4: Análise por Indicador
B6: Selecione o Indicador | J6: Selecione o ACeS
B9: =IF(AnInd_baseT!E1="T","",AnInd_baseT!D1) -> 
B11: =AnInd_baseA!B41 -> 
C12: 1996 | D12: 1997 | E12: 1998 | F12: 1999 | G12: 2000 | H12: 2001 | J12: 2002 | K12: 2003 | L12: 2004 | M12: 2005 | N12: 2006 | O12: 2007 | P12: 2008 | Q12: 2009 | R12: 2010 | S12: 2011
B13: =AnInd_baseA!B4 -> Continente | C13: =AnInd_baseA!F4 ->  | D13: =AnInd_baseA!G4 ->  | E13: =AnInd_baseA!H4 ->  | F13: =AnInd_baseA!I4 ->  | G13: =AnInd_baseA!J4 ->  | H13: =AnInd_baseA!K4 ->  | J13: =AnInd_baseA!L4 ->  | K13: =AnInd_baseA!M4 ->  | L13: =AnInd_baseA!N4 ->  | M13: =AnInd_baseA!O4 ->  | N13: =AnInd_baseA!P4 ->  | O13: =AnInd_baseA!Q4 ->  | P13: =AnInd_baseA!R4 ->  | Q13: =AnInd_baseA!S4 ->  | R13: =AnInd_baseA!T4 ->  | S13: =AnInd_baseA!U4 -> 
B14: =AnInd_baseA!B5 -> Região de Saúde do Alentejo | C14: =AnInd_baseA!F5 ->  | D14: =AnInd_baseA!G5 ->  | E14: =AnInd_baseA!H5 ->  | F14: =AnInd_baseA!I5 ->  | G14: =AnInd_baseA!J5 ->  | H14: =AnInd_baseA!K5 ->  | J14: =AnInd_baseA!L5 ->  | K14: =AnInd_baseA!M5 ->  | L14: =AnInd_baseA!N5 ->  | M14: =AnInd_baseA!O5 ->  | N14: =AnInd_baseA!P5 ->  | O14: =AnInd_baseA!Q5 ->  | P14: =AnInd_baseA!R5 ->  | Q14: =AnInd_baseA!S5 ->  | R14: =AnInd_baseA!T5 ->  | S14: =AnInd_baseA!U5 -> 
B15: =AnInd_baseA!D12 ->  | C15: =AnInd_baseA!F12 ->  | D15: =AnInd_baseA!G12 ->  | E15: =AnInd_baseA!H12 ->  | F15: =AnInd_baseA!I12 ->  | G15: =AnInd_baseA!J12 ->  | H15: =AnInd_baseA!K12 ->  | J15: =AnInd_baseA!L12 ->  | K15: =AnInd_baseA!M12 ->  | L15: =AnInd_baseA!N12 ->  | M15: =AnInd_baseA!O12 ->  | N15: =AnInd_baseA!P12 ->  | O15: =AnInd_baseA!Q12 ->  | P15: =AnInd_baseA!R12 ->  | Q15: =AnInd_baseA!S12 ->  | R15: =AnInd_baseA!T12 ->  | S15: =AnInd_baseA!U12 -> 
B36: Selecione o Ano
B38: =AnInd_baseA!B42 -> 
H59: Legenda
H60: =AnInd_baseA!B42 -> 
I61: =AnInd_baseA!K34 -> 
I62: =AnInd_baseA!K35 -> 
I63: =AnInd_baseA!K36 -> 
I64: =AnInd_baseA!K37 -> 
I65: =AnInd_baseA!K38 -> 

Sheet AnInd_baseT (hidden)
A1: 1 | B1: AnInd_Select | C1: =IF(AnInd_Select=1,"",VLOOKUP(AnInd_Select,AnInd_tab,3,FALSE)) ->  | D1: =IF(AnInd_Select=1,"",VLOOKUP(AnInd_Select,AnInd_tab,4,FALSE)) ->  | E1: =IF(AnInd_Select=1,"",VLOOKUP(AnInd_Select,AnInd_tab,2,FALSE)) -> 
D2: =IF(AnInd_Select=1,"",VLOOKUP(AnInd_Select,AnInd_tabLeg,5,FALSE)) ->  | E2: =IF(AnInd_Select=1,"",VLOOKUP(AnInd_Select,AnInd_tabLeg,6,FALSE)) ->  | F2: =IF(AnInd_Select=1,"",VLOOKUP(AnInd_Select,AnInd_tabLeg,7,FALSE)) -> 
A3: Rcod | B3: Local_Residencia | C3: Icod | D3: Indicador | E3: cod_IndRes | F3: 96-98 | G3: 97-99 | H3: 98-00 | I3: 99-01 | J3: 00-02 | K3: 01-03 | L3: 02-04 | M3: 03-05 | N3: 04-06 | O3: 05-07 | P3: 06-08 | Q3: 07-09 | R3: 08-10 | S3: 09-11
A4: =Id!D39 -> R01 | B4: =Id!F39 -> Continente | C4: =IF(TipoAn="T",$C$1,"") ->  | D4: =IF(TipoAn="T",$D$1,"") ->  | E4: =IF(C4="","",CONCATENATE(C4,A4)) ->  | F4: =IF(C4="","",VLOOKUP($E4,BaseTrienal,18,FALSE)) ->  | G4: =IF(C4="","",VLOOKUP($E4,BaseTrienal,19,FALSE)) ->  | H4: =IF(C4="","",VLOOKUP($E4,BaseTrienal,20,FALSE)) ->  | I4: =IF(C4="","",VLOOKUP($E4,BaseTrienal,21,FALSE)) ->  | J4: =IF(C4="","",VLOOKUP($E4,BaseTrienal,22,FALSE)) ->  | K4: =IF(C4="","",VLOOKUP($E4,BaseTrienal,23,FALSE)) ->  | L4: =IF(C4="","",VLOOKUP($E4,BaseTrienal,24,FALSE)) ->  | M4: =IF(C4="","",VLOOKUP($E4,BaseTrienal,25,FALSE)) ->  | N4: =IF(C4="","",VLOOKUP($E4,BaseTrienal,26,FALSE)) ->  | O4: =IF(C4="","",VLOOKUP($E4,BaseTrienal,27,FALSE)) ->  | P4: =IF(C4="","",VLOOKUP($E4,BaseTrienal,28,FALSE)) ->  | Q4: =IF(C4="","",VLOOKUP($E4,BaseTrienal,29,FALSE)) ->  | R4: =IF(C4="","",VLOOKUP($E4,BaseTrienal,30,FALSE)) ->  | S4: =IF(C4="","",VLOOKUP($E4,BaseTrienal,31,FALSE)) -> 
A5: =Id!D40 -> R02 | B5: =Id!F40 -> Região de Saúde do Alentejo | E5: =IF(C5="","",CONCATENATE(C5,A5)) -> 
A6: =Id!D41 -> R03 | B6: =Id!F41 -> ACES Alentejo Litoral
A7: =Id!D42 -> R04 | B7: =Id!F42 -> ACES Alentejo Central I
A8: =Id!D43 -> R05 | B8: =Id!F43 -> ACES Alentejo Central II
A9: =Id!D44 -> R06 | B9: =Id!F44 -> ULS Norte Alentejano
A10: =Id!D45 -> R07 | B10: =Id!F45 -> ULS Baixo Alentejo
A12: 1 | B12: AnInd_ACeS | C12: =IF(AnInd_ACeS=1,"",VLOOKUP(AnInd_ACeS,AnACeS_tab,2,FALSE)) ->  | D12: =IF(AnInd_ACeS=1,"",VLOOKUP(AnInd_ACeS,AnACeS_tab,3,FALSE)) ->  | E12: =IF(AnInd_codACeS="","",VLOOKUP(AnInd_codACeS,AnInd_TabTrienios,5,FALSE)) ->  | F12: =IF(AnInd_codACeS="","",VLOOKUP(AnInd_codACeS,AnInd_TabTrienios,6,FALSE)) ->  | G12: =IF(AnInd_codACeS="","",VLOOKUP(AnInd_codACeS,AnInd_TabTrienios,7,FALSE)) ->  | H12: =IF(AnInd_codACeS="","",VLOOKUP(AnInd_codACeS,AnInd_TabTrienios,8,FALSE)) ->  | I12: =IF(AnInd_codACeS="","",VLOOKUP(AnInd_codACeS,AnInd_TabTrienios,9,FALSE)) ->  | J12: =IF(AnInd_codACeS="","",VLOOKUP(AnInd_codACeS,AnInd_TabTrienios,10,FALSE)) ->  | K12: =IF(AnInd_codACeS="","",VLOOKUP(AnInd_codACeS,AnInd_TabTrienios,11,FALSE)) ->  | L12: =IF(AnInd_codACeS="","",VLOOKUP(AnInd_codACeS,AnInd_TabTrienios,12,FALSE)) ->  | M12: =IF(AnInd_codACeS="","",VLOOKUP(AnInd_codACeS,AnInd_TabTrienios,13,FALSE)) ->  | N12: =IF(AnInd_codACeS="","",VLOOKUP(AnInd_codACeS,AnInd_TabTrienios,14,FALSE)) ->  | O12: =IF(AnInd_codACeS="","",VLOOKUP(AnInd_codACeS,AnInd_TabTrienios,15,FALSE)) ->  | P12: =IF(AnInd_codACeS="","",VLOOKUP(AnInd_codACeS,AnInd_TabTrienios,16,FALSE)) ->  | Q12: =IF(AnInd_codACeS="","",VLOOKUP(AnInd_codACeS,AnInd_TabTrienios,17,FALSE)) ->  | R12: =IF(AnInd_codACeS="","",VLOOKUP(AnInd_codACeS,AnInd_TabTrienios,18,FALSE)) ->  | S12: =IF(AnInd_codACeS="","",VLOOKUP(AnInd_codACeS,AnInd_TabTrienios,19,FALSE)) -> 
A14: 14 | B14: AnInd_Trienio | C14: =VLOOKUP(AnInd_TrienioSelect,AnIdTrienios,3,FALSE) -> 2009-2011 | D14: =VLOOKUP(AnInd_TrienioSelect,AnIdTrienios,4,FALSE) -> 09-11
A16: 1 | B16: =IF(E16="","",IF(E16<>0,RANK(E16,$E$16:$E$22,0),RANK(E16,$E$16:$E$22,0)+COUNTIF($E15:E$16,0))) ->  | C16: =Id!E39 -> CT | D16: =Id!F39 -> Continente | E16: =IF(OR($D$14="",HLOOKUP($D$14,$F$3:$S$10,A16+1,FALSE)="na"),"",HLOOKUP($D$14,$F$3:$S$10,A16+1,FALSE)) ->  | G16: OrdCT | H16: =IF(B16="","",B16) -> 
A17: 2 | B17: =IF(E17="","",IF(E17<>0,RANK(E17,$E$16:$E$22,0),RANK(E17,$E$16:$E$22,0)+COUNTIF($E$16:E16,0))) ->  | C17: =Id!E40 -> RA | D17: =Id!F40 -> Região de Saúde do Alentejo | G17: OrdRN | H17: =IF(B17="","",B17) -> 
A18: 3 | B18: =IF(E18="","",IF(E18<>0,RANK(E18,$E$16:$E$22,0),RANK(E18,$E$16:$E$22,0)+COUNTIF($E$16:E17,0))) ->  | C18: =Id!E41 -> A401 | D18: =Id!F41 -> ACES Alentejo Litoral | G18: OrdACeS | H18: =VLOOKUP(AnInd_ACeS+1,A16:B22,2,FALSE) ->  | K18: =IF($B18="","",IF(AND($B18<$B$16,$B18<$B$17),$B18,IF(AND($B18<$B$16,$B18>$B$17),$B18-1,IF(AND($B18<$B$17,$B18>$B$16),$B18-1,$B18-2)))) ->  | L18: =IF(K18="","",RANK(E18,$E$18:$E$22,1)) -> 
A19: 4 | B19: =IF(E19="","",IF(E19<>0,RANK(E19,$E$16:$E$22,0),RANK(E19,$E$16:$E$22,0)+COUNTIF($E$16:E18,0))) ->  | C19: =Id!E42 -> A402 | D19: =Id!F42 -> ACES Alentejo Central I | K19: =IF($B19="","",IF(AND($B19<$B$16,$B19<$B$17),$B19,IF(AND($B19<$B$16,$B19>$B$17),$B19-1,IF(AND($B19<$B$17,$B19>$B$16),$B19-1,$B19-2)))) ->  | L19: =IF(K19="","",RANK(E19,$E$18:$E$22,1)) -> 
A20: 5 | B20: =IF(E20="","",IF(E20<>0,RANK(E20,$E$16:$E$22,0),RANK(E20,$E$16:$E$22,0)+COUNTIF($E$16:E19,0))) ->  | C20: =Id!E43 -> A403 | D20: =Id!F43 -> ACES Alentejo Central II | G20: Zeros | H20: =COUNTIF(E16:E22,0) -> 0
A21: 6 | B21: =IF(E21="","",IF(E21<>0,RANK(E21,$E$16:$E$22,0),RANK(E21,$E$16:$E$22,0)+COUNTIF($E$16:E20,0))) ->  | C21: =Id!E44 -> A904 | D21: =Id!F44 -> ULS Norte Alentejano
A22: 7 | B22: =IF(E22="","",IF(E22<>0,RANK(E22,$E$16:$E$22,0),RANK(E22,$E$16:$E$22,0)+COUNTIF($E$16:E21,0))) ->  | C22: =Id!E45 -> A905 | D22: =Id!F45 -> ULS Baixo Alentejo
A24: =IF(E16="","",VLOOKUP($A16,$B$16:$E$22,2,FALSE)) ->  | B24: =IF(E16="","",VLOOKUP($A16,$B$16:$E$22,3,FALSE)) ->  | C24: =IF(E16="","",VLOOKUP($A16,$B$16:$E$22,4,FALSE)) ->  | D24: =IF(A24="","",CONCATENATE(B24," (",A24,")")) -> 
D25: =IF(A25="","",CONCATENATE(B25," (",A25,")")) -> 
A32: Ord | B32: Nº | C32: ACeS | G32: 0 | H32: 0 | I32: classe0
A33: =IF(D33="","",RANK(D33,$D$33:$D$37,1)) ->  | B33: 2 | C33: =C18 -> A401 | D33: =IF(E18="","",E18) ->  | G33: =IF($D$33="","",VLOOKUP(1,$A$33:$D$37,4,FALSE)) ->  | I33: classe1 | J33: =IF(G33="","",ROUND(G33,2)) ->  | L33: ACeS Activo | M33: A905 | N33: ACeSAct
A34: =IF(D34="","",RANK(D34,$D$33:$D$37,1)) ->  | B34: 3 | C34: =C19 -> A402 | D34: =IF(E19="","",E19) ->  | G34: =IF($D$33="","",VLOOKUP(2,$A$33:$D$37,4,FALSE)) ->  | I34: classe2 | J34: =IF(G34="","",ROUND(G34,2)) ->  | L34: Valor | M34: =IF(D33="",0,VLOOKUP(ACeSAct,DadosMapear,2,FALSE)) -> 0 | N34: ACeSActValor
A35: =IF(D35="","",RANK(D35,$D$33:$D$37,1)) ->  | B35: 4 | C35: A403 | D35: =IF(E20="","",E20) ->  | G35: =IF($D$33="","",VLOOKUP(3,$A$33:$D$37,4,FALSE)) ->  | I35: classe3 | L35: Código | M35: =VLOOKUP(ACeSActValor,classeValores,3,TRUE) -> classe0 | N35: ACeSActCod
A36: =IF(D36="","",RANK(D36,$D$33:$D$37,1)) ->  | B36: 5 | C36: A904 | D36: =IF(E21="","",E21) ->  | G36: =IF($D$33="","",VLOOKUP(4,$A$33:$D$37,4,FALSE)) ->  | I36: classe4
A37: =IF(D37="","",RANK(D37,$D$33:$D$37,1)) ->  | B37: 6 | C37: A905 | D37: =IF(E22="","",E22) ->  | G37: =IF($D$33="","",VLOOKUP(5,$A$33:$D$37,4,FALSE)) ->  | I37: classe5
B38: ACeS_Select | C38: =IF(AnInd_codACeS="","",VLOOKUP(AnInd_codACeS,Id!$D$39:$G$45,2,FALSE)) -> 
B40: Legenda
B41: =IF(TipoAn="T",D2 & " " & E2 & ", 1996-2011 " & F2,"") -> 
B42: =IF(TipoAn="T",D2 & " " & E2 & ", MÉDIA ANUAL NO TRIÉNIO " & C14,"") -> 
B43: =IF(TipoAn="T",D2 & " " & E2 & ", " & C14,"") -> 

Sheet AnInd_baseA (hidden)
A3: Rcod | B3: Local_Residencia | C3: Icod | D3: Indicador | E3: cod_IndRes | F3: 1996 | G3: 1997 | H3: 1998 | I3: 1999 | J3: 2000 | K3: 2001 | L3: 2002 | M3: 2003 | N3: 2004 | O3: 2005 | P3: 2006 | Q3: 2007 | R3: 2008 | S3: 2009 | T3: 2010 | U3: 2011
A4: =Id!D39 -> R01 | B4: =Id!F39 -> Continente | C4: =IF(TipoAn="A",AnInd_baseT!$C$1,"") ->  | D4: =IF(TipoAn="A",AnInd_baseT!$D$1,"") ->  | E4: =IF(C4="","",CONCATENATE(C4,A4)) ->  | F4: =IF(C4="","",VLOOKUP($E4,BaseAnual,2,FALSE)) ->  | G4: =IF(C4="","",VLOOKUP($E4,BaseAnual,3,FALSE)) ->  | H4: =IF(C4="","",VLOOKUP($E4,BaseAnual,4,FALSE)) ->  | I4: =IF(C4="","",VLOOKUP($E4,BaseAnual,5,FALSE)) ->  | J4: =IF(C4="","",VLOOKUP($E4,BaseAnual,6,FALSE)) ->  | K4: =IF(C4="","",VLOOKUP($E4,BaseAnual,7,FALSE)) ->  | L4: =IF(C4="","",VLOOKUP($E4,BaseAnual,8,FALSE)) ->  | M4: =IF(C4="","",VLOOKUP($E4,BaseAnual,9,FALSE)) ->  | N4: =IF(C4="","",VLOOKUP($E4,BaseAnual,10,FALSE)) ->  | O4: =IF(C4="","",VLOOKUP($E4,BaseAnual,11,FALSE)) ->  | P4: =IF(C4="","",VLOOKUP($E4,BaseAnual,12,FALSE)) ->  | Q4: =IF(C4="","",VLOOKUP($E4,BaseAnual,13,FALSE)) ->  | R4: =IF(C4="","",VLOOKUP($E4,BaseAnual,14,FALSE)) ->  | S4: =IF(C4="","",VLOOKUP($E4,BaseAnual,15,FALSE)) ->  | T4: =IF(C4="","",VLOOKUP($E4,BaseAnual,16,FALSE)) ->  | U4: =IF(C4="","",VLOOKUP($E4,BaseAnual,17,FALSE)) -> 
A5: =Id!D40 -> R02 | B5: =Id!F40 -> Região de Saúde do Alentejo | C5: =IF(TipoAn="A",AnInd_baseT!$C$1,"") ->  | D5: =IF(TipoAn="A",AnInd_baseT!$D$1,"") ->  | E5: =IF(C5="","",CONCATENATE(C5,A5)) -> 
A6: =Id!D41 -> R03 | B6: =Id!F41 -> ACES Alentejo Litoral | C6: =IF(TipoAn="A",AnInd_baseT!$C$1,"") ->  | D6: =IF(TipoAn="A",AnInd_baseT!$D$1,"") -> 
A7: =Id!D42 -> R04 | B7: =Id!F42 -> ACES Alentejo Central I | C7: =IF(TipoAn="A",AnInd_baseT!$C$1,"") ->  | D7: =IF(TipoAn="A",AnInd_baseT!$D$1,"") -> 
A8: =Id!D43 -> R05 | B8: =Id!F43 -> ACES Alentejo Central II | C8: =IF(TipoAn="A",AnInd_baseT!$C$1,"") ->  | D8: =IF(TipoAn="A",AnInd_baseT!$D$1,"") -> 
A9: =Id!D44 -> R06 | B9: =Id!F44 -> ULS Norte Alentejano | C9: =IF(TipoAn="A",AnInd_baseT!$C$1,"") ->  | D9: =IF(TipoAn="A",AnInd_baseT!$D$1,"") -> 
A10: =Id!D45 -> R07 | B10: =Id!F45 -> ULS Baixo Alentejo | C10: =IF(TipoAn="A",AnInd_baseT!$C$1,"") ->  | D10: =IF(TipoAn="A",AnInd_baseT!$D$1,"") -> 
A12: =AnInd_ACeS -> 1 | B12: =AnInd_baseT!B12 -> AnInd_ACeS | C12: =AnInd_codACeS ->  | D12: =AnInd_baseT!D12 ->  | E12: =IF(AnInd_codACeS="","",VLOOKUP(AnInd_codACeS,AnInd_TabAnual,5,FALSE)) ->  | F12: =IF(AnInd_codACeS="","",VLOOKUP(AnInd_codACeS,AnInd_TabAnual,6,FALSE)) ->  | G12: =IF(AnInd_codACeS="","",VLOOKUP(AnInd_codACeS,AnInd_TabAnual,7,FALSE)) ->  | H12: =IF(AnInd_codACeS="","",VLOOKUP(AnInd_codACeS,AnInd_TabAnual,8,FALSE)) ->  | I12: =IF(AnInd_codACeS="","",VLOOKUP(AnInd_codACeS,AnInd_TabAnual,9,FALSE)) ->  | J12: =IF(AnInd_codACeS="","",VLOOKUP(AnInd_codACeS,AnInd_TabAnual,10,FALSE)) ->  | K12: =IF(AnInd_codACeS="","",VLOOKUP(AnInd_codACeS,AnInd_TabAnual,11,FALSE)) ->  | L12: =IF(AnInd_codACeS="","",VLOOKUP(AnInd_codACeS,AnInd_TabAnual,12,FALSE)) ->  | M12: =IF(AnInd_codACeS="","",VLOOKUP(AnInd_codACeS,AnInd_TabAnual,13,FALSE)) ->  | N12: =IF(AnInd_codACeS="","",VLOOKUP(AnInd_codACeS,AnInd_TabAnual,14,FALSE)) ->  | O12: =IF(AnInd_codACeS="","",VLOOKUP(AnInd_codACeS,AnInd_TabAnual,15,FALSE)) ->  | P12: =IF(AnInd_codACeS="","",VLOOKUP(AnInd_codACeS,AnInd_TabAnual,16,FALSE)) ->  | Q12: =IF(AnInd_codACeS="","",VLOOKUP(AnInd_codACeS,AnInd_TabAnual,17,FALSE)) ->  | R12: =IF(AnInd_codACeS="","",VLOOKUP(AnInd_codACeS,AnInd_TabAnual,18,FALSE)) ->  | S12: =IF(AnInd_codACeS="","",VLOOKUP(AnInd_codACeS,AnInd_TabAnual,19,FALSE)) ->  | T12: =IF(AnInd_codACeS="","",VLOOKUP(AnInd_codACeS,AnInd_TabAnual,20,FALSE)) ->  | U12: =IF(AnInd_codACeS="","",VLOOKUP(AnInd_codACeS,AnInd_TabAnual,21,FALSE)) -> 
A14: 16 | B14: AnInd_Ano | C14: =VLOOKUP(AnInd_AnoSelect,AnIdAnos,4,FALSE) -> 2011 | D14: =VLOOKUP(AnInd_AnoSelect,AnIdAnos,5,FALSE) -> 11
A16: 1 | B16: =IF(E16="","",RANK(E16,$E$16:$E$22,0)) ->  | C16: =Id!E39 -> CT | D16: =Id!F39 -> Continente | E16: =IF($C$4="","",HLOOKUP($C$14,$F$3:$U$10,A16+1,FALSE)) ->  | G16: OrdCTA | H16: =IF(B16="","",B16) -> 
A17: 2 | C17: =Id!E40 -> RA | D17: =Id!F40 -> Região de Saúde do Alentejo | G17: OrdRNA | H17: =IF(B17="","",B17) -> 
A18: 3 | C18: =Id!E41 -> A401 | D18: =Id!F41 -> ACES Alentejo Litoral | G18: OrdACeSA | H18: =VLOOKUP(AnInd_ACeS+1,A16:B22,2,FALSE) ->  | K18: =IF($B18="","",IF(AND($B18<$B$16,$B18<$B$17),$B18,IF(AND($B18<$B$16,$B18>$B$17),$B18-1,IF(AND($B18<$B$17,$B18>$B$16),$B18-1,$B18-2)))) ->  | L18: =IF(K18="","",RANK(E18,$E$18:$E$22,1)) -> 
A19: 4 | C19: =Id!E42 -> A402 | D19: =Id!F42 -> ACES Alentejo Central I | K19: =IF($B19="","",IF(AND($B19<$B$16,$B19<$B$17),$B19,IF(AND($B19<$B$16,$B19>$B$17),$B19-1,IF(AND($B19<$B$17,$B19>$B$16),$B19-1,$B19-2)))) ->  | L19: =IF(K19="","",RANK(E19,$E$18:$E$22,1)) -> 
A20: 5 | C20: =Id!E43 -> A403 | D20: =Id!F43 -> ACES Alentejo Central II
A21: 6 | C21: =Id!E44 -> A904 | D21: =Id!F44 -> ULS Norte Alentejano
A22: 7 | C22: =Id!E45 -> A905 | D22: =Id!F45 -> ULS Baixo Alentejo
A24: =IF(E16="","",VLOOKUP($A16,$B$16:$E$22,2,FALSE)) ->  | B24: =IF(E16="","",VLOOKUP($A16,$B$16:$E$22,3,FALSE)) ->  | C24: =IF(E16="","",VLOOKUP($A16,$B$16:$E$22,4,FALSE)) ->  | D24: =IF(A24="","",CONCATENATE(B24," (",A24,")")) -> 
D25: =IF(A25="","",CONCATENATE(B25," (",A25,")")) -> 
A32: Ord | B32: Nº | C32: ACeS
A33: =IF(D33="","",RANK(D33,$D$33:$D$37,1)) ->  | B33: 2 | C33: =C18 -> A401 | D33: =IF(E18="","",E18) ->  | G33: 0 | H33: 0 | I33: classeA0
A34: =IF(D34="","",RANK(D34,$D$33:$D$37,1)) ->  | B34: 3 | C34: =C19 -> A402 | D34: =IF(E19="","",E19) ->  | G34: =IF($D$33="","",VLOOKUP(1,$A$33:$D$37,4,FALSE)) ->  | I34: classeA1 | K34: =IF(G34="","",(ROUND(G34,2))) ->  | N34: ACeS Activo | O34: A905 | P34: ACeSActA
A35: =IF(D35="","",RANK(D35,$D$33:$D$37,1)) ->  | B35: 4 | C35: A403 | D35: =IF(E20="","",E20) ->  | G35: =IF($D$33="","",VLOOKUP(2,$A$33:$D$37,4,FALSE)) ->  | I35: classeA2 | K35: =IF(G35="","",(ROUND(G35,2))) ->  | N35: Valor | O35: =IF(D33="",0,VLOOKUP(ACeSActA,DadosMapearA,2,FALSE)) -> 0 | P35: ACeSActValorA
A36: =IF(D36="","",RANK(D36,$D$33:$D$37,1)) ->  | B36: 5 | C36: A904 | D36: =IF(E21="","",E21) ->  | G36: =IF($D$33="","",VLOOKUP(3,$A$33:$D$37,4,FALSE)) ->  | I36: classeA3 | N36: Código | O36: =VLOOKUP(ACeSActValorA,classeValoresA,3,TRUE) -> classeA0 | P36: ACeSActCodA
A37: =IF(D37="","",RANK(D37,$D$33:$D$37,1)) ->  | B37: 6 | C37: A905 | D37: =IF(E22="","",E22) ->  | G37: =IF($D$33="","",VLOOKUP(4,$A$33:$D$37,4,FALSE)) ->  | I37: classeA4
B38: ACeS_Select | C38: =IF(AnInd_codACeS="","",VLOOKUP(AnInd_codACeS,Id!$D$39:$G$45,2,FALSE)) ->  | G38: =IF($D$33="","",VLOOKUP(5,$A$33:$D$37,4,FALSE)) ->  | I38: classeA5
B40: Legenda
B41: =IF(TipoAn="A",AnInd_baseT!D2 & " " & AnInd_baseT!E2 & ", 1996-2011 " & AnInd_baseT!F2,"") -> 
B42: =IF(TipoAn="A",AnInd_baseT!D2 & " " & AnInd_baseT!E2 & ", " & C14,"") -> 

Sheet AnR
B2: mort@lidades.infantil
B4: Análise da Razão R por Indicador
B6: Selecione o Indicador | G6: Selecione a Referência
B8: Selecione o ACeS | D8: Selecione o Quinquénio
B11: =AnR_base!D1 -> 
B13: =AnR_base!B60 -> 
C14: O | D14: E | E14: R | F14: =AnR_base!D39 -> I.C. (95%)
B15: =AnR_base!B31 -> Continente | C15: =IF(AnR_base!F31=0,"",AnR_base!F31) -> 
B16: =AnR_base!L44 ->  | C16: =AnR_base!F44 ->  | D16: =AnR_base!G44 ->  | E16: =AnR_base!H44 ->  | F16: =AnR_base!K44 ->  | G16: =AnR_base!D44 -> 
B17: =AnR_base!L45 ->  | C17: =AnR_base!F45 ->  | D17: =AnR_base!G45 ->  | E17: =AnR_base!H45 ->  | F17: =AnR_base!K45 ->  | G17: =AnR_base!D45 -> 
B18: =AnR_base!L46 ->  | C18: =AnR_base!F46 ->  | D18: =AnR_base!G46 ->  | E18: =AnR_base!H46 ->  | F18: =AnR_base!K46 ->  | G18: =AnR_base!D46 -> 
B19: =AnR_base!L47 ->  | C19: =AnR_base!F47 ->  | D19: =AnR_base!G47 ->  | E19: =AnR_base!H47 ->  | F19: =AnR_base!K47 ->  | G19: =AnR_base!D47 -> 
B20: =AnR_base!L48 ->  | C20: =AnR_base!F48 ->  | D20: =AnR_base!G48 ->  | E20: =AnR_base!H48 ->  | F20: =AnR_base!K48 ->  | G20: =AnR_base!D48 -> 
B22: =AnR_base!B62 -> 
I33: Legenda
I34: =AnR_base!B60 -> 
I35: =AnR_base!B61 -> 
J36: R diminuída e significativa
J37: R diminuída, mas não significativa
J38: R aumentada, mas não significativa
J39: R aumentadada e significativa

Sheet AnR_base (hidden)
A1: 1 | B1: AnR_IndSelect | C1: =IF(AnR_IndSelect=1,"",VLOOKUP(AnR_IndSelect,AnR_tabId,2,FALSE)) ->  | D1: =IF(AnR_IndSelect=1,"",VLOOKUP(AnR_IndSelect,AnR_tabId,3,FALSE)) -> 
D2: =IF(AnR_IndSelect=1,"",VLOOKUP(AnR_IndSelect,AnR_tabIdLeg,4,FALSE)) -> 
A3: Rcod | B3: Local_Residencia | C3: Icod | D3: Indicador | E3: cod_IndRes | F3: 96-00 | G3: 01-05 | H3: 06-10 | I3: 07-11
A4: =Id!D39 -> R01 | B4: =Id!F39 -> Continente | C4: =IF($C$1="","",$C$1) ->  | D4: =IF($C$1="","",$D$1) ->  | E4: =IF(C4="","",CONCATENATE(C4,A4)) ->  | F4: =IF(C4="","",VLOOKUP($E4,BaseQuinquenal,32,FALSE)) ->  | G4: =IF(C4="","",VLOOKUP($E4,BaseQuinquenal,33,FALSE)) ->  | H4: =IF(C4="","",VLOOKUP($E4,BaseQuinquenal,34,FALSE)) ->  | I4: =IF(C4="","",VLOOKUP($E4,BaseQuinquenal,35,FALSE)) -> 
A5: =Id!D40 -> R02 | B5: =Id!F40 -> Região de Saúde do Alentejo | C5: =IF($C$1="","",$C$1) ->  | D5: =IF($C$1="","",$D$1) ->  | E5: =IF(C5="","",CONCATENATE(C5,A5)) -> 
A6: =Id!D41 -> R03 | B6: =Id!F41 -> ACES Alentejo Litoral
A7: =Id!D42 -> R04 | B7: =Id!F42 -> ACES Alentejo Central I
A8: =Id!D43 -> R05 | B8: =Id!F43 -> ACES Alentejo Central II
A9: =Id!D44 -> R06 | B9: =Id!F44 -> ULS Norte Alentejano
A10: =Id!D45 -> R07 | B10: =Id!F45 -> ULS Baixo Alentejo
A12: =IF(C1="","",IF(OR(C1="I22",C1="I24"),1,2)) ->  | B12: Denominador | C12: =IF(A12="","",IF(A12=1,"I26","I01")) ->  | D12: =IF(A12="","",VLOOKUP(AnR_codDenom,Id!$D$7:$G$34,3,FALSE)) -> 
A14: Rcod | B14: Local_Residencia | C14: Icod | D14: Indicador | E14: cod_IndRes | F14: 96-00 | G14: 01-05 | H14: 06-10 | I14: 07-11 | J14: Quinq_Select
A15: =Id!D39 -> R01 | B15: =Id!F39 -> Continente | C15: =IF($A$12="","",AnR_codDenom) ->  | D15: =IF($A$12="","",AnR_IndDenom) ->  | E15: =IF(C15="","",CONCATENATE(C15,A15)) ->  | F15: =IF(C15="","",VLOOKUP($E15,BaseQuinquenal,32,FALSE)) ->  | G15: =IF(C15="","",VLOOKUP($E15,BaseQuinquenal,33,FALSE)) ->  | H15: =IF(C15="","",VLOOKUP($E15,BaseQuinquenal,34,FALSE)) ->  | I15: =IF(C15="","",VLOOKUP($E15,BaseQuinquenal,35,FALSE)) ->  | J15: =IF(AnRComp_codACeS="","",HLOOKUP($D$25,$F$14:$I$21,2,FALSE)) -> 
A16: =Id!D40 -> R02 | B16: =Id!F40 -> Região de Saúde do Alentejo | E16: =IF(C16="","",CONCATENATE(C16,A16)) ->  | J16: =IF(AnRComp_codACeS="","",HLOOKUP($D$25,$F$14:$I$21,3,FALSE)) -> 
A17: =Id!D41 -> R03 | B17: =Id!F41 -> ACES Alentejo Litoral | J17: =IF(AnRComp_codACeS="","",HLOOKUP($D$25,$F$14:$I$21,4,FALSE)) -> 
A18: =Id!D42 -> R04 | B18: =Id!F42 -> ACES Alentejo Central I | J18: =IF(AnRComp_codACeS="","",HLOOKUP($D$25,$F$14:$I$21,5,FALSE)) -> 
A19: =Id!D43 -> R05 | B19: =Id!F43 -> ACES Alentejo Central II | J19: =IF(AnRComp_codACeS="","",HLOOKUP($D$25,$F$14:$I$21,6,FALSE)) -> 
A20: =Id!D44 -> R06 | B20: =Id!F44 -> ULS Norte Alentejano | J20: =IF(AnRComp_codACeS="","",HLOOKUP($D$25,$F$14:$I$21,7,FALSE)) -> 
A21: =Id!D45 -> R07 | B21: =Id!F45 -> ULS Baixo Alentejo | J21: =IF(AnRComp_codACeS="","",HLOOKUP($D$25,$F$14:$I$21,8,FALSE)) -> 
A23: 1 | B23: AnR_ACeS | C23: =IF(AnR_ACeS=1,"",VLOOKUP(AnR_ACeS,AnACeS_tab,2,FALSE)) ->  | D23: =IF(AnR_ACeS=1,"",VLOOKUP(AnR_ACeS,AnACeS_tab,3,FALSE)) ->  | E23: =IF(AnR_CodACeS="","",VLOOKUP(AnR_CodACeS,AnR_TabQuinq,5,FALSE)) ->  | F23: =IF(AnR_CodACeS="","",VLOOKUP(AnR_CodACeS,AnR_TabQuinq,6,FALSE)) ->  | G23: =IF(AnR_CodACeS="","",VLOOKUP(AnR_CodACeS,AnR_TabQuinq,7,FALSE)) ->  | H23: =IF(AnR_CodACeS="","",VLOOKUP(AnR_CodACeS,AnR_TabQuinq,8,FALSE)) -> 
A25: 4 | B25: AnR_Quinquenio | C25: =VLOOKUP(AnR_Quinquenio,AnR_IdQuinq,3,FALSE) -> 2007-2011 | D25: =VLOOKUP(AnR_Quinquenio,AnR_IdQuinq,4,FALSE) -> 07-11
F26: 96-00 | G26: 01-05 | H26: 06-10 | I26: 07-11 | J26: Quinq_Select
A27: 1 | B27: AnR_Comparador | C27: =IF(AnRComparador=1,A4,A5) -> R01 | D27: =IF(AnRComparador=1,B4,B5) -> Continente | E27: =IF(AnRComp_codACeS="","",VLOOKUP(AnRComp_codACeS,AnR_TabQuinq,5,FALSE)) ->  | F27: =IF(AnRComp_codACeS="","",VLOOKUP(AnRComp_codACeS,AnR_TabQuinq,6,FALSE)) ->  | G27: =IF(AnRComp_codACeS="","",VLOOKUP(AnRComp_codACeS,AnR_TabQuinq,7,FALSE)) ->  | H27: =IF(AnRComp_codACeS="","",VLOOKUP(AnRComp_codACeS,AnR_TabQuinq,8,FALSE)) ->  | I27: =IF(AnRComp_codACeS="","",VLOOKUP(AnRComp_codACeS,AnR_TabQuinq,9,FALSE)) ->  | J27: =IF(AnRComp_codACeS="","",HLOOKUP($D$25,$F$26:$I$28,2,FALSE)) -> 
C28: =IF(AnRComparador=1,A15,A16) -> R01 | D28: =IF(AnRComparador=1,B15,B16) -> Continente | E28: =IF(AnRComp_codACeS="","",VLOOKUP(AnRComp_codACeS,AnR_TabDenom,5,FALSE)) ->  | F28: =IF(AnRComp_codACeS="","",VLOOKUP(AnRComp_codACeS,AnR_TabDenom,6,FALSE)) ->  | G28: =IF(AnRComp_codACeS="","",VLOOKUP(AnRComp_codACeS,AnR_TabDenom,7,FALSE)) ->  | H28: =IF(AnRComp_codACeS="","",VLOOKUP(AnRComp_codACeS,AnR_TabDenom,8,FALSE)) ->  | I28: =IF(AnRComp_codACeS="","",VLOOKUP(AnRComp_codACeS,AnR_TabDenom,9,FALSE)) ->  | J28: =IF(AnRComp_codACeS="","",HLOOKUP($D$25,$F$26:$I$28,3,FALSE)) -> 
A30: Rcod | B30: Local_Residencia | C30: Icod | D30: Indicador | E30: cod_IndRes | F30: O | G30: E | H30: R | I30: IC_min | J30: Ic_max
A31: =AnRComp_codACeS -> R01 | B31: =D27 -> Continente | C31: =IF($C$4="","",C5) ->  | E31: =IF(C31="","",CONCATENATE(C31,A31)) ->  | F31: =IF(E31="","",J27) ->  | Q31: Map
A32: =A6 -> R03 | B32: ACES Alentejo Litoral | E32: =IF(C32="","",CONCATENATE(C32,A32)) ->  | F32: =IF(OR(E32="",$F$31=0),"",HLOOKUP($D$25,$E$3:$I$10,4,FALSE)) ->  | G32: =IF(OR(E32="",$F$31=0),"",$J$27/$J$28*$J17) ->  | H32: =IF(OR(E32="",$F$31=0),"",F32/G32) ->  | I32: =IF(OR(E32="",$F$31=0),"",IF(F32>100,(1-1/(9*F32)-$B$41/(3*SQRT(F32)))^3*F32/G32,IF(F32>0,CHIINV($B$40,2*F32)/2/G32,0))) ->  | J32: =IF(OR(E32="",$F$31=0),"",IF(F32>100,(1-1/(9*(F32+1))+$B$41/(3*SQRT(F32+1)))^3*(F32+1)/G32,IF(F32>0,CHIINV($B$39,2*(F32+1))/2/G32,CHIINV($B$39,2)/2/G32))) ->  | L32: 1 | M32: =IF(OR(E32="",$F$31=0),"",RANK(H32,$H$32:$H$36,0)) ->  | N32: =IF(E32="","",Id!E41) ->  | O32: =IF(C32="","",B32) ->  | P32: =IF(OR(E32="",$F$31=0),"",E32) ->  | Q32: =IF(H32="","",IF(AND(H32<1,J32<1),2,IF(AND(H32>1,I32>1),-2,IF(AND(H32<1,J32>1),1,-1)))) -> 
A33: R04 | B33: ACES Alentejo Central I | F33: =IF(OR(E33="",$F$31=0),"",HLOOKUP($D$25,$E$3:$I$10,5,FALSE)) ->  | G33: =IF(OR(E33="",$F$31=0),"",$J$27/$J$28*$J18) ->  | H33: =IF(OR(E33="",$F$31=0),"",F33/G33) ->  | I33: =IF(OR(E33="",$F$31=0),"",IF(F33>100,(1-1/(9*F33)-$B$41/(3*SQRT(F33)))^3*F33/G33,IF(F33>0,CHIINV($B$40,2*F33)/2/G33,0))) ->  | J33: =IF(OR(E33="",$F$31=0),"",IF(F33>100,(1-1/(9*(F33+1))+$B$41/(3*SQRT(F33+1)))^3*(F33+1)/G33,IF(F33>0,CHIINV($B$39,2*(F33+1))/2/G33,CHIINV($B$39,2)/2/G33))) ->  | L33: 2 | M33: =IF(OR(E33="",$F$31=0),"",RANK(H33,$H$32:$H$36,0)) ->  | N33: =IF(E33="","",Id!E42) ->  | O33: =IF(C33="","",B33) ->  | P33: =IF(OR(E33="",$F$31=0),"",E33) ->  | Q33: =IF(H33="","",IF(AND(H33<1,J33<1),2,IF(AND(H33>1,I33>1),-2,IF(AND(H33<1,J33>1),1,-1)))) -> 
A34: R05 | B34: ACES Alentejo Central II | F34: =IF(OR(E34="",$F$31=0),"",HLOOKUP($D$25,$E$3:$I$10,6,FALSE)) ->  | G34: =IF(OR(E34="",$F$31=0),"",$J$27/$J$28*$J19) ->  | I34: =IF(OR(E34="",$F$31=0),"",IF(F34>100,(1-1/(9*F34)-$B$41/(3*SQRT(F34)))^3*F34/G34,IF(F34>0,CHIINV($B$40,2*F34)/2/G34,0))) ->  | J34: =IF(OR(E34="",$F$31=0),"",IF(F34>100,(1-1/(9*(F34+1))+$B$41/(3*SQRT(F34+1)))^3*(F34+1)/G34,IF(F34>0,CHIINV($B$39,2*(F34+1))/2/G34,CHIINV($B$39,2)/2/G34))) ->  | L34: 3 | M34: =IF(OR(E34="",$F$31=0),"",RANK(H34,$H$32:$H$36,0)) ->  | N34: =IF(E34="","",Id!E43) -> 
A35: R06 | B35: ULS Norte Alentejano | F35: =IF(OR(E35="",$F$31=0),"",HLOOKUP($D$25,$E$3:$I$10,7,FALSE)) ->  | G35: =IF(OR(E35="",$F$31=0),"",$J$27/$J$28*$J20) ->  | I35: =IF(OR(E35="",$F$31=0),"",IF(F35>100,(1-1/(9*F35)-$B$41/(3*SQRT(F35)))^3*F35/G35,IF(F35>0,CHIINV($B$40,2*F35)/2/G35,0))) ->  | J35: =IF(OR(E35="",$F$31=0),"",IF(F35>100,(1-1/(9*(F35+1))+$B$41/(3*SQRT(F35+1)))^3*(F35+1)/G35,IF(F35>0,CHIINV($B$39,2*(F35+1))/2/G35,CHIINV($B$39,2)/2/G35))) ->  | L35: 4 | M35: =IF(OR(E35="",$F$31=0),"",RANK(H35,$H$32:$H$36,0)) ->  | N35: =IF(E35="","",Id!E44) -> 
A36: R07 | B36: ULS Baixo Alentejo | F36: =IF(OR(E36="",$F$31=0),"",HLOOKUP($D$25,$E$3:$I$10,8,FALSE)) ->  | G36: =IF(OR(E36="",$F$31=0),"",$J$27/$J$28*$J21) ->  | I36: =IF(OR(E36="",$F$31=0),"",IF(F36>100,(1-1/(9*F36)-$B$41/(3*SQRT(F36)))^3*F36/G36,IF(F36>0,CHIINV($B$40,2*F36)/2/G36,0))) ->  | J36: =IF(OR(E36="",$F$31=0),"",IF(F36>100,(1-1/(9*(F36+1))+$B$41/(3*SQRT(F36+1)))^3*(F36+1)/G36,IF(F36>0,CHIINV($B$39,2*(F36+1))/2/G36,CHIINV($B$39,2)/2/G36))) ->  | L36: 5 | M36: =IF(OR(E36="",$F$31=0),"",RANK(H36,$H$32:$H$36,0)) ->  | N36: =IF(E36="","",Id!E45) -> 
A38: 2 | B38: =VLOOKUP(A38,E38:I40,2,FALSE) -> 0.95 | D38: Intervalos de Confiança | E38: 1 | F38: 0.9 | G38: 0.05 | H38: 0.95 | I38: =NORMSINV(H38) -> 1.644853627
B39: =VLOOKUP(A38,E38:I40,3,FALSE) -> 0.025 | D39: ="I.C. (" & B38*100 & "%)" -> I.C. (95%) | E39: 2 | F39: 0.95 | G39: 0.025 | H39: 0.975 | I39: =NORMSINV(H39) -> 1.959963985
B40: =VLOOKUP(A38,E38:I40,4,FALSE) -> 0.975 | E40: 3 | F40: 0.98 | G40: 0.01 | H40: 0.99 | I40: =NORMSINV(H40) -> 2.326347874
B41: =VLOOKUP(A38,E38:I40,5,FALSE) -> 1.959963985
E43: Map | F43: O | G43: E | H43: R | I43: IC_min | J43: Ic_max
A44: =IF(OR(E32="",$F$31=0),"",VLOOKUP(L32,$M$32:$P$36,2,FALSE)) ->  | B44: =IF(OR(E32="",$F$31=0),"",VLOOKUP(L32,$M$32:$P$36,3,FALSE)) ->  | C44: =IF(OR(E32="",$F$31=0),"",VLOOKUP(L32,$M$32:$P$36,4,FALSE)) ->  | D44: =IF($E$23="","",IF(C44=$E$23,E44,"")) ->  | E44: =IF(OR(E32="",$F$31=0),"",VLOOKUP(L32,$M$32:$Q$36,5,FALSE)) ->  | F44: =IF($A44="","",VLOOKUP($C44,$E$32:$J$36,2,FALSE)) ->  | G44: =IF($A44="","",VLOOKUP($C44,$E$32:$J$36,3,FALSE)) ->  | H44: =IF($A44="","",VLOOKUP($C44,$E$32:$J$36,4,FALSE)*100) ->  | I44: =IF($A44="","",VLOOKUP($C44,$E$32:$J$36,5,FALSE)*100) ->  | J44: =IF($A44="","",VLOOKUP($C44,$E$32:$J$36,6,FALSE)*100) ->  | K44: =IF(A44="","",CONCATENATE("(",FIXED(I44,1)," - ",FIXED(J44,1),")")) ->  | L44: =IF(A44="","",CONCATENATE(B44," (",A44,")")) -> 
A45: =IF(OR(E33="",$F$31=0),"",VLOOKUP(L33,$M$32:$P$36,2,FALSE)) ->  | B45: =IF(OR(E33="",$F$31=0),"",VLOOKUP(L33,$M$32:$P$36,3,FALSE)) ->  | C45: =IF(OR(E33="",$F$31=0),"",VLOOKUP(L33,$M$32:$P$36,4,FALSE)) ->  | D45: =IF($E$23="","",IF(C45=$E$23,E45,"")) ->  | E45: =IF(OR(E33="",$F$31=0),"",VLOOKUP(L33,$M$32:$Q$36,5,FALSE)) ->  | F45: =IF($A45="","",VLOOKUP($C45,$E$32:$J$36,2,FALSE)) ->  | G45: =IF($A45="","",VLOOKUP($C45,$E$32:$J$36,3,FALSE)) ->  | H45: =IF($A45="","",VLOOKUP($C45,$E$32:$J$36,4,FALSE)*100) ->  | I45: =IF($A45="","",VLOOKUP($C45,$E$32:$J$36,5,FALSE)*100) ->  | J45: =IF($A45="","",VLOOKUP($C45,$E$32:$J$36,6,FALSE)*100) ->  | K45: =IF(A45="","",CONCATENATE("(",FIXED(I45,1)," - ",FIXED(J45,1),")")) ->  | L45: =IF(A45="","",CONCATENATE(B45," (",A45,")")) -> 
A46: =IF(OR(E34="",$F$31=0),"",VLOOKUP(L34,$M$32:$P$36,2,FALSE)) ->  | B46: =IF(OR(E34="",$F$31=0),"",VLOOKUP(L34,$M$32:$P$36,3,FALSE)) ->  | C46: =IF(OR(E34="",$F$31=0),"",VLOOKUP(L34,$M$32:$P$36,4,FALSE)) ->  | E46: =IF(OR(E34="",$F$31=0),"",VLOOKUP(L34,$M$32:$Q$36,5,FALSE)) ->  | F46: =IF($A46="","",VLOOKUP($C46,$E$32:$J$36,2,FALSE)) ->  | G46: =IF($A46="","",VLOOKUP($C46,$E$32:$J$36,3,FALSE)) ->  | H46: =IF($A46="","",VLOOKUP($C46,$E$32:$J$36,4,FALSE)*100) ->  | I46: =IF($A46="","",VLOOKUP($C46,$E$32:$J$36,5,FALSE)*100) ->  | J46: =IF($A46="","",VLOOKUP($C46,$E$32:$J$36,6,FALSE)*100) -> 
A47: =IF(OR(E35="",$F$31=0),"",VLOOKUP(L35,$M$32:$P$36,2,FALSE)) ->  | B47: =IF(OR(E35="",$F$31=0),"",VLOOKUP(L35,$M$32:$P$36,3,FALSE)) ->  | C47: =IF(OR(E35="",$F$31=0),"",VLOOKUP(L35,$M$32:$P$36,4,FALSE)) ->  | E47: =IF(OR(E35="",$F$31=0),"",VLOOKUP(L35,$M$32:$Q$36,5,FALSE)) ->  | F47: =IF($A47="","",VLOOKUP($C47,$E$32:$J$36,2,FALSE)) ->  | G47: =IF($A47="","",VLOOKUP($C47,$E$32:$J$36,3,FALSE)) ->  | H47: =IF($A47="","",VLOOKUP($C47,$E$32:$J$36,4,FALSE)*100) ->  | I47: =IF($A47="","",VLOOKUP($C47,$E$32:$J$36,5,FALSE)*100) ->  | J47: =IF($A47="","",VLOOKUP($C47,$E$32:$J$36,6,FALSE)*100) -> 
A48: =IF(OR(E36="",$F$31=0),"",VLOOKUP(L36,$M$32:$P$36,2,FALSE)) ->  | B48: =IF(OR(E36="",$F$31=0),"",VLOOKUP(L36,$M$32:$P$36,3,FALSE)) ->  | C48: =IF(OR(E36="",$F$31=0),"",VLOOKUP(L36,$M$32:$P$36,4,FALSE)) ->  | E48: =IF(OR(E36="",$F$31=0),"",VLOOKUP(L36,$M$32:$Q$36,5,FALSE)) ->  | F48: =IF($A48="","",VLOOKUP($C48,$E$32:$J$36,2,FALSE)) ->  | G48: =IF($A48="","",VLOOKUP($C48,$E$32:$J$36,3,FALSE)) ->  | H48: =IF($A48="","",VLOOKUP($C48,$E$32:$J$36,4,FALSE)*100) ->  | I48: =IF($A48="","",VLOOKUP($C48,$E$32:$J$36,5,FALSE)*100) ->  | J48: =IF($A48="","",VLOOKUP($C48,$E$32:$J$36,6,FALSE)*100) -> 
A50: Mapear
C51: ACeS
C52: =Id!E41 -> A401 | D52: =IF(Q32="","",Q32) ->  | G52: 0 | H52: classeR0
C53: =Id!E42 -> A402 | D53: =IF(Q33="","",Q33) ->  | G53: 2 | H53: classeR1 | J53: ACeS Activo | K53: A403 | L53: ACeSActR
C54: =Id!E43 -> A403 | D54: =IF(Q34="","",Q34) ->  | G54: 1 | H54: classeR2 | J54: Valor | K54: =IF(D52="",0,VLOOKUP(ACeSActR,DadosMapearR,2,FALSE)) -> 0 | L54: ACeSActValorR
C55: =Id!E44 -> A904 | D55: =IF(Q35="","",Q35) ->  | G55: -1 | H55: classeR3 | J55: Código | K55: =VLOOKUP(ACeSActValorR,classeValoresR,2,FALSE) -> classeR0 | L55: ACeSActCodR
C56: =Id!E45 -> A905 | D56: =IF(Q36="","",Q36) ->  | G56: -2 | H56: classeR4
B57: AnR_ACeS_Select | C57: =IF(AnR_CodACeS="","",VLOOKUP(AnR_CodACeS,Id!$D$39:$G$45,2,FALSE)) -> 
B59: Legenda
B60: =IF(AnR_IndSelect=1,"",D2 & ", QUINQUÉNIO " & C25) -> 
B61: =IF(AnR_IndSelect=1,"","Comparação com " & D27 & ", " & D39) -> 
B62: =IF(AnR_IndSelect=1,"","Comparação com " & D27 & ", R=100") -> 
